Workbook

Sheet DifferDemonsComonpentsConfig
B1: Id | C1: ComonpentsId | D1: Stage | E1: Cost | F1: BaseAttribute | G1: ExtraAdd
B2: int | C2: int | D2: int | E2: mut,int#int,2 | F2: mut,int#int,2 | G2: mut,int#int,2
B3: 2 | C3: 2 | D3: 2 | E3: 2 | F3: 2 | G3: 2
B4: 索引 | C4: 配件id | D4: 异妖当前阶级 | E4: 配饰进阶需要消耗的道具列表 道具id#数量|道具id#数量 | F4: 配饰当前阶级的基础属性 属性id#值（找PropertyConfig） | G4: 对职业额外加成 职业id#属性id#num 1、武卫；2、天罚； 3、秘法；4，玄策；5，生花；0，全职业
A5: 默认值 | B5: 0 | C5: 0 | D5: 0 | E5: null | F5: null
A6: 正确性校对
A7: 校对值
B8: 1 | C8: 6001 | D8: 1 | E8: 6001#1|5#0 | F8: 1#81|3#22
B9: 2 | C9: 6001 | D9: 2 | E9: 6001#1|5#20 | F9: 1#162|3#44 | G9: 0#63#100
B10: 3 | C10: 6001 | D10: 3 | E10: 6001#1|5#35 | F10: 1#243|3#66
B11: 4 | C11: 6001 | D11: 4 | E11: 6001#1|5#50 | F11: 1#324|3#88
B12: 5 | C12: 6001 | D12: 5 | E12: 6001#2|5#75 | F12: 1#405|3#110
B13: 6 | C13: 6001 | D13: 6 | E13: 6001#2|5#100 | F13: 1#486|3#132
B14: 7 | C14: 6001 | D14: 7 | E14: 6001#2|5#130 | F14: 1#567|3#154 | G14: 0#63#100
B15: 8 | C15: 6001 | D15: 8 | E15: 6001#3|5#160 | F15: 1#648|3#176
B16: 9 | C16: 6001 | D16: 9 | E16: 6001#3|5#195 | F16: 1#729|3#198
B17: 10 | C17: 6001 | D17: 10 | E17: 6001#3|5#235 | F17: 1#810|3#220
B18: 11 | C18: 6001 | D18: 11 | E18: 6001#3|5#280 | F18: 1#891|3#242
B19: 12 | C19: 6001 | D19: 12 | E19: 6001#3|5#330 | F19: 1#972|3#264
B20: 13 | C20: 6001 | D20: 13 | E20: 6001#3|5#380 | F20: 1#1053|3#286
B21: 14 | C21: 6001 | D21: 14 | E21: 6001#4|5#435 | F21: 1#1134|3#308
B22: 15 | C22: 6001 | D22: 15 | E22: 6001#5|5#495 | F22: 1#1215|3#330 | G22: 0#63#100
B23: 16 | C23: 6001 | D23: 16 | E23: 6001#6|5#555 | F23: 1#1296|3#352
B24: 17 | C24: 6001 | D24: 17 | E24: 6001#8|5#620 | F24: 1#1377|3#375
B25: 18 | C25: 6001 | D25: 18 | E25: 6001#10|5#690 | F25: 1#1458|3#397
B26: 19 | C26: 6001 | D26: 19 | E26: 6001#21|5#765 | F26: 1#1539|3#419
B27: 20 | C27: 6001 | D27: 20 | E27: 6001#30|5#840 | F27: 1#1620|3#441 | G27: 0#63#100
B28: 21 | C28: 6002 | D28: 1 | E28: 6002#1|5#0 | F28: 1#81|2#22
B29: 22 | C29: 6002 | D29: 2 | E29: 6002#1|5#20 | F29: 1#162|2#44 | G29: 0#64#100
B30: 23 | C30: 6002 | D30: 3 | E30: 6002#1|5#35 | F30: 1#243|2#66
B31: 24 | C31: 6002 | D31: 4 | E31: 6002#1|5#50 | F31: 1#324|2#88
B32: 25 | C32: 6002 | D32: 5 | E32: 6002#2|5#75 | F32: 1#405|2#110
B33: 26 | C33: 6002 | D33: 6 | E33: 6002#2|5#100 | F33: 1#486|2#132
B34: 27 | C34: 6002 | D34: 7 | E34: 6002#2|5#130 | F34: 1#567|2#154 | G34: 0#64#100
B35: 28 | C35: 6002 | D35: 8 | E35: 6002#3|5#160 | F35: 1#648|2#176
B36: 29 | C36: 6002 | D36: 9 | E36: 6002#3|5#195 | F36: 1#729|2#198
B37: 30 | C37: 6002 | D37: 10 | E37: 6002#3|5#235 | F37: 1#810|2#220
B38: 31 | C38: 6002 | D38: 11 | E38: 6002#3|5#280 | F38: 1#891|2#242
B39: 32 | C39: 6002 | D39: 12 | E39: 6002#3|5#330 | F39: 1#972|2#264
B40: 33 | C40: 6002 | D40: 13 | E40: 6002#3|5#380 | F40: 1#1053|2#286
B41: 34 | C41: 6002 | D41: 14 | E41: 6002#4|5#435 | F41: 1#1134|2#308
B42: 35 | C42: 6002 | D42: 15 | E42: 6002#5|5#495 | F42: 1#1215|2#330 | G42: 0#64#100
B43: 36 | C43: 6002 | D43: 16 | E43: 6002#6|5#555 | F43: 1#1296|2#352
B44: 37 | C44: 6002 | D44: 17 | E44: 6002#8|5#620 | F44: 1#1377|2#375
B45: 38 | C45: 6002 | D45: 18 | E45: 6002#10|5#690 | F45: 1#1458|2#397
B46: 39 | C46: 6002 | D46: 19 | E46: 6002#21|5#765 | F46: 1#1539|2#419
B47: 40 | C47: 6002 | D47: 20 | E47: 6002#30|5#840 | F47: 1#1620|2#441 | G47: 0#64#100
B48: 41 | C48: 6003 | D48: 1 | E48: 6003#1|5#0 | F48: 1#81|4#22
B49: 42 | C49: 6003 | D49: 2 | E49: 6003#1|5#20 | F49: 1#162|4#44 | G49: 0#61#100
B50: 43 | C50: 6003 | D50: 3 | E50: 6003#1|5#35 | F50: 1#243|4#66
B51: 44 | C51: 6003 | D51: 4 | E51: 6003#1|5#50 | F51: 1#324|4#88
B52: 45 | C52: 6003 | D52: 5 | E52: 6003#2|5#75 | F52: 1#405|4#110
B53: 46 | C53: 6003 | D53: 6 | E53: 6003#2|5#100 | F53: 1#486|4#132
B54: 47 | C54: 6003 | D54: 7 | E54: 6003#2|5#130 | F54: 1#567|4#154 | G54: 0#61#100
B55: 48 | C55: 6003 | D55: 8 | E55: 6003#3|5#160 | F55: 1#648|4#176
B56: 49 | C56: 6003 | D56: 9 | E56: 6003#3|5#195 | F56: 1#729|4#198
B57: 50 | C57: 6003 | D57: 10 | E57: 6003#3|5#235 | F57: 1#810|4#220
B58: 51 | C58: 6003 | D58: 11 | E58: 6003#3|5#280 | F58: 1#891|4#242
B59: 52 | C59: 6003 | D59: 12 | E59: 6003#3|5#330 | F59: 1#972|4#264
B60: 53 | C60: 6003 | D60: 13 | E60: 6003#3|5#380 | F60: 1#1053|4#286
B61: 54 | C61: 6003 | D61: 14 | E61: 6003#4|5#435 | F61: 1#1134|4#308
B62: 55 | C62: 6003 | D62: 15 | E62: 6003#5|5#495 | F62: 1#1215|4#330 | G62: 0#61#100
B63: 56 | C63: 6003 | D63: 16 | E63: 6003#6|5#555 | F63: 1#1296|4#352
B64: 57 | C64: 6003 | D64: 17 | E64: 6003#8|5#620 | F64: 1#1377|4#375
B65: 58 | C65: 6003 | D65: 18 | E65: 6003#10|5#690 | F65: 1#1458|4#397
B66: 59 | C66: 6003 | D66: 19 | E66: 6003#21|5#765 | F66: 1#1539|4#419
B67: 60 | C67: 6003 | D67: 20 | E67: 6003#30|5#840 | F67: 1#1620|4#441 | G67: 0#61#100
B68: 61 | C68: 6004 | D68: 1 | E68: 6004#1|5#0 | F68: 1#81|3#22
B69: 62 | C69: 6004 | D69: 2 | E69: 6004#1|5#20 | F69: 1#162|3#44 | G69: 0#63#100
B70: 63 | C70: 6004 | D70: 3 | E70: 6004#1|5#35 | F70: 1#243|3#66
B71: 64 | C71: 6004 | D71: 4 | E71: 6004#1|5#50 | F71: 1#324|3#88
B72: 65 | C72: 6004 | D72: 5 | E72: 6004#2|5#75 | F72: 1#405|3#110
B73: 66 | C73: 6004 | D73: 6 | E73: 6004#2|5#100 | F73: 1#486|3#132
B74: 67 | C74: 6004 | D74: 7 | E74: 6004#2|5#130 | F74: 1#567|3#154 | G74: 0#63#100
B75: 68 | C75: 6004 | D75: 8 | E75: 6004#3|5#160 | F75: 1#648|3#176
B76: 69 | C76: 6004 | D76: 9 | E76: 6004#3|5#195 | F76: 1#729|3#198
B77: 70 | C77: 6004 | D77: 10 | E77: 6004#3|5#235 | F77: 1#810|3#220
B78: 71 | C78: 6004 | D78: 11 | E78: 6004#3|5#280 | F78: 1#891|3#242
B79: 72 | C79: 6004 | D79: 12 | E79: 6004#3|5#330 | F79: 1#972|3#264
B80: 73 | C80: 6004 | D80: 13 | E80: 6004#3|5#380 | F80: 1#1053|3#286
B81: 74 | C81: 6004 | D81: 14 | E81: 6004#4|5#435 | F81: 1#1134|3#308
B82: 75 | C82: 6004 | D82: 15 | E82: 6004#5|5#495 | F82: 1#1215|3#330 | G82: 0#63#100
B83: 76 | C83: 6004 | D83: 16 | E83: 6004#6|5#555 | F83: 1#1296|3#352
B84: 77 | C84: 6004 | D84: 17 | E84: 6004#8|5#620 | F84: 1#1377|3#375
B85: 78 | C85: 6004 | D85: 18 | E85: 6004#10|5#690 | F85: 1#1458|3#397
B86: 79 | C86: 6004 | D86: 19 | E86: 6004#21|5#765 | F86: 1#1539|3#419
B87: 80 | C87: 6004 | D87: 20 | E87: 6004#30|5#840 | F87: 1#1620|3#441 | G87: 0#63#100
B88: 81 | C88: 6005 | D88: 1 | E88: 6005#1|5#0 | F88: 1#81|2#22
B89: 82 | C89: 6005 | D89: 2 | E89: 6005#1|5#20 | F89: 1#162|2#44 | G89: 0#64#100
B90: 83 | C90: 6005 | D90: 3 | E90: 6005#1|5#35 | F90: 1#243|2#66
B91: 84 | C91: 6005 | D91: 4 | E91: 6005#1|5#50 | F91: 1#324|2#88
B92: 85 | C92: 6005 | D92: 5 | E92: 6005#2|5#75 | F92: 1#405|2#110
B93: 86 | C93: 6005 | D93: 6 | E93: 6005#2|5#100 | F93: 1#486|2#132
B94: 87 | C94: 6005 | D94: 7 | E94: 6005#2|5#130 | F94: 1#567|2#154 | G94: 0#64#100
B95: 88 | C95: 6005 | D95: 8 | E95: 6005#3|5#160 | F95: 1#648|2#176
B96: 89 | C96: 6005 | D96: 9 | E96: 6005#3|5#195 | F96: 1#729|2#198
B97: 90 | C97: 6005 | D97: 10 | E97: 6005#3|5#235 | F97: 1#810|2#220
B98: 91 | C98: 6005 | D98: 11 | E98: 6005#3|5#280 | F98: 1#891|2#242
B99: 92 | C99: 6005 | D99: 12 | E99: 6005#3|5#330 | F99: 1#972|2#264
B100: 93 | C100: 6005 | D100: 13 | E100: 6005#3|5#380 | F100: 1#1053|2#286
B101: 94 | C101: 6005 | D101: 14 | E101: 6005#4|5#435 | F101: 1#1134|2#308
B102: 95 | C102: 6005 | D102: 15 | E102: 6005#5|5#495 | F102: 1#1215|2#330 | G102: 0#64#100
B103: 96 | C103: 6005 | D103: 16 | E103: 6005#6|5#555 | F103: 1#1296|2#352
B104: 97 | C104: 6005 | D104: 17 | E104: 6005#8|5#620 | F104: 1#1377|2#375
B105: 98 | C105: 6005 | D105: 18 | E105: 6005#10|5#690 | F105: 1#1458|2#397
B106: 99 | C106: 6005 | D106: 19 | E106: 6005#21|5#765 | F106: 1#1539|2#419
B107: 100 | C107: 6005 | D107: 20 | E107: 6005#30|5#840 | F107: 1#1620|2#441 | G107: 0#64#100
B108: 101 | C108: 6006 | D108: 1 | E108: 6006#1|5#0 | F108: 1#81|4#22
B109: 102 | C109: 6006 | D109: 2 | E109: 6006#1|5#20 | F109: 1#162|4#44 | G109: 0#61#100
B110: 103 | C110: 6006 | D110: 3 | E110: 6006#1|5#35 | F110: 1#243|4#66
B111: 104 | C111: 6006 | D111: 4 | E111: 6006#1|5#50 | F111: 1#324|4#88
B112: 105 | C112: 6006 | D112: 5 | E112: 6006#2|5#75 | F112: 1#405|4#110
B113: 106 | C113: 6006 | D113: 6 | E113: 6006#2|5#100 | F113: 1#486|4#132
B114: 107 | C114: 6006 | D114: 7 | E114: 6006#2|5#130 | F114: 1#567|4#154 | G114: 0#61#100
B115: 108 | C115: 6006 | D115: 8 | E115: 6006#3|5#160 | F115: 1#648|4#176
B116: 109 | C116: 6006 | D116: 9 | E116: 6006#3|5#195 | F116: 1#729|4#198
B117: 110 | C117: 6006 | D117: 10 | E117: 6006#3|5#235 | F117: 1#810|4#220
B118: 111 | C118: 6006 | D118: 11 | E118: 6006#3|5#280 | F118: 1#891|4#242
B119: 112 | C119: 6006 | D119: 12 | E119: 6006#3|5#330 | F119: 1#972|4#264
B120: 113 | C120: 6006 | D120: 13 | E120: 6006#3|5#380 | F120: 1#1053|4#286
B121: 114 | C121: 6006 | D121: 14 | E121: 6006#4|5#435 | F121: 1#1134|4#308
B122: 115 | C122: 6006 | D122: 15 | E122: 6006#5|5#495 | F122: 1#1215|4#330 | G122: 0#61#100
B123: 116 | C123: 6006 | D123: 16 | E123: 6006#6|5#555 | F123: 1#1296|4#352
B124: 117 | C124: 6006 | D124: 17 | E124: 6006#8|5#620 | F124: 1#1377|4#375
B125: 118 | C125: 6006 | D125: 18 | E125: 6006#10|5#690 | F125: 1#1458|4#397
B126: 119 | C126: 6006 | D126: 19 | E126: 6006#21|5#765 | F126: 1#1539|4#419
B127: 120 | C127: 6006 | D127: 20 | E127: 6006#30|5#840 | F127: 1#1620|4#441 | G127: 0#61#100
B128: 121 | C128: 6007 | D128: 1 | E128: 6007#1|5#0 | F128: 1#81|3#22
B129: 122 | C129: 6007 | D129: 2 | E129: 6007#1|5#20 | F129: 1#162|3#44 | G129: 0#63#100
B130: 123 | C130: 6007 | D130: 3 | E130: 6007#1|5#35 | F130: 1#243|3#66
B131: 124 | C131: 6007 | D131: 4 | E131: 6007#1|5#50 | F131: 1#324|3#88
B132: 125 | C132: 6007 | D132: 5 | E132: 6007#2|5#75 | F132: 1#405|3#110
B133: 126 | C133: 6007 | D133: 6 | E133: 6007#2|5#100 | F133: 1#486|3#132
B134: 127 | C134: 6007 | D134: 7 | E134: 6007#2|5#130 | F134: 1#567|3#154 | G134: 0#63#100
B135: 128 | C135: 6007 | D135: 8 | E135: 6007#3|5#160 | F135: 1#648|3#176
B136: 129 | C136: 6007 | D136: 9 | E136: 6007#3|5#195 | F136: 1#729|3#198
B137: 130 | C137: 6007 | D137: 10 | E137: 6007#3|5#235 | F137: 1#810|3#220
B138: 131 | C138: 6007 | D138: 11 | E138: 6007#3|5#280 | F138: 1#891|3#242
B139: 132 | C139: 6007 | D139: 12 | E139: 6007#3|5#330 | F139: 1#972|3#264
B140: 133 | C140: 6007 | D140: 13 | E140: 6007#3|5#380 | F140: 1#1053|3#286
B141: 134 | C141: 6007 | D141: 14 | E141: 6007#4|5#435 | F141: 1#1134|3#308
B142: 135 | C142: 6007 | D142: 15 | E142: 6007#5|5#495 | F142: 1#1215|3#330 | G142: 0#63#100
B143: 136 | C143: 6007 | D143: 16 | E143: 6007#6|5#555 | F143: 1#1296|3#352
B144: 137 | C144: 6007 | D144: 17 | E144: 6007#8|5#620 | F144: 1#1377|3#375
B145: 138 | C145: 6007 | D145: 18 | E145: 6007#10|5#690 | F145: 1#1458|3#397
B146: 139 | C146: 6007 | D146: 19 | E146: 6007#21|5#765 | F146: 1#1539|3#419
B147: 140 | C147: 6007 | D147: 20 | E147: 6007#30|5#840 | F147: 1#1620|3#441 | G147: 0#63#100
B148: 141 | C148: 6008 | D148: 1 | E148: 6008#1|5#0 | F148: 1#81|2#22
B149: 142 | C149: 6008 | D149: 2 | E149: 6008#1|5#20 | F149: 1#162|2#44 | G149: 0#64#100
B150: 143 | C150: 6008 | D150: 3 | E150: 6008#1|5#35 | F150: 1#243|2#66
B151: 144 | C151: 6008 | D151: 4 | E151: 6008#1|5#50 | F151: 1#324|2#88
B152: 145 | C152: 6008 | D152: 5 | E152: 6008#2|5#75 | F152: 1#405|2#110
B153: 146 | C153: 6008 | D153: 6 | E153: 6008#2|5#100 | F153: 1#486|2#132
B154: 147 | C154: 6008 | D154: 7 | E154: 6008#2|5#130 | F154: 1#567|2#154 | G154: 0#64#100
B155: 148 | C155: 6008 | D155: 8 | E155: 6008#3|5#160 | F155: 1#648|2#176
B156: 149 | C156: 6008 | D156: 9 | E156: 6008#3|5#195 | F156: 1#729|2#198
B157: 150 | C157: 6008 | D157: 10 | E157: 6008#3|5#235 | F157: 1#810|2#220
B158: 151 | C158: 6008 | D158: 11 | E158: 6008#3|5#280 | F158: 1#891|2#242
B159: 152 | C159: 6008 | D159: 12 | E159: 6008#3|5#330 | F159: 1#972|2#264
B160: 153 | C160: 6008 | D160: 13 | E160: 6008#3|5#380 | F160: 1#1053|2#286
B161: 154 | C161: 6008 | D161: 14 | E161: 6008#4|5#435 | F161: 1#1134|2#308
B162: 155 | C162: 6008 | D162: 15 | E162: 6008#5|5#495 | F162: 1#1215|2#330 | G162: 0#64#100
B163: 156 | C163: 6008 | D163: 16 | E163: 6008#6|5#555 | F163: 1#1296|2#352
B164: 157 | C164: 6008 | D164: 17 | E164: 6008#8|5#620 | F164: 1#1377|2#375
B165: 158 | C165: 6008 | D165: 18 | E165: 6008#10|5#690 | F165: 1#1458|2#397
B166: 159 | C166: 6008 | D166: 19 | E166: 6008#21|5#765 | F166: 1#1539|2#419
B167: 160 | C167: 6008 | D167: 20 | E167: 6008#30|5#840 | F167: 1#1620|2#441 | G167: 0#64#100
B168: 161 | C168: 6009 | D168: 1 | E168: 6009#1|5#0 | F168: 1#81|4#22
B169: 162 | C169: 6009 | D169: 2 | E169: 6009#1|5#20 | F169: 1#162|4#44 | G169: 0#61#100
B170: 163 | C170: 6009 | D170: 3 | E170: 6009#1|5#35 | F170: 1#243|4#66
B171: 164 | C171: 6009 | D171: 4 | E171: 6009#1|5#50 | F171: 1#324|4#88
B172: 165 | C172: 6009 | D172: 5 | E172: 6009#2|5#75 | F172: 1#405|4#110
B173: 166 | C173: 6009 | D173: 6 | E173: 6009#2|5#100 | F173: 1#486|4#132
B174: 167 | C174: 6009 | D174: 7 | E174: 6009#2|5#130 | F174: 1#567|4#154 | G174: 0#61#100
B175: 168 | C175: 6009 | D175: 8 | E175: 6009#3|5#160 | F175: 1#648|4#176
B176: 169 | C176: 6009 | D176: 9 | E176: 6009#3|5#195 | F176: 1#729|4#198
B177: 170 | C177: 6009 | D177: 10 | E177: 6009#3|5#235 | F177: 1#810|4#220
B178: 171 | C178: 6009 | D178: 11 | E178: 6009#3|5#280 | F178: 1#891|4#242
B179: 172 | C179: 6009 | D179: 12 | E179: 6009#3|5#330 | F179: 1#972|4#264
B180: 173 | C180: 6009 | D180: 13 | E180: 6009#3|5#380 | F180: 1#1053|4#286
B181: 174 | C181: 6009 | D181: 14 | E181: 6009#4|5#435 | F181: 1#1134|4#308
B182: 175 | C182: 6009 | D182: 15 | E182: 6009#5|5#495 | F182: 1#1215|4#330 | G182: 0#61#100
B183: 176 | C183: 6009 | D183: 16 | E183: 6009#6|5#555 | F183: 1#1296|4#352
B184: 177 | C184: 6009 | D184: 17 | E184: 6009#8|5#620 | F184: 1#1377|4#375
B185: 178 | C185: 6009 | D185: 18 | E185: 6009#10|5#690 | F185: 1#1458|4#397
B186: 179 | C186: 6009 | D186: 19 | E186: 6009#21|5#765 | F186: 1#1539|4#419
B187: 180 | C187: 6009 | D187: 20 | E187: 6009#30|5#840 | F187: 1#1620|4#441 | G187: 0#61#100
B188: 181 | C188: 6010 | D188: 1 | E188: 6010#1|5#0 | F188: 1#81|3#22
B189: 182 | C189: 6010 | D189: 2 | E189: 6010#1|5#20 | F189: 1#162|3#44 | G189: 0#63#100
B190: 183 | C190: 6010 | D190: 3 | E190: 6010#1|5#35 | F190: 1#243|3#66
B191: 184 | C191: 6010 | D191: 4 | E191: 6010#1|5#50 | F191: 1#324|3#88
B192: 185 | C192: 6010 | D192: 5 | E192: 6010#2|5#75 | F192: 1#405|3#110
B193: 186 | C193: 6010 | D193: 6 | E193: 6010#2|5#100 | F193: 1#486|3#132
B194: 187 | C194: 6010 | D194: 7 | E194: 6010#2|5#130 | F194: 1#567|3#154 | G194: 0#63#100
B195: 188 | C195: 6010 | D195: 8 | E195: 6010#3|5#160 | F195: 1#648|3#176
B196: 189 | C196: 6010 | D196: 9 | E196: 6010#3|5#195 | F196: 1#729|3#198
B197: 190 | C197: 6010 | D197: 10 | E197: 6010#3|5#235 | F197: 1#810|3#220
B198: 191 | C198: 6010 | D198: 11 | E198: 6010#3|5#280 | F198: 1#891|3#242
B199: 192 | C199: 6010 | D199: 12 | E199: 6010#3|5#330 | F199: 1#972|3#264
B200: 193 | C200: 6010 | D200: 13 | E200: 6010#3|5#380 | F200: 1#1053|3#286
... 527 more rows

Sheet 属性
A1: 阶级 | B1: 配件id | C1: 属性1 | D1: 值 | E1: 属性2 | F1: 值 | G1: 属性3 | H1: 值 | I1: 职业加成 | J1: 加成属性 | K1: 值 | M1: 属性id | N1: 值 | O1: 属性id | P1: 值 | Q1: 属性id | R1: 值 | S1: 辅助1 | T1: 辅助2 | U1: 辅助3 | V1: 输出列1 | W1: 辅助1 | X1: 辅助2 | Y1: 辅助3 | Z1: 输出列2
A2: 1 | B2: 6001 | C2: 生命 | D2: 147 | E2: 护甲 | F2: 22 | M2: =VLOOKUP(C2,$AB:$AC,2,0) -> 1 | N2: =D2 -> 147 | O2: =VLOOKUP(E2,$AB:$AC,2,0) -> 3 | P2: =F2 -> 22 | Q2: =IF(G2<>0,VLOOKUP(G2,$AB:$AC,2,0),"") ->  | R2: =IF(H2<>0,H2,"") ->  | S2: =[1]!SUMSTRING(M2:N2,"#") ->  | T2: =[1]!SUMSTRING(O2:P2,"#") ->  | U2: =IF(Q2<>0,[1]!SUMSTRING(Q2:R2,"#"),"") ->  | V2: =[1]!SUMSTRING(S2:U2,"|") ->  | W2: =IF(I2<>0,VLOOKUP(I2,$AG$3:$AH$7,2,0),"") ->  | X2: =IF(J2<>0,VLOOKUP(J2,$AB:$AC,2,0),"") ->  | Y2: =IF(K2<>0,K2,"") ->  | Z2: =IF(W2<>0,[1]!SUMSTRING(W2:Y2,"#"),"") ->  | AB2: 生命 | AC2: 1
A3: 2 | B3: 6001 | C3: 生命 | D3: 294 | E3: 护甲 | F3: 44 | I3: 武卫 | J3: 护甲百分比 | K3: 300 | M3: =VLOOKUP(C3,$AB:$AC,2,0) -> 1 | N3: =D3 -> 294 | O3: =VLOOKUP(E3,$AB:$AC,2,0) -> 3 | P3: =F3 -> 44 | Q3: =IF(G3<>0,VLOOKUP(G3,$AB:$AC,2,0),"") ->  | R3: =IF(H3<>0,H3,"") ->  | S3: =[1]!SUMSTRING(M3:N3,"#") ->  | T3: =[1]!SUMSTRING(O3:P3,"#") ->  | U3: =IF(Q3<>0,[1]!SUMSTRING(Q3:R3,"#"),"") ->  | V3: =[1]!SUMSTRING(S3:U3,"|") ->  | W3: =IF(I3<>0,VLOOKUP(I3,$AG$3:$AH$7,2,0),"") -> 1 | X3: =IF(J3<>0,VLOOKUP(J3,$AB:$AC,2,0),"") -> 63 | Y3: =IF(K3<>0,K3,"") -> 300 | Z3: =IF(W3<>0,[1]!SUMSTRING(W3:Y3,"#"),"") ->  | AB3: 攻击 | AC3: 2 | AG3: 武卫 | AH3: 1
A4: 3 | B4: 6001 | C4: 生命 | D4: 441 | E4: 护甲 | F4: 66 | M4: 1 | N4: 441 | O4: 3 | P4: 66 | S4: =[1]!SUMSTRING(M4:N4,"#") ->  | T4: =[1]!SUMSTRING(O4:P4,"#") ->  | U4: =IF(Q4<>0,[1]!SUMSTRING(Q4:R4,"#"),"") ->  | V4: =[1]!SUMSTRING(S4:U4,"|") ->  | W4: =IF(I4<>0,VLOOKUP(I4,$AG$3:$AH$7,2,0),"") ->  | Z4: =IF(W4<>0,[1]!SUMSTRING(W4:Y4,"#"),"") ->  | AB4: 护甲 | AC4: 3 | AG4: 天罚 | AH4: 2
A5: 4 | B5: 6001 | C5: 生命 | D5: 588 | E5: 护甲 | F5: 88 | M5: 1 | N5: 588 | O5: 3 | P5: 88 | S5: =[1]!SUMSTRING(M5:N5,"#") ->  | T5: =[1]!SUMSTRING(O5:P5,"#") ->  | U5: =IF(Q5<>0,[1]!SUMSTRING(Q5:R5,"#"),"") ->  | V5: =[1]!SUMSTRING(S5:U5,"|") ->  | Z5: =IF(W5<>0,[1]!SUMSTRING(W5:Y5,"#"),"") ->  | AB5: 魔抗 | AC5: 4 | AG5: 秘法 | AH5: 3
A6: 5 | B6: 6001 | C6: 生命 | D6: 735 | E6: 护甲 | F6: 110 | I6: 生花 | J6: 护甲百分比 | K6: 300 | M6: 1 | N6: 735 | O6: 3 | P6: 110 | S6: =[1]!SUMSTRING(M6:N6,"#") ->  | T6: =[1]!SUMSTRING(O6:P6,"#") ->  | U6: =IF(Q6<>0,[1]!SUMSTRING(Q6:R6,"#"),"") ->  | V6: =[1]!SUMSTRING(S6:U6,"|") ->  | W6: 5 | X6: 63 | Y6: 300 | Z6: =IF(W6<>0,[1]!SUMSTRING(W6:Y6,"#"),"") ->  | AB6: 速度 | AC6: 5 | AG6: 玄策 | AH6: 4
A7: 6 | B7: 6001 | C7: 生命 | D7: 882 | E7: 护甲 | F7: 132 | M7: 1 | N7: 882 | O7: 3 | P7: 132 | S7: =[1]!SUMSTRING(M7:N7,"#") ->  | T7: =[1]!SUMSTRING(O7:P7,"#") ->  | U7: =IF(Q7<>0,[1]!SUMSTRING(Q7:R7,"#"),"") ->  | V7: =[1]!SUMSTRING(S7:U7,"|") ->  | Z7: =IF(W7<>0,[1]!SUMSTRING(W7:Y7,"#"),"") ->  | AB7: 当前生命 | AC7: 6 | AG7: 生花 | AH7: 5
A8: 7 | B8: 6001 | C8: 生命 | D8: 1029 | E8: 护甲 | F8: 154 | M8: 1 | N8: 1029 | O8: 3 | P8: 154 | S8: =[1]!SUMSTRING(M8:N8,"#") ->  | T8: =[1]!SUMSTRING(O8:P8,"#") ->  | U8: =IF(Q8<>0,[1]!SUMSTRING(Q8:R8,"#"),"") ->  | V8: =[1]!SUMSTRING(S8:U8,"|") ->  | Z8: =IF(W8<>0,[1]!SUMSTRING(W8:Y8,"#"),"") ->  | AB8: 伤害加成 | AC8: 51
A9: 8 | B9: 6001 | C9: 生命 | D9: 1176 | E9: 护甲 | F9: 176 | I9: 秘法 | J9: 护甲百分比 | K9: 300 | M9: 1 | N9: 1176 | O9: 3 | P9: 176 | S9: =[1]!SUMSTRING(M9:N9,"#") ->  | T9: =[1]!SUMSTRING(O9:P9,"#") ->  | U9: =IF(Q9<>0,[1]!SUMSTRING(Q9:R9,"#"),"") ->  | V9: =[1]!SUMSTRING(S9:U9,"|") ->  | W9: 3 | X9: 63 | Y9: 300 | Z9: =IF(W9<>0,[1]!SUMSTRING(W9:Y9,"#"),"") ->  | AB9: 伤害减免 | AC9: 52
A10: 9 | B10: 6001 | C10: 生命 | D10: 1323 | E10: 护甲 | F10: 198 | M10: 1 | N10: 1323 | O10: 3 | P10: 198 | S10: =[1]!SUMSTRING(M10:N10,"#") ->  | T10: =[1]!SUMSTRING(O10:P10,"#") ->  | U10: =IF(Q10<>0,[1]!SUMSTRING(Q10:R10,"#"),"") ->  | V10: =[1]!SUMSTRING(S10:U10,"|") ->  | Z10: =IF(W10<>0,[1]!SUMSTRING(W10:Y10,"#"),"") ->  | AB10: 效果命中 | AC10: 53
A11: 10 | B11: 6001 | C11: 生命 | D11: 1470 | E11: 护甲 | F11: 220 | M11: 1 | N11: 1470 | O11: 3 | P11: 220 | S11: =[1]!SUMSTRING(M11:N11,"#") ->  | T11: =[1]!SUMSTRING(O11:P11,"#") ->  | U11: =IF(Q11<>0,[1]!SUMSTRING(Q11:R11,"#"),"") ->  | V11: =[1]!SUMSTRING(S11:U11,"|") ->  | Z11: =IF(W11<>0,[1]!SUMSTRING(W11:Y11,"#"),"") ->  | AB11: 效果抵抗 | AC11: 54
A12: 11 | B12: 6001 | C12: 生命 | D12: 1617 | E12: 护甲 | F12: 242 | I12: 玄策 | J12: 护甲百分比 | K12: 300 | M12: 1 | N12: 1617 | O12: 3 | P12: 242 | S12: =[1]!SUMSTRING(M12:N12,"#") ->  | T12: =[1]!SUMSTRING(O12:P12,"#") ->  | U12: =IF(Q12<>0,[1]!SUMSTRING(Q12:R12,"#"),"") ->  | V12: =[1]!SUMSTRING(S12:U12,"|") ->  | W12: 4 | X12: 63 | Y12: 300 | Z12: =IF(W12<>0,[1]!SUMSTRING(W12:Y12,"#"),"") ->  | AB12: 暴击 | AC12: 55
A13: 12 | B13: 6001 | C13: 生命 | D13: 1764 | E13: 护甲 | F13: 264 | M13: 1 | N13: 1764 | O13: 3 | P13: 264 | S13: =[1]!SUMSTRING(M13:N13,"#") ->  | T13: =[1]!SUMSTRING(O13:P13,"#") ->  | U13: =IF(Q13<>0,[1]!SUMSTRING(Q13:R13,"#"),"") ->  | V13: =[1]!SUMSTRING(S13:U13,"|") ->  | Z13: =IF(W13<>0,[1]!SUMSTRING(W13:Y13,"#"),"") ->  | AB13: 暴伤 | AC13: 56
A14: 13 | B14: 6001 | C14: 生命 | D14: 1911 | E14: 护甲 | F14: 286 | M14: 1 | N14: 1911 | O14: 3 | P14: 286 | S14: =[1]!SUMSTRING(M14:N14,"#") ->  | T14: =[1]!SUMSTRING(O14:P14,"#") ->  | U14: =IF(Q14<>0,[1]!SUMSTRING(Q14:R14,"#"),"") ->  | V14: =[1]!SUMSTRING(S14:U14,"|") ->  | Z14: =IF(W14<>0,[1]!SUMSTRING(W14:Y14,"#"),"") ->  | AB14: 受治疗 | AC14: 57
A15: 14 | B15: 6001 | C15: 生命 | D15: 2058 | E15: 护甲 | F15: 308 | I15: 天罚 | J15: 护甲百分比 | K15: 300 | M15: 1 | N15: 2058 | O15: 3 | P15: 308 | S15: =[1]!SUMSTRING(M15:N15,"#") ->  | T15: =[1]!SUMSTRING(O15:P15,"#") ->  | U15: =IF(Q15<>0,[1]!SUMSTRING(Q15:R15,"#"),"") ->  | V15: =[1]!SUMSTRING(S15:U15,"|") ->  | W15: 2 | X15: 63 | Y15: 300 | Z15: =IF(W15<>0,[1]!SUMSTRING(W15:Y15,"#"),"") ->  | AB15: 治疗 | AC15: 58
A16: 15 | B16: 6001 | C16: 生命 | D16: 2205 | E16: 护甲 | F16: 330 | M16: 1 | N16: 2205 | O16: 3 | P16: 330 | S16: =[1]!SUMSTRING(M16:N16,"#") ->  | T16: =[1]!SUMSTRING(O16:P16,"#") ->  | U16: =IF(Q16<>0,[1]!SUMSTRING(Q16:R16,"#"),"") ->  | V16: =[1]!SUMSTRING(S16:U16,"|") ->  | Z16: =IF(W16<>0,[1]!SUMSTRING(W16:Y16,"#"),"") ->  | AB16: 异妖减伤 | AC16: 59
A17: 16 | B17: 6001 | C17: 生命 | D17: 2352 | E17: 护甲 | F17: 352 | M17: 1 | N17: 2352 | O17: 3 | P17: 352 | S17: =[1]!SUMSTRING(M17:N17,"#") ->  | T17: =[1]!SUMSTRING(O17:P17,"#") ->  | U17: =IF(Q17<>0,[1]!SUMSTRING(Q17:R17,"#"),"") ->  | V17: =[1]!SUMSTRING(S17:U17,"|") ->  | Z17: =IF(W17<>0,[1]!SUMSTRING(W17:Y17,"#"),"") ->  | AB17: 抗暴率 | AC17: 60
A18: 17 | B18: 6001 | C18: 生命 | D18: 2500 | E18: 护甲 | F18: 375 | I18: 秘法 | J18: 护甲百分比 | K18: 300 | M18: 1 | N18: 2500 | O18: 3 | P18: 375 | S18: =[1]!SUMSTRING(M18:N18,"#") ->  | T18: =[1]!SUMSTRING(O18:P18,"#") ->  | U18: =IF(Q18<>0,[1]!SUMSTRING(Q18:R18,"#"),"") ->  | V18: =[1]!SUMSTRING(S18:U18,"|") ->  | W18: 3 | X18: 63 | Y18: 300 | Z18: =IF(W18<>0,[1]!SUMSTRING(W18:Y18,"#"),"") ->  | AB18: 生命百分比 | AC18: 61
A19: 18 | B19: 6001 | C19: 生命 | D19: 2647 | E19: 护甲 | F19: 397 | M19: 1 | N19: 2647 | O19: 3 | P19: 397 | S19: =[1]!SUMSTRING(M19:N19,"#") ->  | T19: =[1]!SUMSTRING(O19:P19,"#") ->  | U19: =IF(Q19<>0,[1]!SUMSTRING(Q19:R19,"#"),"") ->  | V19: =[1]!SUMSTRING(S19:U19,"|") ->  | Z19: =IF(W19<>0,[1]!SUMSTRING(W19:Y19,"#"),"") ->  | AB19: 攻击百分比 | AC19: 62
A20: 19 | B20: 6001 | C20: 生命 | D20: 2794 | E20: 护甲 | F20: 419 | M20: 1 | N20: 2794 | O20: 3 | P20: 419 | S20: =[1]!SUMSTRING(M20:N20,"#") ->  | T20: =[1]!SUMSTRING(O20:P20,"#") ->  | U20: =IF(Q20<>0,[1]!SUMSTRING(Q20:R20,"#"),"") ->  | V20: =[1]!SUMSTRING(S20:U20,"|") ->  | Z20: =IF(W20<>0,[1]!SUMSTRING(W20:Y20,"#"),"") ->  | AB20: 护甲百分比 | AC20: 63
A21: 20 | B21: 6001 | C21: 生命 | D21: 2941 | E21: 护甲 | F21: 441 | I21: 天罚 | J21: 护甲百分比 | K21: 300 | M21: 1 | N21: 2941 | O21: 3 | P21: 441 | S21: =[1]!SUMSTRING(M21:N21,"#") ->  | T21: =[1]!SUMSTRING(O21:P21,"#") ->  | U21: =IF(Q21<>0,[1]!SUMSTRING(Q21:R21,"#"),"") ->  | V21: =[1]!SUMSTRING(S21:U21,"|") ->  | W21: 2 | X21: 63 | Y21: 300 | Z21: =IF(W21<>0,[1]!SUMSTRING(W21:Y21,"#"),"") ->  | AB21: 魔抗百分比 | AC21: 64
A22: =A2 -> 1 | B22: =B2+1 -> 6002 | C22: 生命 | D22: 147 | E22: 攻击 | F22: 22 | M22: 1 | N22: 147 | O22: 2 | P22: 22 | S22: =[1]!SUMSTRING(M22:N22,"#") ->  | T22: =[1]!SUMSTRING(O22:P22,"#") ->  | U22: =IF(Q22<>0,[1]!SUMSTRING(Q22:R22,"#"),"") ->  | V22: =[1]!SUMSTRING(S22:U22,"|") ->  | Z22: =IF(W22<>0,[1]!SUMSTRING(W22:Y22,"#"),"") ->  | AB22: 速度百分比 | AC22: 65
A23: =A3 -> 2 | B23: =B3+1 -> 6002 | C23: 生命 | D23: 294 | E23: 攻击 | F23: 44 | I23: 武卫 | J23: 魔抗百分比 | K23: 300 | M23: 1 | N23: 294 | O23: 2 | P23: 44 | S23: =[1]!SUMSTRING(M23:N23,"#") ->  | T23: =[1]!SUMSTRING(O23:P23,"#") ->  | U23: =IF(Q23<>0,[1]!SUMSTRING(Q23:R23,"#"),"") ->  | V23: =[1]!SUMSTRING(S23:U23,"|") ->  | W23: 1 | X23: 64 | Y23: 300 | Z23: =IF(W23<>0,[1]!SUMSTRING(W23:Y23,"#"),"") ->  | AB23: 异妖增伤 | AC23: 66
A24: 3 | B24: 6002 | C24: 生命 | D24: 441 | E24: 攻击 | F24: 66 | M24: 1 | N24: 441 | O24: 2 | P24: 66 | S24: =[1]!SUMSTRING(M24:N24,"#") ->  | T24: =[1]!SUMSTRING(O24:P24,"#") ->  | U24: =IF(Q24<>0,[1]!SUMSTRING(Q24:R24,"#"),"") ->  | V24: =[1]!SUMSTRING(S24:U24,"|") ->  | Z24: =IF(W24<>0,[1]!SUMSTRING(W24:Y24,"#"),"") ->  | AB24: 当前生命 | AC24: 67
A25: 4 | B25: 6002 | C25: 生命 | D25: 588 | E25: 攻击 | F25: 88 | M25: 1 | N25: 588 | O25: 2 | P25: 88 | S25: =[1]!SUMSTRING(M25:N25,"#") ->  | T25: =[1]!SUMSTRING(O25:P25,"#") ->  | U25: =IF(Q25<>0,[1]!SUMSTRING(Q25:R25,"#"),"") ->  | V25: =[1]!SUMSTRING(S25:U25,"|") ->  | Z25: =IF(W25<>0,[1]!SUMSTRING(W25:Y25,"#"),"") ->  | AB25: 火焰伤害 | AC25: 101
A26: 5 | B26: 6002 | C26: 生命 | D26: 735 | E26: 攻击 | F26: 110 | I26: 生花 | J26: 魔抗百分比 | K26: 300 | M26: 1 | N26: 735 | O26: 2 | P26: 110 | S26: =[1]!SUMSTRING(M26:N26,"#") ->  | T26: =[1]!SUMSTRING(O26:P26,"#") ->  | U26: =IF(Q26<>0,[1]!SUMSTRING(Q26:R26,"#"),"") ->  | V26: =[1]!SUMSTRING(S26:U26,"|") ->  | W26: 5 | X26: 64 | Y26: 300 | Z26: =IF(W26<>0,[1]!SUMSTRING(W26:Y26,"#"),"") ->  | AB26: 狂风伤害 | AC26: 102
A27: 6 | B27: 6002 | C27: 生命 | D27: 882 | E27: 攻击 | F27: 132 | M27: 1 | N27: 882 | O27: 2 | P27: 132 | S27: =[1]!SUMSTRING(M27:N27,"#") ->  | T27: =[1]!SUMSTRING(O27:P27,"#") ->  | U27: =IF(Q27<>0,[1]!SUMSTRING(Q27:R27,"#"),"") ->  | V27: =[1]!SUMSTRING(S27:U27,"|") ->  | Z27: =IF(W27<>0,[1]!SUMSTRING(W27:Y27,"#"),"") ->  | AB27: 碧水伤害 | AC27: 103
A28: 7 | B28: 6002 | C28: 生命 | D28: 1029 | E28: 攻击 | F28: 154 | M28: 1 | N28: 1029 | O28: 2 | P28: 154 | S28: =[1]!SUMSTRING(M28:N28,"#") ->  | T28: =[1]!SUMSTRING(O28:P28,"#") ->  | U28: =IF(Q28<>0,[1]!SUMSTRING(Q28:R28,"#"),"") ->  | V28: =[1]!SUMSTRING(S28:U28,"|") ->  | Z28: =IF(W28<>0,[1]!SUMSTRING(W28:Y28,"#"),"") ->  | AB28: 大地伤害 | AC28: 104
A29: 8 | B29: 6002 | C29: 生命 | D29: 1176 | E29: 攻击 | F29: 176 | I29: 秘法 | J29: 魔抗百分比 | K29: 300 | M29: 1 | N29: 1176 | O29: 2 | P29: 176 | S29: =[1]!SUMSTRING(M29:N29,"#") ->  | T29: =[1]!SUMSTRING(O29:P29,"#") ->  | U29: =IF(Q29<>0,[1]!SUMSTRING(Q29:R29,"#"),"") ->  | V29: =[1]!SUMSTRING(S29:U29,"|") ->  | W29: 3 | X29: 64 | Y29: 300 | Z29: =IF(W29<>0,[1]!SUMSTRING(W29:Y29,"#"),"") ->  | AB29: 神圣伤害 | AC29: 105
A30: 9 | B30: 6002 | C30: 生命 | D30: 1323 | E30: 攻击 | F30: 198 | M30: 1 | N30: 1323 | O30: 2 | P30: 198 | S30: =[1]!SUMSTRING(M30:N30,"#") ->  | T30: =[1]!SUMSTRING(O30:P30,"#") ->  | U30: =IF(Q30<>0,[1]!SUMSTRING(Q30:R30,"#"),"") ->  | V30: =[1]!SUMSTRING(S30:U30,"|") ->  | Z30: =IF(W30<>0,[1]!SUMSTRING(W30:Y30,"#"),"") ->  | AB30: 黑暗伤害 | AC30: 106
A31: 10 | B31: 6002 | C31: 生命 | D31: 1470 | E31: 攻击 | F31: 220 | M31: 1 | N31: 1470 | O31: 2 | P31: 220 | S31: =[1]!SUMSTRING(M31:N31,"#") ->  | T31: =[1]!SUMSTRING(O31:P31,"#") ->  | U31: =IF(Q31<>0,[1]!SUMSTRING(Q31:R31,"#"),"") ->  | V31: =[1]!SUMSTRING(S31:U31,"|") ->  | Z31: =IF(W31<>0,[1]!SUMSTRING(W31:Y31,"#"),"") ->  | AB31: 火焰抗性 | AC31: 107
A32: 11 | B32: 6002 | C32: 生命 | D32: 1617 | E32: 攻击 | F32: 242 | I32: 玄策 | J32: 魔抗百分比 | K32: 300 | M32: 1 | N32: 1617 | O32: 2 | P32: 242 | S32: =[1]!SUMSTRING(M32:N32,"#") ->  | T32: =[1]!SUMSTRING(O32:P32,"#") ->  | U32: =IF(Q32<>0,[1]!SUMSTRING(Q32:R32,"#"),"") ->  | V32: =[1]!SUMSTRING(S32:U32,"|") ->  | W32: 4 | X32: 64 | Y32: 300 | Z32: =IF(W32<>0,[1]!SUMSTRING(W32:Y32,"#"),"") ->  | AB32: 狂风抗性 | AC32: 108
A33: 12 | B33: 6002 | C33: 生命 | D33: 1764 | E33: 攻击 | F33: 264 | M33: 1 | N33: 1764 | O33: 2 | P33: 264 | S33: =[1]!SUMSTRING(M33:N33,"#") ->  | T33: =[1]!SUMSTRING(O33:P33,"#") ->  | U33: =IF(Q33<>0,[1]!SUMSTRING(Q33:R33,"#"),"") ->  | V33: =[1]!SUMSTRING(S33:U33,"|") ->  | Z33: =IF(W33<>0,[1]!SUMSTRING(W33:Y33,"#"),"") ->  | AB33: 碧水抗性 | AC33: 109
A34: 13 | B34: 6002 | C34: 生命 | D34: 1911 | E34: 攻击 | F34: 286 | M34: 1 | N34: 1911 | O34: 2 | P34: 286 | S34: =[1]!SUMSTRING(M34:N34,"#") ->  | T34: =[1]!SUMSTRING(O34:P34,"#") ->  | U34: =IF(Q34<>0,[1]!SUMSTRING(Q34:R34,"#"),"") ->  | V34: =[1]!SUMSTRING(S34:U34,"|") ->  | Z34: =IF(W34<>0,[1]!SUMSTRING(W34:Y34,"#"),"") ->  | AB34: 大地抗性 | AC34: 110
A35: 14 | B35: 6002 | C35: 生命 | D35: 2058 | E35: 攻击 | F35: 308 | I35: 天罚 | J35: 魔抗百分比 | K35: 300 | M35: 1 | N35: 2058 | O35: 2 | P35: 308 | S35: =[1]!SUMSTRING(M35:N35,"#") ->  | T35: =[1]!SUMSTRING(O35:P35,"#") ->  | U35: =IF(Q35<>0,[1]!SUMSTRING(Q35:R35,"#"),"") ->  | V35: =[1]!SUMSTRING(S35:U35,"|") ->  | W35: 2 | X35: 64 | Y35: 300 | Z35: =IF(W35<>0,[1]!SUMSTRING(W35:Y35,"#"),"") ->  | AB35: 神圣抗性 | AC35: 111
A36: 15 | B36: 6002 | C36: 生命 | D36: 2205 | E36: 攻击 | F36: 330 | M36: 1 | N36: 2205 | O36: 2 | P36: 330 | S36: =[1]!SUMSTRING(M36:N36,"#") ->  | T36: =[1]!SUMSTRING(O36:P36,"#") ->  | U36: =IF(Q36<>0,[1]!SUMSTRING(Q36:R36,"#"),"") ->  | V36: =[1]!SUMSTRING(S36:U36,"|") ->  | Z36: =IF(W36<>0,[1]!SUMSTRING(W36:Y36,"#"),"") ->  | AB36: 黑暗抗性 | AC36: 112
A37: 16 | B37: 6002 | C37: 生命 | D37: 2352 | E37: 攻击 | F37: 352 | M37: 1 | N37: 2352 | O37: 2 | P37: 352 | S37: =[1]!SUMSTRING(M37:N37,"#") ->  | T37: =[1]!SUMSTRING(O37:P37,"#") ->  | U37: =IF(Q37<>0,[1]!SUMSTRING(Q37:R37,"#"),"") ->  | V37: =[1]!SUMSTRING(S37:U37,"|") ->  | Z37: =IF(W37<>0,[1]!SUMSTRING(W37:Y37,"#"),"") -> 
A38: 17 | B38: 6002 | C38: 生命 | D38: 2500 | E38: 攻击 | F38: 375 | I38: 秘法 | J38: 魔抗百分比 | K38: 300 | M38: 1 | N38: 2500 | O38: 2 | P38: 375 | S38: =[1]!SUMSTRING(M38:N38,"#") ->  | T38: =[1]!SUMSTRING(O38:P38,"#") ->  | U38: =IF(Q38<>0,[1]!SUMSTRING(Q38:R38,"#"),"") ->  | V38: =[1]!SUMSTRING(S38:U38,"|") ->  | W38: 3 | X38: 64 | Y38: 300 | Z38: =IF(W38<>0,[1]!SUMSTRING(W38:Y38,"#"),"") -> 
A39: 18 | B39: 6002 | C39: 生命 | D39: 2647 | E39: 攻击 | F39: 397 | M39: 1 | N39: 2647 | O39: 2 | P39: 397 | S39: =[1]!SUMSTRING(M39:N39,"#") ->  | T39: =[1]!SUMSTRING(O39:P39,"#") ->  | U39: =IF(Q39<>0,[1]!SUMSTRING(Q39:R39,"#"),"") ->  | V39: =[1]!SUMSTRING(S39:U39,"|") ->  | Z39: =IF(W39<>0,[1]!SUMSTRING(W39:Y39,"#"),"") -> 
A40: 19 | B40: 6002 | C40: 生命 | D40: 2794 | E40: 攻击 | F40: 419 | M40: 1 | N40: 2794 | O40: 2 | P40: 419 | S40: =[1]!SUMSTRING(M40:N40,"#") ->  | T40: =[1]!SUMSTRING(O40:P40,"#") ->  | U40: =IF(Q40<>0,[1]!SUMSTRING(Q40:R40,"#"),"") ->  | V40: =[1]!SUMSTRING(S40:U40,"|") ->  | Z40: =IF(W40<>0,[1]!SUMSTRING(W40:Y40,"#"),"") -> 
A41: 20 | B41: 6002 | C41: 生命 | D41: 2941 | E41: 攻击 | F41: 441 | I41: 天罚 | J41: 魔抗百分比 | K41: 300 | M41: 1 | N41: 2941 | O41: 2 | P41: 441 | S41: =[1]!SUMSTRING(M41:N41,"#") ->  | T41: =[1]!SUMSTRING(O41:P41,"#") ->  | U41: =IF(Q41<>0,[1]!SUMSTRING(Q41:R41,"#"),"") ->  | V41: =[1]!SUMSTRING(S41:U41,"|") ->  | W41: 2 | X41: 64 | Y41: 300 | Z41: =IF(W41<>0,[1]!SUMSTRING(W41:Y41,"#"),"") -> 
A42: 1 | B42: 6003 | C42: 生命 | D42: 147 | E42: 魔抗 | F42: 22 | M42: 1 | N42: 147 | O42: 4 | P42: 22 | S42: =[1]!SUMSTRING(M42:N42,"#") ->  | T42: =[1]!SUMSTRING(O42:P42,"#") ->  | U42: =IF(Q42<>0,[1]!SUMSTRING(Q42:R42,"#"),"") ->  | V42: =[1]!SUMSTRING(S42:U42,"|") ->  | Z42: =IF(W42<>0,[1]!SUMSTRING(W42:Y42,"#"),"") -> 
A43: 2 | B43: 6003 | C43: 生命 | D43: 294 | E43: 魔抗 | F43: 44 | I43: 武卫 | J43: 生命百分比 | K43: 300 | M43: 1 | N43: 294 | O43: 4 | P43: 44 | S43: =[1]!SUMSTRING(M43:N43,"#") ->  | T43: =[1]!SUMSTRING(O43:P43,"#") ->  | U43: =IF(Q43<>0,[1]!SUMSTRING(Q43:R43,"#"),"") ->  | V43: =[1]!SUMSTRING(S43:U43,"|") ->  | W43: 1 | X43: 61 | Y43: 300 | Z43: =IF(W43<>0,[1]!SUMSTRING(W43:Y43,"#"),"") -> 
A44: 3 | B44: 6003 | C44: 生命 | D44: 441 | E44: 魔抗 | F44: 66 | M44: 1 | N44: 441 | O44: 4 | P44: 66 | S44: =[1]!SUMSTRING(M44:N44,"#") ->  | T44: =[1]!SUMSTRING(O44:P44,"#") ->  | U44: =IF(Q44<>0,[1]!SUMSTRING(Q44:R44,"#"),"") ->  | V44: =[1]!SUMSTRING(S44:U44,"|") ->  | Z44: =IF(W44<>0,[1]!SUMSTRING(W44:Y44,"#"),"") -> 
A45: 4 | B45: 6003 | C45: 生命 | D45: 588 | E45: 魔抗 | F45: 88 | M45: 1 | N45: 588 | O45: 4 | P45: 88 | S45: =[1]!SUMSTRING(M45:N45,"#") ->  | T45: =[1]!SUMSTRING(O45:P45,"#") ->  | U45: =IF(Q45<>0,[1]!SUMSTRING(Q45:R45,"#"),"") ->  | V45: =[1]!SUMSTRING(S45:U45,"|") ->  | Z45: =IF(W45<>0,[1]!SUMSTRING(W45:Y45,"#"),"") -> 
A46: 5 | B46: 6003 | C46: 生命 | D46: 735 | E46: 魔抗 | F46: 110 | I46: 生花 | J46: 生命百分比 | K46: 300 | M46: 1 | N46: 735 | O46: 4 | P46: 110 | S46: =[1]!SUMSTRING(M46:N46,"#") ->  | T46: =[1]!SUMSTRING(O46:P46,"#") ->  | U46: =IF(Q46<>0,[1]!SUMSTRING(Q46:R46,"#"),"") ->  | V46: =[1]!SUMSTRING(S46:U46,"|") ->  | W46: 5 | X46: 61 | Y46: 300 | Z46: =IF(W46<>0,[1]!SUMSTRING(W46:Y46,"#"),"") -> 
A47: 6 | B47: 6003 | C47: 生命 | D47: 882 | E47: 魔抗 | F47: 132 | M47: 1 | N47: 882 | O47: 4 | P47: 132 | S47: =[1]!SUMSTRING(M47:N47,"#") ->  | T47: =[1]!SUMSTRING(O47:P47,"#") ->  | U47: =IF(Q47<>0,[1]!SUMSTRING(Q47:R47,"#"),"") ->  | V47: =[1]!SUMSTRING(S47:U47,"|") ->  | Z47: =IF(W47<>0,[1]!SUMSTRING(W47:Y47,"#"),"") -> 
A48: 7 | B48: 6003 | C48: 生命 | D48: 1029 | E48: 魔抗 | F48: 154 | M48: 1 | N48: 1029 | O48: 4 | P48: 154 | S48: =[1]!SUMSTRING(M48:N48,"#") ->  | T48: =[1]!SUMSTRING(O48:P48,"#") ->  | U48: =IF(Q48<>0,[1]!SUMSTRING(Q48:R48,"#"),"") ->  | V48: =[1]!SUMSTRING(S48:U48,"|") ->  | Z48: =IF(W48<>0,[1]!SUMSTRING(W48:Y48,"#"),"") -> 
A49: 8 | B49: 6003 | C49: 生命 | D49: 1176 | E49: 魔抗 | F49: 176 | I49: 秘法 | J49: 生命百分比 | K49: 300 | M49: 1 | N49: 1176 | O49: 4 | P49: 176 | S49: =[1]!SUMSTRING(M49:N49,"#") ->  | T49: =[1]!SUMSTRING(O49:P49,"#") ->  | U49: =IF(Q49<>0,[1]!SUMSTRING(Q49:R49,"#"),"") ->  | V49: =[1]!SUMSTRING(S49:U49,"|") ->  | W49: 3 | X49: 61 | Y49: 300 | Z49: =IF(W49<>0,[1]!SUMSTRING(W49:Y49,"#"),"") -> 
A50: 9 | B50: 6003 | C50: 生命 | D50: 1323 | E50: 魔抗 | F50: 198 | M50: 1 | N50: 1323 | O50: 4 | P50: 198 | S50: =[1]!SUMSTRING(M50:N50,"#") ->  | T50: =[1]!SUMSTRING(O50:P50,"#") ->  | U50: =IF(Q50<>0,[1]!SUMSTRING(Q50:R50,"#"),"") ->  | V50: =[1]!SUMSTRING(S50:U50,"|") ->  | Z50: =IF(W50<>0,[1]!SUMSTRING(W50:Y50,"#"),"") -> 
A51: 10 | B51: 6003 | C51: 生命 | D51: 1470 | E51: 魔抗 | F51: 220 | M51: 1 | N51: 1470 | O51: 4 | P51: 220 | S51: =[1]!SUMSTRING(M51:N51,"#") ->  | T51: =[1]!SUMSTRING(O51:P51,"#") ->  | U51: =IF(Q51<>0,[1]!SUMSTRING(Q51:R51,"#"),"") ->  | V51: =[1]!SUMSTRING(S51:U51,"|") ->  | Z51: =IF(W51<>0,[1]!SUMSTRING(W51:Y51,"#"),"") -> 
A52: 11 | B52: 6003 | C52: 生命 | D52: 1617 | E52: 魔抗 | F52: 242 | I52: 玄策 | J52: 生命百分比 | K52: 300 | M52: 1 | N52: 1617 | O52: 4 | P52: 242 | S52: =[1]!SUMSTRING(M52:N52,"#") ->  | T52: =[1]!SUMSTRING(O52:P52,"#") ->  | U52: =IF(Q52<>0,[1]!SUMSTRING(Q52:R52,"#"),"") ->  | V52: =[1]!SUMSTRING(S52:U52,"|") ->  | W52: 4 | X52: 61 | Y52: 300 | Z52: =IF(W52<>0,[1]!SUMSTRING(W52:Y52,"#"),"") -> 
A53: 12 | B53: 6003 | C53: 生命 | D53: 1764 | E53: 魔抗 | F53: 264 | M53: 1 | N53: 1764 | O53: 4 | P53: 264 | S53: =[1]!SUMSTRING(M53:N53,"#") ->  | T53: =[1]!SUMSTRING(O53:P53,"#") ->  | U53: =IF(Q53<>0,[1]!SUMSTRING(Q53:R53,"#"),"") ->  | V53: =[1]!SUMSTRING(S53:U53,"|") ->  | Z53: =IF(W53<>0,[1]!SUMSTRING(W53:Y53,"#"),"") -> 
A54: 13 | B54: 6003 | C54: 生命 | D54: 1911 | E54: 魔抗 | F54: 286 | M54: 1 | N54: 1911 | O54: 4 | P54: 286 | S54: =[1]!SUMSTRING(M54:N54,"#") ->  | T54: =[1]!SUMSTRING(O54:P54,"#") ->  | U54: =IF(Q54<>0,[1]!SUMSTRING(Q54:R54,"#"),"") ->  | V54: =[1]!SUMSTRING(S54:U54,"|") ->  | Z54: =IF(W54<>0,[1]!SUMSTRING(W54:Y54,"#"),"") -> 
A55: 14 | B55: 6003 | C55: 生命 | D55: 2058 | E55: 魔抗 | F55: 308 | I55: 天罚 | J55: 生命百分比 | K55: 300 | M55: 1 | N55: 2058 | O55: 4 | P55: 308 | S55: =[1]!SUMSTRING(M55:N55,"#") ->  | T55: =[1]!SUMSTRING(O55:P55,"#") ->  | U55: =IF(Q55<>0,[1]!SUMSTRING(Q55:R55,"#"),"") ->  | V55: =[1]!SUMSTRING(S55:U55,"|") ->  | W55: 2 | X55: 61 | Y55: 300 | Z55: =IF(W55<>0,[1]!SUMSTRING(W55:Y55,"#"),"") -> 
A56: 15 | B56: 6003 | C56: 生命 | D56: 2205 | E56: 魔抗 | F56: 330 | M56: 1 | N56: 2205 | O56: 4 | P56: 330 | S56: =[1]!SUMSTRING(M56:N56,"#") ->  | T56: =[1]!SUMSTRING(O56:P56,"#") ->  | U56: =IF(Q56<>0,[1]!SUMSTRING(Q56:R56,"#"),"") ->  | V56: =[1]!SUMSTRING(S56:U56,"|") ->  | Z56: =IF(W56<>0,[1]!SUMSTRING(W56:Y56,"#"),"") -> 
A57: 16 | B57: 6003 | C57: 生命 | D57: 2352 | E57: 魔抗 | F57: 352 | M57: 1 | N57: 2352 | O57: 4 | P57: 352 | S57: =[1]!SUMSTRING(M57:N57,"#") ->  | T57: =[1]!SUMSTRING(O57:P57,"#") ->  | U57: =IF(Q57<>0,[1]!SUMSTRING(Q57:R57,"#"),"") ->  | V57: =[1]!SUMSTRING(S57:U57,"|") ->  | Z57: =IF(W57<>0,[1]!SUMSTRING(W57:Y57,"#"),"") -> 
A58: 17 | B58: 6003 | C58: 生命 | D58: 2500 | E58: 魔抗 | F58: 375 | I58: 秘法 | J58: 生命百分比 | K58: 300 | M58: 1 | N58: 2500 | O58: 4 | P58: 375 | S58: =[1]!SUMSTRING(M58:N58,"#") ->  | T58: =[1]!SUMSTRING(O58:P58,"#") ->  | U58: =IF(Q58<>0,[1]!SUMSTRING(Q58:R58,"#"),"") ->  | V58: =[1]!SUMSTRING(S58:U58,"|") ->  | W58: 3 | X58: 61 | Y58: 300 | Z58: =IF(W58<>0,[1]!SUMSTRING(W58:Y58,"#"),"") -> 
A59: 18 | B59: 6003 | C59: 生命 | D59: 2647 | E59: 魔抗 | F59: 397 | M59: 1 | N59: 2647 | O59: 4 | P59: 397 | S59: =[1]!SUMSTRING(M59:N59,"#") ->  | T59: =[1]!SUMSTRING(O59:P59,"#") ->  | U59: =IF(Q59<>0,[1]!SUMSTRING(Q59:R59,"#"),"") ->  | V59: =[1]!SUMSTRING(S59:U59,"|") ->  | Z59: =IF(W59<>0,[1]!SUMSTRING(W59:Y59,"#"),"") -> 
A60: 19 | B60: 6003 | C60: 生命 | D60: 2794 | E60: 魔抗 | F60: 419 | M60: 1 | N60: 2794 | O60: 4 | P60: 419 | S60: =[1]!SUMSTRING(M60:N60,"#") ->  | T60: =[1]!SUMSTRING(O60:P60,"#") ->  | U60: =IF(Q60<>0,[1]!SUMSTRING(Q60:R60,"#"),"") ->  | V60: =[1]!SUMSTRING(S60:U60,"|") ->  | Z60: =IF(W60<>0,[1]!SUMSTRING(W60:Y60,"#"),"") -> 
A61: 20 | B61: 6003 | C61: 生命 | D61: 2941 | E61: 魔抗 | F61: 441 | I61: 天罚 | J61: 生命百分比 | K61: 300 | M61: 1 | N61: 2941 | O61: 4 | P61: 441 | S61: =[1]!SUMSTRING(M61:N61,"#") ->  | T61: =[1]!SUMSTRING(O61:P61,"#") ->  | U61: =IF(Q61<>0,[1]!SUMSTRING(Q61:R61,"#"),"") ->  | V61: =[1]!SUMSTRING(S61:U61,"|") ->  | W61: 2 | X61: 61 | Y61: 300 | Z61: =IF(W61<>0,[1]!SUMSTRING(W61:Y61,"#"),"") -> 
A62: 1 | B62: 6004 | C62: 生命 | D62: 147 | E62: 护甲 | F62: 22 | M62: 1 | N62: 147 | O62: 3 | P62: 22 | S62: =[1]!SUMSTRING(M62:N62,"#") ->  | T62: =[1]!SUMSTRING(O62:P62,"#") ->  | U62: =IF(Q62<>0,[1]!SUMSTRING(Q62:R62,"#"),"") ->  | V62: =[1]!SUMSTRING(S62:U62,"|") ->  | Z62: =IF(W62<>0,[1]!SUMSTRING(W62:Y62,"#"),"") -> 
A63: 2 | B63: 6004 | C63: 生命 | D63: 294 | E63: 护甲 | F63: 44 | I63: 武卫 | J63: 护甲百分比 | K63: 300 | M63: 1 | N63: 294 | O63: 3 | P63: 44 | S63: =[1]!SUMSTRING(M63:N63,"#") ->  | T63: =[1]!SUMSTRING(O63:P63,"#") ->  | U63: =IF(Q63<>0,[1]!SUMSTRING(Q63:R63,"#"),"") ->  | V63: =[1]!SUMSTRING(S63:U63,"|") ->  | W63: 1 | X63: 63 | Y63: 300 | Z63: =IF(W63<>0,[1]!SUMSTRING(W63:Y63,"#"),"") -> 
A64: 3 | B64: 6004 | C64: 生命 | D64: 441 | E64: 护甲 | F64: 66 | M64: 1 | N64: 441 | O64: 3 | P64: 66 | S64: =[1]!SUMSTRING(M64:N64,"#") ->  | T64: =[1]!SUMSTRING(O64:P64,"#") ->  | U64: =IF(Q64<>0,[1]!SUMSTRING(Q64:R64,"#"),"") ->  | V64: =[1]!SUMSTRING(S64:U64,"|") ->  | Z64: =IF(W64<>0,[1]!SUMSTRING(W64:Y64,"#"),"") -> 
A65: 4 | B65: 6004 | C65: 生命 | D65: 588 | E65: 护甲 | F65: 88 | M65: 1 | N65: 588 | O65: 3 | P65: 88 | S65: =[1]!SUMSTRING(M65:N65,"#") ->  | T65: =[1]!SUMSTRING(O65:P65,"#") ->  | U65: =IF(Q65<>0,[1]!SUMSTRING(Q65:R65,"#"),"") ->  | V65: =[1]!SUMSTRING(S65:U65,"|") ->  | Z65: =IF(W65<>0,[1]!SUMSTRING(W65:Y65,"#"),"") -> 
A66: 5 | B66: 6004 | C66: 生命 | D66: 735 | E66: 护甲 | F66: 110 | I66: 生花 | J66: 护甲百分比 | K66: 300 | M66: 1 | N66: 735 | O66: 3 | P66: 110 | S66: =[1]!SUMSTRING(M66:N66,"#") ->  | T66: =[1]!SUMSTRING(O66:P66,"#") ->  | U66: =IF(Q66<>0,[1]!SUMSTRING(Q66:R66,"#"),"") ->  | V66: =[1]!SUMSTRING(S66:U66,"|") ->  | W66: 5 | X66: 63 | Y66: 300 | Z66: =IF(W66<>0,[1]!SUMSTRING(W66:Y66,"#"),"") -> 
A67: 6 | B67: 6004 | C67: 生命 | D67: 882 | E67: 护甲 | F67: 132 | M67: =VLOOKUP(C67,$AB:$AC,2,0) -> 1 | N67: =D67 -> 882 | O67: =VLOOKUP(E67,$AB:$AC,2,0) -> 3 | P67: =F67 -> 132 | Q67: =IF(G67<>0,VLOOKUP(G67,$AB:$AC,2,0),"") ->  | R67: =IF(H67<>0,H67,"") ->  | S67: =[1]!SUMSTRING(M67:N67,"#") ->  | T67: =[1]!SUMSTRING(O67:P67,"#") ->  | U67: =IF(Q67<>0,[1]!SUMSTRING(Q67:R67,"#"),"") ->  | V67: =[1]!SUMSTRING(S67:U67,"|") ->  | X67: =IF(J67<>0,VLOOKUP(J67,$AB:$AC,2,0),"") ->  | Y67: =IF(K67<>0,K67,"") ->  | Z67: =IF(W67<>0,[1]!SUMSTRING(W67:Y67,"#"),"") -> 
A68: 7 | B68: 6004 | C68: 生命 | D68: 1029 | E68: 护甲 | F68: 154 | M68: 1 | N68: 1029 | O68: 3 | P68: 154 | S68: =[1]!SUMSTRING(M68:N68,"#") ->  | T68: =[1]!SUMSTRING(O68:P68,"#") ->  | U68: =IF(Q68<>0,[1]!SUMSTRING(Q68:R68,"#"),"") ->  | V68: =[1]!SUMSTRING(S68:U68,"|") ->  | W68: =IF(I68<>0,VLOOKUP(I68,$AG$3:$AH$7,2,0),"") ->  | Z68: =IF(W68<>0,[1]!SUMSTRING(W68:Y68,"#"),"") -> 
A69: 8 | B69: 6004 | C69: 生命 | D69: 1176 | E69: 护甲 | F69: 176 | I69: 秘法 | J69: 护甲百分比 | K69: 300 | M69: 1 | N69: 1176 | O69: 3 | P69: 176 | S69: =[1]!SUMSTRING(M69:N69,"#") ->  | T69: =[1]!SUMSTRING(O69:P69,"#") ->  | U69: =IF(Q69<>0,[1]!SUMSTRING(Q69:R69,"#"),"") ->  | V69: =[1]!SUMSTRING(S69:U69,"|") ->  | W69: 3 | X69: 63 | Y69: 300 | Z69: =IF(W69<>0,[1]!SUMSTRING(W69:Y69,"#"),"") -> 
A70: 9 | B70: 6004 | C70: 生命 | D70: 1323 | E70: 护甲 | F70: 198 | M70: 1 | N70: 1323 | O70: 3 | P70: 198 | S70: =[1]!SUMSTRING(M70:N70,"#") ->  | T70: =[1]!SUMSTRING(O70:P70,"#") ->  | U70: =IF(Q70<>0,[1]!SUMSTRING(Q70:R70,"#"),"") ->  | V70: =[1]!SUMSTRING(S70:U70,"|") ->  | Z70: =IF(W70<>0,[1]!SUMSTRING(W70:Y70,"#"),"") -> 
A71: 10 | B71: 6004 | C71: 生命 | D71: 1470 | E71: 护甲 | F71: 220 | M71: 1 | N71: 1470 | O71: 3 | P71: 220 | S71: =[1]!SUMSTRING(M71:N71,"#") ->  | T71: =[1]!SUMSTRING(O71:P71,"#") ->  | U71: =IF(Q71<>0,[1]!SUMSTRING(Q71:R71,"#"),"") ->  | V71: =[1]!SUMSTRING(S71:U71,"|") ->  | Z71: =IF(W71<>0,[1]!SUMSTRING(W71:Y71,"#"),"") -> 
A72: 11 | B72: 6004 | C72: 生命 | D72: 1617 | E72: 护甲 | F72: 242 | I72: 玄策 | J72: 护甲百分比 | K72: 300 | M72: 1 | N72: 1617 | O72: 3 | P72: 242 | S72: =[1]!SUMSTRING(M72:N72,"#") ->  | T72: =[1]!SUMSTRING(O72:P72,"#") ->  | U72: =IF(Q72<>0,[1]!SUMSTRING(Q72:R72,"#"),"") ->  | V72: =[1]!SUMSTRING(S72:U72,"|") ->  | W72: 4 | X72: 63 | Y72: 300 | Z72: =IF(W72<>0,[1]!SUMSTRING(W72:Y72,"#"),"") -> 
A73: 12 | B73: 6004 | C73: 生命 | D73: 1764 | E73: 护甲 | F73: 264 | M73: 1 | N73: 1764 | O73: 3 | P73: 264 | S73: =[1]!SUMSTRING(M73:N73,"#") ->  | T73: =[1]!SUMSTRING(O73:P73,"#") ->  | U73: =IF(Q73<>0,[1]!SUMSTRING(Q73:R73,"#"),"") ->  | V73: =[1]!SUMSTRING(S73:U73,"|") ->  | Z73: =IF(W73<>0,[1]!SUMSTRING(W73:Y73,"#"),"") -> 
A74: 13 | B74: 6004 | C74: 生命 | D74: 1911 | E74: 护甲 | F74: 286 | M74: 1 | N74: 1911 | O74: 3 | P74: 286 | S74: =[1]!SUMSTRING(M74:N74,"#") ->  | T74: =[1]!SUMSTRING(O74:P74,"#") ->  | U74: =IF(Q74<>0,[1]!SUMSTRING(Q74:R74,"#"),"") ->  | V74: =[1]!SUMSTRING(S74:U74,"|") ->  | Z74: =IF(W74<>0,[1]!SUMSTRING(W74:Y74,"#"),"") -> 
A75: 14 | B75: 6004 | C75: 生命 | D75: 2058 | E75: 护甲 | F75: 308 | I75: 天罚 | J75: 护甲百分比 | K75: 300 | M75: 1 | N75: 2058 | O75: 3 | P75: 308 | S75: =[1]!SUMSTRING(M75:N75,"#") ->  | T75: =[1]!SUMSTRING(O75:P75,"#") ->  | U75: =IF(Q75<>0,[1]!SUMSTRING(Q75:R75,"#"),"") ->  | V75: =[1]!SUMSTRING(S75:U75,"|") ->  | W75: 2 | X75: 63 | Y75: 300 | Z75: =IF(W75<>0,[1]!SUMSTRING(W75:Y75,"#"),"") -> 
A76: 15 | B76: 6004 | C76: 生命 | D76: 2205 | E76: 护甲 | F76: 330 | M76: 1 | N76: 2205 | O76: 3 | P76: 330 | S76: =[1]!SUMSTRING(M76:N76,"#") ->  | T76: =[1]!SUMSTRING(O76:P76,"#") ->  | U76: =IF(Q76<>0,[1]!SUMSTRING(Q76:R76,"#"),"") ->  | V76: =[1]!SUMSTRING(S76:U76,"|") ->  | Z76: =IF(W76<>0,[1]!SUMSTRING(W76:Y76,"#"),"") -> 
A77: 16 | B77: 6004 | C77: 生命 | D77: 2352 | E77: 护甲 | F77: 352 | M77: 1 | N77: 2352 | O77: 3 | P77: 352 | S77: =[1]!SUMSTRING(M77:N77,"#") ->  | T77: =[1]!SUMSTRING(O77:P77,"#") ->  | U77: =IF(Q77<>0,[1]!SUMSTRING(Q77:R77,"#"),"") ->  | V77: =[1]!SUMSTRING(S77:U77,"|") ->  | Z77: =IF(W77<>0,[1]!SUMSTRING(W77:Y77,"#"),"") -> 
A78: 17 | B78: 6004 | C78: 生命 | D78: 2500 | E78: 护甲 | F78: 375 | I78: 秘法 | J78: 护甲百分比 | K78: 300 | M78: 1 | N78: 2500 | O78: 3 | P78: 375 | S78: =[1]!SUMSTRING(M78:N78,"#") ->  | T78: =[1]!SUMSTRING(O78:P78,"#") ->  | U78: =IF(Q78<>0,[1]!SUMSTRING(Q78:R78,"#"),"") ->  | V78: =[1]!SUMSTRING(S78:U78,"|") ->  | W78: 3 | X78: 63 | Y78: 300 | Z78: =IF(W78<>0,[1]!SUMSTRING(W78:Y78,"#"),"") -> 
A79: 18 | B79: 6004 | C79: 生命 | D79: 2647 | E79: 护甲 | F79: 397 | M79: 1 | N79: 2647 | O79: 3 | P79: 397 | S79: =[1]!SUMSTRING(M79:N79,"#") ->  | T79: =[1]!SUMSTRING(O79:P79,"#") ->  | U79: =IF(Q79<>0,[1]!SUMSTRING(Q79:R79,"#"),"") ->  | V79: =[1]!SUMSTRING(S79:U79,"|") ->  | Z79: =IF(W79<>0,[1]!SUMSTRING(W79:Y79,"#"),"") -> 
A80: 19 | B80: 6004 | C80: 生命 | D80: 2794 | E80: 护甲 | F80: 419 | M80: 1 | N80: 2794 | O80: 3 | P80: 419 | S80: =[1]!SUMSTRING(M80:N80,"#") ->  | T80: =[1]!SUMSTRING(O80:P80,"#") ->  | U80: =IF(Q80<>0,[1]!SUMSTRING(Q80:R80,"#"),"") ->  | V80: =[1]!SUMSTRING(S80:U80,"|") ->  | Z80: =IF(W80<>0,[1]!SUMSTRING(W80:Y80,"#"),"") -> 
A81: 20 | B81: 6004 | C81: 生命 | D81: 2941 | E81: 护甲 | F81: 441 | I81: 天罚 | J81: 护甲百分比 | K81: 300 | M81: 1 | N81: 2941 | O81: 3 | P81: 441 | S81: =[1]!SUMSTRING(M81:N81,"#") ->  | T81: =[1]!SUMSTRING(O81:P81,"#") ->  | U81: =IF(Q81<>0,[1]!SUMSTRING(Q81:R81,"#"),"") ->  | V81: =[1]!SUMSTRING(S81:U81,"|") ->  | W81: 2 | X81: 63 | Y81: 300 | Z81: =IF(W81<>0,[1]!SUMSTRING(W81:Y81,"#"),"") -> 
A82: 1 | B82: 6005 | C82: 生命 | D82: 147 | E82: 攻击 | F82: 22 | M82: 1 | N82: 147 | O82: 2 | P82: 22 | S82: =[1]!SUMSTRING(M82:N82,"#") ->  | T82: =[1]!SUMSTRING(O82:P82,"#") ->  | U82: =IF(Q82<>0,[1]!SUMSTRING(Q82:R82,"#"),"") ->  | V82: =[1]!SUMSTRING(S82:U82,"|") ->  | Z82: =IF(W82<>0,[1]!SUMSTRING(W82:Y82,"#"),"") -> 
A83: 2 | B83: 6005 | C83: 生命 | D83: 294 | E83: 攻击 | F83: 44 | I83: 武卫 | J83: 魔抗百分比 | K83: 300 | M83: 1 | N83: 294 | O83: 2 | P83: 44 | S83: =[1]!SUMSTRING(M83:N83,"#") ->  | T83: =[1]!SUMSTRING(O83:P83,"#") ->  | U83: =IF(Q83<>0,[1]!SUMSTRING(Q83:R83,"#"),"") ->  | V83: =[1]!SUMSTRING(S83:U83,"|") ->  | W83: 1 | X83: 64 | Y83: 300 | Z83: =IF(W83<>0,[1]!SUMSTRING(W83:Y83,"#"),"") -> 
A84: 3 | B84: 6005 | C84: 生命 | D84: 441 | E84: 攻击 | F84: 66 | M84: 1 | N84: 441 | O84: 2 | P84: 66 | S84: =[1]!SUMSTRING(M84:N84,"#") ->  | T84: =[1]!SUMSTRING(O84:P84,"#") ->  | U84: =IF(Q84<>0,[1]!SUMSTRING(Q84:R84,"#"),"") ->  | V84: =[1]!SUMSTRING(S84:U84,"|") ->  | Z84: =IF(W84<>0,[1]!SUMSTRING(W84:Y84,"#"),"") -> 
A85: 4 | B85: 6005 | C85: 生命 | D85: 588 | E85: 攻击 | F85: 88 | M85: 1 | N85: 588 | O85: 2 | P85: 88 | S85: =[1]!SUMSTRING(M85:N85,"#") ->  | T85: =[1]!SUMSTRING(O85:P85,"#") ->  | U85: =IF(Q85<>0,[1]!SUMSTRING(Q85:R85,"#"),"") ->  | V85: =[1]!SUMSTRING(S85:U85,"|") ->  | Z85: =IF(W85<>0,[1]!SUMSTRING(W85:Y85,"#"),"") -> 
A86: 5 | B86: 6005 | C86: 生命 | D86: 735 | E86: 攻击 | F86: 110 | I86: 生花 | J86: 魔抗百分比 | K86: 300 | M86: 1 | N86: 735 | O86: 2 | P86: 110 | S86: =[1]!SUMSTRING(M86:N86,"#") ->  | T86: =[1]!SUMSTRING(O86:P86,"#") ->  | U86: =IF(Q86<>0,[1]!SUMSTRING(Q86:R86,"#"),"") ->  | V86: =[1]!SUMSTRING(S86:U86,"|") ->  | W86: 5 | X86: 64 | Y86: 300 | Z86: =IF(W86<>0,[1]!SUMSTRING(W86:Y86,"#"),"") -> 
A87: =A67 -> 6 | B87: =B67+1 -> 6005 | C87: 生命 | D87: 882 | E87: 攻击 | F87: 132 | M87: 1 | N87: 882 | O87: 2 | P87: 132 | S87: =[1]!SUMSTRING(M87:N87,"#") ->  | T87: =[1]!SUMSTRING(O87:P87,"#") ->  | U87: =IF(Q87<>0,[1]!SUMSTRING(Q87:R87,"#"),"") ->  | V87: =[1]!SUMSTRING(S87:U87,"|") ->  | Z87: =IF(W87<>0,[1]!SUMSTRING(W87:Y87,"#"),"") -> 
A88: 7 | B88: 6005 | C88: 生命 | D88: 1029 | E88: 攻击 | F88: 154 | M88: 1 | N88: 1029 | O88: 2 | P88: 154 | S88: =[1]!SUMSTRING(M88:N88,"#") ->  | T88: =[1]!SUMSTRING(O88:P88,"#") ->  | U88: =IF(Q88<>0,[1]!SUMSTRING(Q88:R88,"#"),"") ->  | V88: =[1]!SUMSTRING(S88:U88,"|") ->  | Z88: =IF(W88<>0,[1]!SUMSTRING(W88:Y88,"#"),"") -> 
A89: 8 | B89: 6005 | C89: 生命 | D89: 1176 | E89: 攻击 | F89: 176 | I89: 秘法 | J89: 魔抗百分比 | K89: 300 | M89: 1 | N89: 1176 | O89: 2 | P89: 176 | S89: =[1]!SUMSTRING(M89:N89,"#") ->  | T89: =[1]!SUMSTRING(O89:P89,"#") ->  | U89: =IF(Q89<>0,[1]!SUMSTRING(Q89:R89,"#"),"") ->  | V89: =[1]!SUMSTRING(S89:U89,"|") ->  | W89: 3 | X89: 64 | Y89: 300 | Z89: =IF(W89<>0,[1]!SUMSTRING(W89:Y89,"#"),"") -> 
A90: 9 | B90: 6005 | C90: 生命 | D90: 1323 | E90: 攻击 | F90: 198 | M90: 1 | N90: 1323 | O90: 2 | P90: 198 | S90: =[1]!SUMSTRING(M90:N90,"#") ->  | T90: =[1]!SUMSTRING(O90:P90,"#") ->  | U90: =IF(Q90<>0,[1]!SUMSTRING(Q90:R90,"#"),"") ->  | V90: =[1]!SUMSTRING(S90:U90,"|") ->  | Z90: =IF(W90<>0,[1]!SUMSTRING(W90:Y90,"#"),"") -> 
A91: 10 | B91: 6005 | C91: 生命 | D91: 1470 | E91: 攻击 | F91: 220 | M91: 1 | N91: 1470 | O91: 2 | P91: 220 | S91: =[1]!SUMSTRING(M91:N91,"#") ->  | T91: =[1]!SUMSTRING(O91:P91,"#") ->  | U91: =IF(Q91<>0,[1]!SUMSTRING(Q91:R91,"#"),"") ->  | V91: =[1]!SUMSTRING(S91:U91,"|") ->  | Z91: =IF(W91<>0,[1]!SUMSTRING(W91:Y91,"#"),"") -> 
A92: 11 | B92: 6005 | C92: 生命 | D92: 1617 | E92: 攻击 | F92: 242 | I92: 玄策 | J92: 魔抗百分比 | K92: 300 | M92: 1 | N92: 1617 | O92: 2 | P92: 242 | S92: =[1]!SUMSTRING(M92:N92,"#") ->  | T92: =[1]!SUMSTRING(O92:P92,"#") ->  | U92: =IF(Q92<>0,[1]!SUMSTRING(Q92:R92,"#"),"") ->  | V92: =[1]!SUMSTRING(S92:U92,"|") ->  | W92: 4 | X92: 64 | Y92: 300 | Z92: =IF(W92<>0,[1]!SUMSTRING(W92:Y92,"#"),"") -> 
A93: 12 | B93: 6005 | C93: 生命 | D93: 1764 | E93: 攻击 | F93: 264 | M93: 1 | N93: 1764 | O93: 2 | P93: 264 | S93: =[1]!SUMSTRING(M93:N93,"#") ->  | T93: =[1]!SUMSTRING(O93:P93,"#") ->  | U93: =IF(Q93<>0,[1]!SUMSTRING(Q93:R93,"#"),"") ->  | V93: =[1]!SUMSTRING(S93:U93,"|") ->  | Z93: =IF(W93<>0,[1]!SUMSTRING(W93:Y93,"#"),"") -> 
A94: 13 | B94: 6005 | C94: 生命 | D94: 1911 | E94: 攻击 | F94: 286 | M94: 1 | N94: 1911 | O94: 2 | P94: 286 | S94: =[1]!SUMSTRING(M94:N94,"#") ->  | T94: =[1]!SUMSTRING(O94:P94,"#") ->  | U94: =IF(Q94<>0,[1]!SUMSTRING(Q94:R94,"#"),"") ->  | V94: =[1]!SUMSTRING(S94:U94,"|") ->  | Z94: =IF(W94<>0,[1]!SUMSTRING(W94:Y94,"#"),"") -> 
A95: 14 | B95: 6005 | C95: 生命 | D95: 2058 | E95: 攻击 | F95: 308 | I95: 天罚 | J95: 魔抗百分比 | K95: 300 | M95: 1 | N95: 2058 | O95: 2 | P95: 308 | S95: =[1]!SUMSTRING(M95:N95,"#") ->  | T95: =[1]!SUMSTRING(O95:P95,"#") ->  | U95: =IF(Q95<>0,[1]!SUMSTRING(Q95:R95,"#"),"") ->  | V95: =[1]!SUMSTRING(S95:U95,"|") ->  | W95: 2 | X95: 64 | Y95: 300 | Z95: =IF(W95<>0,[1]!SUMSTRING(W95:Y95,"#"),"") -> 
A96: 15 | B96: 6005 | C96: 生命 | D96: 2205 | E96: 攻击 | F96: 330 | M96: 1 | N96: 2205 | O96: 2 | P96: 330 | S96: =[1]!SUMSTRING(M96:N96,"#") ->  | T96: =[1]!SUMSTRING(O96:P96,"#") ->  | U96: =IF(Q96<>0,[1]!SUMSTRING(Q96:R96,"#"),"") ->  | V96: =[1]!SUMSTRING(S96:U96,"|") ->  | Z96: =IF(W96<>0,[1]!SUMSTRING(W96:Y96,"#"),"") -> 
A97: 16 | B97: 6005 | C97: 生命 | D97: 2352 | E97: 攻击 | F97: 352 | M97: 1 | N97: 2352 | O97: 2 | P97: 352 | S97: =[1]!SUMSTRING(M97:N97,"#") ->  | T97: =[1]!SUMSTRING(O97:P97,"#") ->  | U97: =IF(Q97<>0,[1]!SUMSTRING(Q97:R97,"#"),"") ->  | V97: =[1]!SUMSTRING(S97:U97,"|") ->  | Z97: =IF(W97<>0,[1]!SUMSTRING(W97:Y97,"#"),"") -> 
A98: 17 | B98: 6005 | C98: 生命 | D98: 2500 | E98: 攻击 | F98: 375 | I98: 秘法 | J98: 魔抗百分比 | K98: 300 | M98: 1 | N98: 2500 | O98: 2 | P98: 375 | S98: =[1]!SUMSTRING(M98:N98,"#") ->  | T98: =[1]!SUMSTRING(O98:P98,"#") ->  | U98: =IF(Q98<>0,[1]!SUMSTRING(Q98:R98,"#"),"") ->  | V98: =[1]!SUMSTRING(S98:U98,"|") ->  | W98: 3 | X98: 64 | Y98: 300 | Z98: =IF(W98<>0,[1]!SUMSTRING(W98:Y98,"#"),"") -> 
A99: 18 | B99: 6005 | C99: 生命 | D99: 2647 | E99: 攻击 | F99: 397 | M99: 1 | N99: 2647 | O99: 2 | P99: 397 | S99: =[1]!SUMSTRING(M99:N99,"#") ->  | T99: =[1]!SUMSTRING(O99:P99,"#") ->  | U99: =IF(Q99<>0,[1]!SUMSTRING(Q99:R99,"#"),"") ->  | V99: =[1]!SUMSTRING(S99:U99,"|") ->  | Z99: =IF(W99<>0,[1]!SUMSTRING(W99:Y99,"#"),"") -> 
A100: 19 | B100: 6005 | C100: 生命 | D100: 2794 | E100: 攻击 | F100: 419 | M100: 1 | N100: 2794 | O100: 2 | P100: 419 | S100: =[1]!SUMSTRING(M100:N100,"#") ->  | T100: =[1]!SUMSTRING(O100:P100,"#") ->  | U100: =IF(Q100<>0,[1]!SUMSTRING(Q100:R100,"#"),"") ->  | V100: =[1]!SUMSTRING(S100:U100,"|") ->  | Z100: =IF(W100<>0,[1]!SUMSTRING(W100:Y100,"#"),"") -> 
A101: 20 | B101: 6005 | C101: 生命 | D101: 2941 | E101: 攻击 | F101: 441 | I101: 天罚 | J101: 魔抗百分比 | K101: 300 | M101: 1 | N101: 2941 | O101: 2 | P101: 441 | S101: =[1]!SUMSTRING(M101:N101,"#") ->  | T101: =[1]!SUMSTRING(O101:P101,"#") ->  | U101: =IF(Q101<>0,[1]!SUMSTRING(Q101:R101,"#"),"") ->  | V101: =[1]!SUMSTRING(S101:U101,"|") ->  | W101: 2 | X101: 64 | Y101: 300 | Z101: =IF(W101<>0,[1]!SUMSTRING(W101:Y101,"#"),"") -> 
A102: 1 | B102: 6006 | C102: 生命 | D102: 147 | E102: 魔抗 | F102: 22 | M102: 1 | N102: 147 | O102: 4 | P102: 22 | S102: =[1]!SUMSTRING(M102:N102,"#") ->  | T102: =[1]!SUMSTRING(O102:P102,"#") ->  | U102: =IF(Q102<>0,[1]!SUMSTRING(Q102:R102,"#"),"") ->  | V102: =[1]!SUMSTRING(S102:U102,"|") ->  | Z102: =IF(W102<>0,[1]!SUMSTRING(W102:Y102,"#"),"") -> 
A103: 2 | B103: 6006 | C103: 生命 | D103: 294 | E103: 魔抗 | F103: 44 | I103: 武卫 | J103: 生命百分比 | K103: 300 | M103: 1 | N103: 294 | O103: 4 | P103: 44 | S103: =[1]!SUMSTRING(M103:N103,"#") ->  | T103: =[1]!SUMSTRING(O103:P103,"#") ->  | U103: =IF(Q103<>0,[1]!SUMSTRING(Q103:R103,"#"),"") ->  | V103: =[1]!SUMSTRING(S103:U103,"|") ->  | W103: 1 | X103: 61 | Y103: 300 | Z103: =IF(W103<>0,[1]!SUMSTRING(W103:Y103,"#"),"") -> 
A104: 3 | B104: 6006 | C104: 生命 | D104: 441 | E104: 魔抗 | F104: 66 | M104: 1 | N104: 441 | O104: 4 | P104: 66 | S104: =[1]!SUMSTRING(M104:N104,"#") ->  | T104: =[1]!SUMSTRING(O104:P104,"#") ->  | U104: =IF(Q104<>0,[1]!SUMSTRING(Q104:R104,"#"),"") ->  | V104: =[1]!SUMSTRING(S104:U104,"|") ->  | Z104: =IF(W104<>0,[1]!SUMSTRING(W104:Y104,"#"),"") -> 
A105: 4 | B105: 6006 | C105: 生命 | D105: 588 | E105: 魔抗 | F105: 88 | M105: 1 | N105: 588 | O105: 4 | P105: 88 | S105: =[1]!SUMSTRING(M105:N105,"#") ->  | T105: =[1]!SUMSTRING(O105:P105,"#") ->  | U105: =IF(Q105<>0,[1]!SUMSTRING(Q105:R105,"#"),"") ->  | V105: =[1]!SUMSTRING(S105:U105,"|") ->  | Z105: =IF(W105<>0,[1]!SUMSTRING(W105:Y105,"#"),"") -> 
A106: 5 | B106: 6006 | C106: 生命 | D106: 735 | E106: 魔抗 | F106: 110 | I106: 生花 | J106: 生命百分比 | K106: 300 | M106: 1 | N106: 735 | O106: 4 | P106: 110 | S106: =[1]!SUMSTRING(M106:N106,"#") ->  | T106: =[1]!SUMSTRING(O106:P106,"#") ->  | U106: =IF(Q106<>0,[1]!SUMSTRING(Q106:R106,"#"),"") ->  | V106: =[1]!SUMSTRING(S106:U106,"|") ->  | W106: 5 | X106: 61 | Y106: 300 | Z106: =IF(W106<>0,[1]!SUMSTRING(W106:Y106,"#"),"") -> 
A107: 6 | B107: 6006 | C107: 生命 | D107: 882 | E107: 魔抗 | F107: 132 | M107: 1 | N107: 882 | O107: 4 | P107: 132 | S107: =[1]!SUMSTRING(M107:N107,"#") ->  | T107: =[1]!SUMSTRING(O107:P107,"#") ->  | U107: =IF(Q107<>0,[1]!SUMSTRING(Q107:R107,"#"),"") ->  | V107: =[1]!SUMSTRING(S107:U107,"|") ->  | Z107: =IF(W107<>0,[1]!SUMSTRING(W107:Y107,"#"),"") -> 
A108: 7 | B108: 6006 | C108: 生命 | D108: 1029 | E108: 魔抗 | F108: 154 | M108: 1 | N108: 1029 | O108: 4 | P108: 154 | S108: =[1]!SUMSTRING(M108:N108,"#") ->  | T108: =[1]!SUMSTRING(O108:P108,"#") ->  | U108: =IF(Q108<>0,[1]!SUMSTRING(Q108:R108,"#"),"") ->  | V108: =[1]!SUMSTRING(S108:U108,"|") ->  | Z108: =IF(W108<>0,[1]!SUMSTRING(W108:Y108,"#"),"") -> 
A109: 8 | B109: 6006 | C109: 生命 | D109: 1176 | E109: 魔抗 | F109: 176 | I109: 秘法 | J109: 生命百分比 | K109: 300 | M109: 1 | N109: 1176 | O109: 4 | P109: 176 | S109: =[1]!SUMSTRING(M109:N109,"#") ->  | T109: =[1]!SUMSTRING(O109:P109,"#") ->  | U109: =IF(Q109<>0,[1]!SUMSTRING(Q109:R109,"#"),"") ->  | V109: =[1]!SUMSTRING(S109:U109,"|") ->  | W109: 3 | X109: 61 | Y109: 300 | Z109: =IF(W109<>0,[1]!SUMSTRING(W109:Y109,"#"),"") -> 
A110: 9 | B110: 6006 | C110: 生命 | D110: 1323 | E110: 魔抗 | F110: 198 | M110: 1 | N110: 1323 | O110: 4 | P110: 198 | S110: =[1]!SUMSTRING(M110:N110,"#") ->  | T110: =[1]!SUMSTRING(O110:P110,"#") ->  | U110: =IF(Q110<>0,[1]!SUMSTRING(Q110:R110,"#"),"") ->  | V110: =[1]!SUMSTRING(S110:U110,"|") ->  | Z110: =IF(W110<>0,[1]!SUMSTRING(W110:Y110,"#"),"") -> 
A111: 10 | B111: 6006 | C111: 生命 | D111: 1470 | E111: 魔抗 | F111: 220 | M111: 1 | N111: 1470 | O111: 4 | P111: 220 | S111: =[1]!SUMSTRING(M111:N111,"#") ->  | T111: =[1]!SUMSTRING(O111:P111,"#") ->  | U111: =IF(Q111<>0,[1]!SUMSTRING(Q111:R111,"#"),"") ->  | V111: =[1]!SUMSTRING(S111:U111,"|") ->  | Z111: =IF(W111<>0,[1]!SUMSTRING(W111:Y111,"#"),"") -> 
A112: 11 | B112: 6006 | C112: 生命 | D112: 1617 | E112: 魔抗 | F112: 242 | I112: 玄策 | J112: 生命百分比 | K112: 300 | M112: 1 | N112: 1617 | O112: 4 | P112: 242 | S112: =[1]!SUMSTRING(M112:N112,"#") ->  | T112: =[1]!SUMSTRING(O112:P112,"#") ->  | U112: =IF(Q112<>0,[1]!SUMSTRING(Q112:R112,"#"),"") ->  | V112: =[1]!SUMSTRING(S112:U112,"|") ->  | W112: 4 | X112: 61 | Y112: 300 | Z112: =IF(W112<>0,[1]!SUMSTRING(W112:Y112,"#"),"") -> 
A113: 12 | B113: 6006 | C113: 生命 | D113: 1764 | E113: 魔抗 | F113: 264 | M113: 1 | N113: 1764 | O113: 4 | P113: 264 | S113: =[1]!SUMSTRING(M113:N113,"#") ->  | T113: =[1]!SUMSTRING(O113:P113,"#") ->  | U113: =IF(Q113<>0,[1]!SUMSTRING(Q113:R113,"#"),"") ->  | V113: =[1]!SUMSTRING(S113:U113,"|") ->  | Z113: =IF(W113<>0,[1]!SUMSTRING(W113:Y113,"#"),"") -> 
A114: 13 | B114: 6006 | C114: 生命 | D114: 1911 | E114: 魔抗 | F114: 286 | M114: 1 | N114: 1911 | O114: 4 | P114: 286 | S114: =[1]!SUMSTRING(M114:N114,"#") ->  | T114: =[1]!SUMSTRING(O114:P114,"#") ->  | U114: =IF(Q114<>0,[1]!SUMSTRING(Q114:R114,"#"),"") ->  | V114: =[1]!SUMSTRING(S114:U114,"|") ->  | Z114: =IF(W114<>0,[1]!SUMSTRING(W114:Y114,"#"),"") -> 
A115: 14 | B115: 6006 | C115: 生命 | D115: 2058 | E115: 魔抗 | F115: 308 | I115: 天罚 | J115: 生命百分比 | K115: 300 | M115: 1 | N115: 2058 | O115: 4 | P115: 308 | S115: =[1]!SUMSTRING(M115:N115,"#") ->  | T115: =[1]!SUMSTRING(O115:P115,"#") ->  | U115: =IF(Q115<>0,[1]!SUMSTRING(Q115:R115,"#"),"") ->  | V115: =[1]!SUMSTRING(S115:U115,"|") ->  | W115: 2 | X115: 61 | Y115: 300 | Z115: =IF(W115<>0,[1]!SUMSTRING(W115:Y115,"#"),"") -> 
A116: 15 | B116: 6006 | C116: 生命 | D116: 2205 | E116: 魔抗 | F116: 330 | M116: 1 | N116: 2205 | O116: 4 | P116: 330 | S116: =[1]!SUMSTRING(M116:N116,"#") ->  | T116: =[1]!SUMSTRING(O116:P116,"#") ->  | U116: =IF(Q116<>0,[1]!SUMSTRING(Q116:R116,"#"),"") ->  | V116: =[1]!SUMSTRING(S116:U116,"|") ->  | Z116: =IF(W116<>0,[1]!SUMSTRING(W116:Y116,"#"),"") -> 
A117: 16 | B117: 6006 | C117: 生命 | D117: 2352 | E117: 魔抗 | F117: 352 | M117: 1 | N117: 2352 | O117: 4 | P117: 352 | S117: =[1]!SUMSTRING(M117:N117,"#") ->  | T117: =[1]!SUMSTRING(O117:P117,"#") ->  | U117: =IF(Q117<>0,[1]!SUMSTRING(Q117:R117,"#"),"") ->  | V117: =[1]!SUMSTRING(S117:U117,"|") ->  | Z117: =IF(W117<>0,[1]!SUMSTRING(W117:Y117,"#"),"") -> 
A118: 17 | B118: 6006 | C118: 生命 | D118: 2500 | E118: 魔抗 | F118: 375 | I118: 秘法 | J118: 生命百分比 | K118: 300 | M118: 1 | N118: 2500 | O118: 4 | P118: 375 | S118: =[1]!SUMSTRING(M118:N118,"#") ->  | T118: =[1]!SUMSTRING(O118:P118,"#") ->  | U118: =IF(Q118<>0,[1]!SUMSTRING(Q118:R118,"#"),"") ->  | V118: =[1]!SUMSTRING(S118:U118,"|") ->  | W118: 3 | X118: 61 | Y118: 300 | Z118: =IF(W118<>0,[1]!SUMSTRING(W118:Y118,"#"),"") -> 
A119: 18 | B119: 6006 | C119: 生命 | D119: 2647 | E119: 魔抗 | F119: 397 | M119: 1 | N119: 2647 | O119: 4 | P119: 397 | S119: =[1]!SUMSTRING(M119:N119,"#") ->  | T119: =[1]!SUMSTRING(O119:P119,"#") ->  | U119: =IF(Q119<>0,[1]!SUMSTRING(Q119:R119,"#"),"") ->  | V119: =[1]!SUMSTRING(S119:U119,"|") ->  | Z119: =IF(W119<>0,[1]!SUMSTRING(W119:Y119,"#"),"") -> 
A120: 19 | B120: 6006 | C120: 生命 | D120: 2794 | E120: 魔抗 | F120: 419 | M120: 1 | N120: 2794 | O120: 4 | P120: 419 | S120: =[1]!SUMSTRING(M120:N120,"#") ->  | T120: =[1]!SUMSTRING(O120:P120,"#") ->  | U120: =IF(Q120<>0,[1]!SUMSTRING(Q120:R120,"#"),"") ->  | V120: =[1]!SUMSTRING(S120:U120,"|") ->  | Z120: =IF(W120<>0,[1]!SUMSTRING(W120:Y120,"#"),"") -> 
A121: 20 | B121: 6006 | C121: 生命 | D121: 2941 | E121: 魔抗 | F121: 441 | I121: 天罚 | J121: 生命百分比 | K121: 300 | M121: 1 | N121: 2941 | O121: 4 | P121: 441 | S121: =[1]!SUMSTRING(M121:N121,"#") ->  | T121: =[1]!SUMSTRING(O121:P121,"#") ->  | U121: =IF(Q121<>0,[1]!SUMSTRING(Q121:R121,"#"),"") ->  | V121: =[1]!SUMSTRING(S121:U121,"|") ->  | W121: 2 | X121: 61 | Y121: 300 | Z121: =IF(W121<>0,[1]!SUMSTRING(W121:Y121,"#"),"") -> 
A122: 1 | B122: 6007 | C122: 生命 | D122: 147 | E122: 护甲 | F122: 22 | M122: 1 | N122: 147 | O122: 3 | P122: 22 | S122: =[1]!SUMSTRING(M122:N122,"#") ->  | T122: =[1]!SUMSTRING(O122:P122,"#") ->  | U122: =IF(Q122<>0,[1]!SUMSTRING(Q122:R122,"#"),"") ->  | V122: =[1]!SUMSTRING(S122:U122,"|") ->  | Z122: =IF(W122<>0,[1]!SUMSTRING(W122:Y122,"#"),"") -> 
A123: 2 | B123: 6007 | C123: 生命 | D123: 294 | E123: 护甲 | F123: 44 | I123: 武卫 | J123: 护甲百分比 | K123: 300 | M123: 1 | N123: 294 | O123: 3 | P123: 44 | S123: =[1]!SUMSTRING(M123:N123,"#") ->  | T123: =[1]!SUMSTRING(O123:P123,"#") ->  | U123: =IF(Q123<>0,[1]!SUMSTRING(Q123:R123,"#"),"") ->  | V123: =[1]!SUMSTRING(S123:U123,"|") ->  | W123: 1 | X123: 63 | Y123: 300 | Z123: =IF(W123<>0,[1]!SUMSTRING(W123:Y123,"#"),"") -> 
A124: 3 | B124: 6007 | C124: 生命 | D124: 441 | E124: 护甲 | F124: 66 | M124: 1 | N124: 441 | O124: 3 | P124: 66 | S124: =[1]!SUMSTRING(M124:N124,"#") ->  | T124: =[1]!SUMSTRING(O124:P124,"#") ->  | U124: =IF(Q124<>0,[1]!SUMSTRING(Q124:R124,"#"),"") ->  | V124: =[1]!SUMSTRING(S124:U124,"|") ->  | Z124: =IF(W124<>0,[1]!SUMSTRING(W124:Y124,"#"),"") -> 
A125: 4 | B125: 6007 | C125: 生命 | D125: 588 | E125: 护甲 | F125: 88 | M125: 1 | N125: 588 | O125: 3 | P125: 88 | S125: =[1]!SUMSTRING(M125:N125,"#") ->  | T125: =[1]!SUMSTRING(O125:P125,"#") ->  | U125: =IF(Q125<>0,[1]!SUMSTRING(Q125:R125,"#"),"") ->  | V125: =[1]!SUMSTRING(S125:U125,"|") ->  | Z125: =IF(W125<>0,[1]!SUMSTRING(W125:Y125,"#"),"") -> 
A126: 5 | B126: 6007 | C126: 生命 | D126: 735 | E126: 护甲 | F126: 110 | I126: 生花 | J126: 护甲百分比 | K126: 300 | M126: 1 | N126: 735 | O126: 3 | P126: 110 | S126: =[1]!SUMSTRING(M126:N126,"#") ->  | T126: =[1]!SUMSTRING(O126:P126,"#") ->  | U126: =IF(Q126<>0,[1]!SUMSTRING(Q126:R126,"#"),"") ->  | V126: =[1]!SUMSTRING(S126:U126,"|") ->  | W126: 5 | X126: 63 | Y126: 300 | Z126: =IF(W126<>0,[1]!SUMSTRING(W126:Y126,"#"),"") -> 
A127: 6 | B127: 6007 | C127: 生命 | D127: 882 | E127: 护甲 | F127: 132 | M127: 1 | N127: 882 | O127: 3 | P127: 132 | S127: =[1]!SUMSTRING(M127:N127,"#") ->  | T127: =[1]!SUMSTRING(O127:P127,"#") ->  | U127: =IF(Q127<>0,[1]!SUMSTRING(Q127:R127,"#"),"") ->  | V127: =[1]!SUMSTRING(S127:U127,"|") ->  | Z127: =IF(W127<>0,[1]!SUMSTRING(W127:Y127,"#"),"") -> 
A128: 7 | B128: 6007 | C128: 生命 | D128: 1029 | E128: 护甲 | F128: 154 | M128: 1 | N128: 1029 | O128: 3 | P128: 154 | S128: =[1]!SUMSTRING(M128:N128,"#") ->  | T128: =[1]!SUMSTRING(O128:P128,"#") ->  | U128: =IF(Q128<>0,[1]!SUMSTRING(Q128:R128,"#"),"") ->  | V128: =[1]!SUMSTRING(S128:U128,"|") ->  | Z128: =IF(W128<>0,[1]!SUMSTRING(W128:Y128,"#"),"") -> 
A129: 8 | B129: 6007 | C129: 生命 | D129: 1176 | E129: 护甲 | F129: 176 | I129: 秘法 | J129: 护甲百分比 | K129: 300 | M129: 1 | N129: 1176 | O129: 3 | P129: 176 | S129: =[1]!SUMSTRING(M129:N129,"#") ->  | T129: =[1]!SUMSTRING(O129:P129,"#") ->  | U129: =IF(Q129<>0,[1]!SUMSTRING(Q129:R129,"#"),"") ->  | V129: =[1]!SUMSTRING(S129:U129,"|") ->  | W129: 3 | X129: 63 | Y129: 300 | Z129: =IF(W129<>0,[1]!SUMSTRING(W129:Y129,"#"),"") -> 
A130: 9 | B130: 6007 | C130: 生命 | D130: 1323 | E130: 护甲 | F130: 198 | M130: 1 | N130: 1323 | O130: 3 | P130: 198 | S130: =[1]!SUMSTRING(M130:N130,"#") ->  | T130: =[1]!SUMSTRING(O130:P130,"#") ->  | U130: =IF(Q130<>0,[1]!SUMSTRING(Q130:R130,"#"),"") ->  | V130: =[1]!SUMSTRING(S130:U130,"|") ->  | Z130: =IF(W130<>0,[1]!SUMSTRING(W130:Y130,"#"),"") -> 
A131: 10 | B131: 6007 | C131: 生命 | D131: 1470 | E131: 护甲 | F131: 220 | M131: =VLOOKUP(C131,$AB:$AC,2,0) -> 1 | N131: =D131 -> 1470 | O131: =VLOOKUP(E131,$AB:$AC,2,0) -> 3 | P131: =F131 -> 220 | Q131: =IF(G131<>0,VLOOKUP(G131,$AB:$AC,2,0),"") ->  | R131: =IF(H131<>0,H131,"") ->  | S131: =[1]!SUMSTRING(M131:N131,"#") ->  | T131: =[1]!SUMSTRING(O131:P131,"#") ->  | U131: =IF(Q131<>0,[1]!SUMSTRING(Q131:R131,"#"),"") ->  | V131: =[1]!SUMSTRING(S131:U131,"|") ->  | X131: =IF(J131<>0,VLOOKUP(J131,$AB:$AC,2,0),"") ->  | Y131: =IF(K131<>0,K131,"") ->  | Z131: =IF(W131<>0,[1]!SUMSTRING(W131:Y131,"#"),"") -> 
A132: 11 | B132: 6007 | C132: 生命 | D132: 1617 | E132: 护甲 | F132: 242 | I132: 玄策 | J132: 护甲百分比 | K132: 300 | M132: 1 | N132: 1617 | O132: 3 | P132: 242 | S132: =[1]!SUMSTRING(M132:N132,"#") ->  | T132: =[1]!SUMSTRING(O132:P132,"#") ->  | U132: =IF(Q132<>0,[1]!SUMSTRING(Q132:R132,"#"),"") ->  | V132: =[1]!SUMSTRING(S132:U132,"|") ->  | W132: =IF(I132<>0,VLOOKUP(I132,$AG$3:$AH$7,2,0),"") -> 4 | X132: 63 | Y132: 300 | Z132: =IF(W132<>0,[1]!SUMSTRING(W132:Y132,"#"),"") -> 
A133: 12 | B133: 6007 | C133: 生命 | D133: 1764 | E133: 护甲 | F133: 264 | M133: 1 | N133: 1764 | O133: 3 | P133: 264 | S133: =[1]!SUMSTRING(M133:N133,"#") ->  | T133: =[1]!SUMSTRING(O133:P133,"#") ->  | U133: =IF(Q133<>0,[1]!SUMSTRING(Q133:R133,"#"),"") ->  | V133: =[1]!SUMSTRING(S133:U133,"|") ->  | Z133: =IF(W133<>0,[1]!SUMSTRING(W133:Y133,"#"),"") -> 
A134: 13 | B134: 6007 | C134: 生命 | D134: 1911 | E134: 护甲 | F134: 286 | M134: 1 | N134: 1911 | O134: 3 | P134: 286 | S134: =[1]!SUMSTRING(M134:N134,"#") ->  | T134: =[1]!SUMSTRING(O134:P134,"#") ->  | U134: =IF(Q134<>0,[1]!SUMSTRING(Q134:R134,"#"),"") ->  | V134: =[1]!SUMSTRING(S134:U134,"|") ->  | Z134: =IF(W134<>0,[1]!SUMSTRING(W134:Y134,"#"),"") -> 
A135: 14 | B135: 6007 | C135: 生命 | D135: 2058 | E135: 护甲 | F135: 308 | I135: 天罚 | J135: 护甲百分比 | K135: 300 | M135: 1 | N135: 2058 | O135: 3 | P135: 308 | S135: =[1]!SUMSTRING(M135:N135,"#") ->  | T135: =[1]!SUMSTRING(O135:P135,"#") ->  | U135: =IF(Q135<>0,[1]!SUMSTRING(Q135:R135,"#"),"") ->  | V135: =[1]!SUMSTRING(S135:U135,"|") ->  | W135: 2 | X135: 63 | Y135: 300 | Z135: =IF(W135<>0,[1]!SUMSTRING(W135:Y135,"#"),"") -> 
A136: 15 | B136: 6007 | C136: 生命 | D136: 2205 | E136: 护甲 | F136: 330 | M136: 1 | N136: 2205 | O136: 3 | P136: 330 | S136: =[1]!SUMSTRING(M136:N136,"#") ->  | T136: =[1]!SUMSTRING(O136:P136,"#") ->  | U136: =IF(Q136<>0,[1]!SUMSTRING(Q136:R136,"#"),"") ->  | V136: =[1]!SUMSTRING(S136:U136,"|") ->  | Z136: =IF(W136<>0,[1]!SUMSTRING(W136:Y136,"#"),"") -> 
A137: 16 | B137: 6007 | C137: 生命 | D137: 2352 | E137: 护甲 | F137: 352 | M137: 1 | N137: 2352 | O137: 3 | P137: 352 | S137: =[1]!SUMSTRING(M137:N137,"#") ->  | T137: =[1]!SUMSTRING(O137:P137,"#") ->  | U137: =IF(Q137<>0,[1]!SUMSTRING(Q137:R137,"#"),"") ->  | V137: =[1]!SUMSTRING(S137:U137,"|") ->  | Z137: =IF(W137<>0,[1]!SUMSTRING(W137:Y137,"#"),"") -> 
A138: 17 | B138: 6007 | C138: 生命 | D138: 2500 | E138: 护甲 | F138: 375 | I138: 秘法 | J138: 护甲百分比 | K138: 300 | M138: 1 | N138: 2500 | O138: 3 | P138: 375 | S138: =[1]!SUMSTRING(M138:N138,"#") ->  | T138: =[1]!SUMSTRING(O138:P138,"#") ->  | U138: =IF(Q138<>0,[1]!SUMSTRING(Q138:R138,"#"),"") ->  | V138: =[1]!SUMSTRING(S138:U138,"|") ->  | W138: 3 | X138: 63 | Y138: 300 | Z138: =IF(W138<>0,[1]!SUMSTRING(W138:Y138,"#"),"") -> 
A139: 18 | B139: 6007 | C139: 生命 | D139: 2647 | E139: 护甲 | F139: 397 | M139: 1 | N139: 2647 | O139: 3 | P139: 397 | S139: =[1]!SUMSTRING(M139:N139,"#") ->  | T139: =[1]!SUMSTRING(O139:P139,"#") ->  | U139: =IF(Q139<>0,[1]!SUMSTRING(Q139:R139,"#"),"") ->  | V139: =[1]!SUMSTRING(S139:U139,"|") ->  | Z139: =IF(W139<>0,[1]!SUMSTRING(W139:Y139,"#"),"") -> 
A140: 19 | B140: 6007 | C140: 生命 | D140: 2794 | E140: 护甲 | F140: 419 | M140: 1 | N140: 2794 | O140: 3 | P140: 419 | S140: =[1]!SUMSTRING(M140:N140,"#") ->  | T140: =[1]!SUMSTRING(O140:P140,"#") ->  | U140: =IF(Q140<>0,[1]!SUMSTRING(Q140:R140,"#"),"") ->  | V140: =[1]!SUMSTRING(S140:U140,"|") ->  | Z140: =IF(W140<>0,[1]!SUMSTRING(W140:Y140,"#"),"") -> 
A141: 20 | B141: 6007 | C141: 生命 | D141: 2941 | E141: 护甲 | F141: 441 | I141: 天罚 | J141: 护甲百分比 | K141: 300 | M141: 1 | N141: 2941 | O141: 3 | P141: 441 | S141: =[1]!SUMSTRING(M141:N141,"#") ->  | T141: =[1]!SUMSTRING(O141:P141,"#") ->  | U141: =IF(Q141<>0,[1]!SUMSTRING(Q141:R141,"#"),"") ->  | V141: =[1]!SUMSTRING(S141:U141,"|") ->  | W141: 2 | X141: 63 | Y141: 300 | Z141: =IF(W141<>0,[1]!SUMSTRING(W141:Y141,"#"),"") -> 
A142: 1 | B142: 6008 | C142: 生命 | D142: 147 | E142: 攻击 | F142: 22 | M142: 1 | N142: 147 | O142: 2 | P142: 22 | S142: =[1]!SUMSTRING(M142:N142,"#") ->  | T142: =[1]!SUMSTRING(O142:P142,"#") ->  | U142: =IF(Q142<>0,[1]!SUMSTRING(Q142:R142,"#"),"") ->  | V142: =[1]!SUMSTRING(S142:U142,"|") ->  | Z142: =IF(W142<>0,[1]!SUMSTRING(W142:Y142,"#"),"") -> 
A143: 2 | B143: 6008 | C143: 生命 | D143: 294 | E143: 攻击 | F143: 44 | I143: 武卫 | J143: 魔抗百分比 | K143: 300 | M143: 1 | N143: 294 | O143: 2 | P143: 44 | S143: =[1]!SUMSTRING(M143:N143,"#") ->  | T143: =[1]!SUMSTRING(O143:P143,"#") ->  | U143: =IF(Q143<>0,[1]!SUMSTRING(Q143:R143,"#"),"") ->  | V143: =[1]!SUMSTRING(S143:U143,"|") ->  | W143: 1 | X143: 64 | Y143: 300 | Z143: =IF(W143<>0,[1]!SUMSTRING(W143:Y143,"#"),"") -> 
A144: 3 | B144: 6008 | C144: 生命 | D144: 441 | E144: 攻击 | F144: 66 | M144: 1 | N144: 441 | O144: 2 | P144: 66 | S144: =[1]!SUMSTRING(M144:N144,"#") ->  | T144: =[1]!SUMSTRING(O144:P144,"#") ->  | U144: =IF(Q144<>0,[1]!SUMSTRING(Q144:R144,"#"),"") ->  | V144: =[1]!SUMSTRING(S144:U144,"|") ->  | Z144: =IF(W144<>0,[1]!SUMSTRING(W144:Y144,"#"),"") -> 
A145: 4 | B145: 6008 | C145: 生命 | D145: 588 | E145: 攻击 | F145: 88 | M145: 1 | N145: 588 | O145: 2 | P145: 88 | S145: =[1]!SUMSTRING(M145:N145,"#") ->  | T145: =[1]!SUMSTRING(O145:P145,"#") ->  | U145: =IF(Q145<>0,[1]!SUMSTRING(Q145:R145,"#"),"") ->  | V145: =[1]!SUMSTRING(S145:U145,"|") ->  | Z145: =IF(W145<>0,[1]!SUMSTRING(W145:Y145,"#"),"") -> 
A146: 5 | B146: 6008 | C146: 生命 | D146: 735 | E146: 攻击 | F146: 110 | I146: 生花 | J146: 魔抗百分比 | K146: 300 | M146: 1 | N146: 735 | O146: 2 | P146: 110 | S146: =[1]!SUMSTRING(M146:N146,"#") ->  | T146: =[1]!SUMSTRING(O146:P146,"#") ->  | U146: =IF(Q146<>0,[1]!SUMSTRING(Q146:R146,"#"),"") ->  | V146: =[1]!SUMSTRING(S146:U146,"|") ->  | W146: 5 | X146: 64 | Y146: 300 | Z146: =IF(W146<>0,[1]!SUMSTRING(W146:Y146,"#"),"") -> 
A147: 6 | B147: 6008 | C147: 生命 | D147: 882 | E147: 攻击 | F147: 132 | M147: 1 | N147: 882 | O147: 2 | P147: 132 | S147: =[1]!SUMSTRING(M147:N147,"#") ->  | T147: =[1]!SUMSTRING(O147:P147,"#") ->  | U147: =IF(Q147<>0,[1]!SUMSTRING(Q147:R147,"#"),"") ->  | V147: =[1]!SUMSTRING(S147:U147,"|") ->  | Z147: =IF(W147<>0,[1]!SUMSTRING(W147:Y147,"#"),"") -> 
A148: 7 | B148: 6008 | C148: 生命 | D148: 1029 | E148: 攻击 | F148: 154 | M148: 1 | N148: 1029 | O148: 2 | P148: 154 | S148: =[1]!SUMSTRING(M148:N148,"#") ->  | T148: =[1]!SUMSTRING(O148:P148,"#") ->  | U148: =IF(Q148<>0,[1]!SUMSTRING(Q148:R148,"#"),"") ->  | V148: =[1]!SUMSTRING(S148:U148,"|") ->  | Z148: =IF(W148<>0,[1]!SUMSTRING(W148:Y148,"#"),"") -> 
A149: 8 | B149: 6008 | C149: 生命 | D149: 1176 | E149: 攻击 | F149: 176 | I149: 秘法 | J149: 魔抗百分比 | K149: 300 | M149: 1 | N149: 1176 | O149: 2 | P149: 176 | S149: =[1]!SUMSTRING(M149:N149,"#") ->  | T149: =[1]!SUMSTRING(O149:P149,"#") ->  | U149: =IF(Q149<>0,[1]!SUMSTRING(Q149:R149,"#"),"") ->  | V149: =[1]!SUMSTRING(S149:U149,"|") ->  | W149: 3 | X149: 64 | Y149: 300 | Z149: =IF(W149<>0,[1]!SUMSTRING(W149:Y149,"#"),"") -> 
A150: 9 | B150: 6008 | C150: 生命 | D150: 1323 | E150: 攻击 | F150: 198 | M150: 1 | N150: 1323 | O150: 2 | P150: 198 | S150: =[1]!SUMSTRING(M150:N150,"#") ->  | T150: =[1]!SUMSTRING(O150:P150,"#") ->  | U150: =IF(Q150<>0,[1]!SUMSTRING(Q150:R150,"#"),"") ->  | V150: =[1]!SUMSTRING(S150:U150,"|") ->  | Z150: =IF(W150<>0,[1]!SUMSTRING(W150:Y150,"#"),"") -> 
A151: =A131 -> 10 | B151: =B131+1 -> 6008 | C151: 生命 | D151: 1470 | E151: 攻击 | F151: 220 | M151: 1 | N151: 1470 | O151: 2 | P151: 220 | S151: =[1]!SUMSTRING(M151:N151,"#") ->  | T151: =[1]!SUMSTRING(O151:P151,"#") ->  | U151: =IF(Q151<>0,[1]!SUMSTRING(Q151:R151,"#"),"") ->  | V151: =[1]!SUMSTRING(S151:U151,"|") ->  | Z151: =IF(W151<>0,[1]!SUMSTRING(W151:Y151,"#"),"") -> 
A152: 11 | B152: 6008 | C152: 生命 | D152: 1617 | E152: 攻击 | F152: 242 | I152: 玄策 | J152: 魔抗百分比 | K152: 300 | M152: 1 | N152: 1617 | O152: 2 | P152: 242 | S152: =[1]!SUMSTRING(M152:N152,"#") ->  | T152: =[1]!SUMSTRING(O152:P152,"#") ->  | U152: =IF(Q152<>0,[1]!SUMSTRING(Q152:R152,"#"),"") ->  | V152: =[1]!SUMSTRING(S152:U152,"|") ->  | W152: 4 | X152: 64 | Y152: 300 | Z152: =IF(W152<>0,[1]!SUMSTRING(W152:Y152,"#"),"") -> 
A153: 12 | B153: 6008 | C153: 生命 | D153: 1764 | E153: 攻击 | F153: 264 | M153: 1 | N153: 1764 | O153: 2 | P153: 264 | S153: =[1]!SUMSTRING(M153:N153,"#") ->  | T153: =[1]!SUMSTRING(O153:P153,"#") ->  | U153: =IF(Q153<>0,[1]!SUMSTRING(Q153:R153,"#"),"") ->  | V153: =[1]!SUMSTRING(S153:U153,"|") ->  | Z153: =IF(W153<>0,[1]!SUMSTRING(W153:Y153,"#"),"") -> 
A154: 13 | B154: 6008 | C154: 生命 | D154: 1911 | E154: 攻击 | F154: 286 | M154: 1 | N154: 1911 | O154: 2 | P154: 286 | S154: =[1]!SUMSTRING(M154:N154,"#") ->  | T154: =[1]!SUMSTRING(O154:P154,"#") ->  | U154: =IF(Q154<>0,[1]!SUMSTRING(Q154:R154,"#"),"") ->  | V154: =[1]!SUMSTRING(S154:U154,"|") ->  | Z154: =IF(W154<>0,[1]!SUMSTRING(W154:Y154,"#"),"") -> 
A155: 14 | B155: 6008 | C155: 生命 | D155: 2058 | E155: 攻击 | F155: 308 | I155: 天罚 | J155: 魔抗百分比 | K155: 300 | M155: 1 | N155: 2058 | O155: 2 | P155: 308 | S155: =[1]!SUMSTRING(M155:N155,"#") ->  | T155: =[1]!SUMSTRING(O155:P155,"#") ->  | U155: =IF(Q155<>0,[1]!SUMSTRING(Q155:R155,"#"),"") ->  | V155: =[1]!SUMSTRING(S155:U155,"|") ->  | W155: 2 | X155: 64 | Y155: 300 | Z155: =IF(W155<>0,[1]!SUMSTRING(W155:Y155,"#"),"") -> 
A156: 15 | B156: 6008 | C156: 生命 | D156: 2205 | E156: 攻击 | F156: 330 | M156: 1 | N156: 2205 | O156: 2 | P156: 330 | S156: =[1]!SUMSTRING(M156:N156,"#") ->  | T156: =[1]!SUMSTRING(O156:P156,"#") ->  | U156: =IF(Q156<>0,[1]!SUMSTRING(Q156:R156,"#"),"") ->  | V156: =[1]!SUMSTRING(S156:U156,"|") ->  | Z156: =IF(W156<>0,[1]!SUMSTRING(W156:Y156,"#"),"") -> 
A157: 16 | B157: 6008 | C157: 生命 | D157: 2352 | E157: 攻击 | F157: 352 | M157: 1 | N157: 2352 | O157: 2 | P157: 352 | S157: =[1]!SUMSTRING(M157:N157,"#") ->  | T157: =[1]!SUMSTRING(O157:P157,"#") ->  | U157: =IF(Q157<>0,[1]!SUMSTRING(Q157:R157,"#"),"") ->  | V157: =[1]!SUMSTRING(S157:U157,"|") ->  | Z157: =IF(W157<>0,[1]!SUMSTRING(W157:Y157,"#"),"") -> 
A158: 17 | B158: 6008 | C158: 生命 | D158: 2500 | E158: 攻击 | F158: 375 | I158: 秘法 | J158: 魔抗百分比 | K158: 300 | M158: 1 | N158: 2500 | O158: 2 | P158: 375 | S158: =[1]!SUMSTRING(M158:N158,"#") ->  | T158: =[1]!SUMSTRING(O158:P158,"#") ->  | U158: =IF(Q158<>0,[1]!SUMSTRING(Q158:R158,"#"),"") ->  | V158: =[1]!SUMSTRING(S158:U158,"|") ->  | W158: 3 | X158: 64 | Y158: 300 | Z158: =IF(W158<>0,[1]!SUMSTRING(W158:Y158,"#"),"") -> 
A159: 18 | B159: 6008 | C159: 生命 | D159: 2647 | E159: 攻击 | F159: 397 | M159: 1 | N159: 2647 | O159: 2 | P159: 397 | S159: =[1]!SUMSTRING(M159:N159,"#") ->  | T159: =[1]!SUMSTRING(O159:P159,"#") ->  | U159: =IF(Q159<>0,[1]!SUMSTRING(Q159:R159,"#"),"") ->  | V159: =[1]!SUMSTRING(S159:U159,"|") ->  | Z159: =IF(W159<>0,[1]!SUMSTRING(W159:Y159,"#"),"") -> 
A160: 19 | B160: 6008 | C160: 生命 | D160: 2794 | E160: 攻击 | F160: 419 | M160: 1 | N160: 2794 | O160: 2 | P160: 419 | S160: =[1]!SUMSTRING(M160:N160,"#") ->  | T160: =[1]!SUMSTRING(O160:P160,"#") ->  | U160: =IF(Q160<>0,[1]!SUMSTRING(Q160:R160,"#"),"") ->  | V160: =[1]!SUMSTRING(S160:U160,"|") ->  | Z160: =IF(W160<>0,[1]!SUMSTRING(W160:Y160,"#"),"") -> 
A161: 20 | B161: 6008 | C161: 生命 | D161: 2941 | E161: 攻击 | F161: 441 | I161: 天罚 | J161: 魔抗百分比 | K161: 300 | M161: 1 | N161: 2941 | O161: 2 | P161: 441 | S161: =[1]!SUMSTRING(M161:N161,"#") ->  | T161: =[1]!SUMSTRING(O161:P161,"#") ->  | U161: =IF(Q161<>0,[1]!SUMSTRING(Q161:R161,"#"),"") ->  | V161: =[1]!SUMSTRING(S161:U161,"|") ->  | W161: 2 | X161: 64 | Y161: 300 | Z161: =IF(W161<>0,[1]!SUMSTRING(W161:Y161,"#"),"") -> 
A162: 1 | B162: 6009 | C162: 生命 | D162: 147 | E162: 魔抗 | F162: 22 | M162: 1 | N162: 147 | O162: 4 | P162: 22 | S162: =[1]!SUMSTRING(M162:N162,"#") ->  | T162: =[1]!SUMSTRING(O162:P162,"#") ->  | U162: =IF(Q162<>0,[1]!SUMSTRING(Q162:R162,"#"),"") ->  | V162: =[1]!SUMSTRING(S162:U162,"|") ->  | Z162: =IF(W162<>0,[1]!SUMSTRING(W162:Y162,"#"),"") -> 
A163: 2 | B163: 6009 | C163: 生命 | D163: 294 | E163: 魔抗 | F163: 44 | I163: 武卫 | J163: 生命百分比 | K163: 300 | M163: 1 | N163: 294 | O163: 4 | P163: 44 | S163: =[1]!SUMSTRING(M163:N163,"#") ->  | T163: =[1]!SUMSTRING(O163:P163,"#") ->  | U163: =IF(Q163<>0,[1]!SUMSTRING(Q163:R163,"#"),"") ->  | V163: =[1]!SUMSTRING(S163:U163,"|") ->  | W163: 1 | X163: 61 | Y163: 300 | Z163: =IF(W163<>0,[1]!SUMSTRING(W163:Y163,"#"),"") -> 
A164: 3 | B164: 6009 | C164: 生命 | D164: 441 | E164: 魔抗 | F164: 66 | M164: 1 | N164: 441 | O164: 4 | P164: 66 | S164: =[1]!SUMSTRING(M164:N164,"#") ->  | T164: =[1]!SUMSTRING(O164:P164,"#") ->  | U164: =IF(Q164<>0,[1]!SUMSTRING(Q164:R164,"#"),"") ->  | V164: =[1]!SUMSTRING(S164:U164,"|") ->  | Z164: =IF(W164<>0,[1]!SUMSTRING(W164:Y164,"#"),"") -> 
A165: 4 | B165: 6009 | C165: 生命 | D165: 588 | E165: 魔抗 | F165: 88 | M165: 1 | N165: 588 | O165: 4 | P165: 88 | S165: =[1]!SUMSTRING(M165:N165,"#") ->  | T165: =[1]!SUMSTRING(O165:P165,"#") ->  | U165: =IF(Q165<>0,[1]!SUMSTRING(Q165:R165,"#"),"") ->  | V165: =[1]!SUMSTRING(S165:U165,"|") ->  | Z165: =IF(W165<>0,[1]!SUMSTRING(W165:Y165,"#"),"") -> 
A166: 5 | B166: 6009 | C166: 生命 | D166: 735 | E166: 魔抗 | F166: 110 | I166: 生花 | J166: 生命百分比 | K166: 300 | M166: 1 | N166: 735 | O166: 4 | P166: 110 | S166: =[1]!SUMSTRING(M166:N166,"#") ->  | T166: =[1]!SUMSTRING(O166:P166,"#") ->  | U166: =IF(Q166<>0,[1]!SUMSTRING(Q166:R166,"#"),"") ->  | V166: =[1]!SUMSTRING(S166:U166,"|") ->  | W166: 5 | X166: 61 | Y166: 300 | Z166: =IF(W166<>0,[1]!SUMSTRING(W166:Y166,"#"),"") -> 
A167: 6 | B167: 6009 | C167: 生命 | D167: 882 | E167: 魔抗 | F167: 132 | M167: 1 | N167: 882 | O167: 4 | P167: 132 | S167: =[1]!SUMSTRING(M167:N167,"#") ->  | T167: =[1]!SUMSTRING(O167:P167,"#") ->  | U167: =IF(Q167<>0,[1]!SUMSTRING(Q167:R167,"#"),"") ->  | V167: =[1]!SUMSTRING(S167:U167,"|") ->  | Z167: =IF(W167<>0,[1]!SUMSTRING(W167:Y167,"#"),"") -> 
A168: 7 | B168: 6009 | C168: 生命 | D168: 1029 | E168: 魔抗 | F168: 154 | M168: 1 | N168: 1029 | O168: 4 | P168: 154 | S168: =[1]!SUMSTRING(M168:N168,"#") ->  | T168: =[1]!SUMSTRING(O168:P168,"#") ->  | U168: =IF(Q168<>0,[1]!SUMSTRING(Q168:R168,"#"),"") ->  | V168: =[1]!SUMSTRING(S168:U168,"|") ->  | Z168: =IF(W168<>0,[1]!SUMSTRING(W168:Y168,"#"),"") -> 
A169: 8 | B169: 6009 | C169: 生命 | D169: 1176 | E169: 魔抗 | F169: 176 | I169: 秘法 | J169: 生命百分比 | K169: 300 | M169: 1 | N169: 1176 | O169: 4 | P169: 176 | S169: =[1]!SUMSTRING(M169:N169,"#") ->  | T169: =[1]!SUMSTRING(O169:P169,"#") ->  | U169: =IF(Q169<>0,[1]!SUMSTRING(Q169:R169,"#"),"") ->  | V169: =[1]!SUMSTRING(S169:U169,"|") ->  | W169: 3 | X169: 61 | Y169: 300 | Z169: =IF(W169<>0,[1]!SUMSTRING(W169:Y169,"#"),"") -> 
A170: 9 | B170: 6009 | C170: 生命 | D170: 1323 | E170: 魔抗 | F170: 198 | M170: 1 | N170: 1323 | O170: 4 | P170: 198 | S170: =[1]!SUMSTRING(M170:N170,"#") ->  | T170: =[1]!SUMSTRING(O170:P170,"#") ->  | U170: =IF(Q170<>0,[1]!SUMSTRING(Q170:R170,"#"),"") ->  | V170: =[1]!SUMSTRING(S170:U170,"|") ->  | Z170: =IF(W170<>0,[1]!SUMSTRING(W170:Y170,"#"),"") -> 
A171: 10 | B171: 6009 | C171: 生命 | D171: 1470 | E171: 魔抗 | F171: 220 | M171: 1 | N171: 1470 | O171: 4 | P171: 220 | S171: =[1]!SUMSTRING(M171:N171,"#") ->  | T171: =[1]!SUMSTRING(O171:P171,"#") ->  | U171: =IF(Q171<>0,[1]!SUMSTRING(Q171:R171,"#"),"") ->  | V171: =[1]!SUMSTRING(S171:U171,"|") ->  | Z171: =IF(W171<>0,[1]!SUMSTRING(W171:Y171,"#"),"") -> 
A172: 11 | B172: 6009 | C172: 生命 | D172: 1617 | E172: 魔抗 | F172: 242 | I172: 玄策 | J172: 生命百分比 | K172: 300 | M172: 1 | N172: 1617 | O172: 4 | P172: 242 | S172: =[1]!SUMSTRING(M172:N172,"#") ->  | T172: =[1]!SUMSTRING(O172:P172,"#") ->  | U172: =IF(Q172<>0,[1]!SUMSTRING(Q172:R172,"#"),"") ->  | V172: =[1]!SUMSTRING(S172:U172,"|") ->  | W172: 4 | X172: 61 | Y172: 300 | Z172: =IF(W172<>0,[1]!SUMSTRING(W172:Y172,"#"),"") -> 
A173: 12 | B173: 6009 | C173: 生命 | D173: 1764 | E173: 魔抗 | F173: 264 | M173: 1 | N173: 1764 | O173: 4 | P173: 264 | S173: =[1]!SUMSTRING(M173:N173,"#") ->  | T173: =[1]!SUMSTRING(O173:P173,"#") ->  | U173: =IF(Q173<>0,[1]!SUMSTRING(Q173:R173,"#"),"") ->  | V173: =[1]!SUMSTRING(S173:U173,"|") ->  | Z173: =IF(W173<>0,[1]!SUMSTRING(W173:Y173,"#"),"") -> 
A174: 13 | B174: 6009 | C174: 生命 | D174: 1911 | E174: 魔抗 | F174: 286 | M174: 1 | N174: 1911 | O174: 4 | P174: 286 | S174: =[1]!SUMSTRING(M174:N174,"#") ->  | T174: =[1]!SUMSTRING(O174:P174,"#") ->  | U174: =IF(Q174<>0,[1]!SUMSTRING(Q174:R174,"#"),"") ->  | V174: =[1]!SUMSTRING(S174:U174,"|") ->  | Z174: =IF(W174<>0,[1]!SUMSTRING(W174:Y174,"#"),"") -> 
A175: 14 | B175: 6009 | C175: 生命 | D175: 2058 | E175: 魔抗 | F175: 308 | I175: 天罚 | J175: 生命百分比 | K175: 300 | M175: 1 | N175: 2058 | O175: 4 | P175: 308 | S175: =[1]!SUMSTRING(M175:N175,"#") ->  | T175: =[1]!SUMSTRING(O175:P175,"#") ->  | U175: =IF(Q175<>0,[1]!SUMSTRING(Q175:R175,"#"),"") ->  | V175: =[1]!SUMSTRING(S175:U175,"|") ->  | W175: 2 | X175: 61 | Y175: 300 | Z175: =IF(W175<>0,[1]!SUMSTRING(W175:Y175,"#"),"") -> 
A176: 15 | B176: 6009 | C176: 生命 | D176: 2205 | E176: 魔抗 | F176: 330 | M176: 1 | N176: 2205 | O176: 4 | P176: 330 | S176: =[1]!SUMSTRING(M176:N176,"#") ->  | T176: =[1]!SUMSTRING(O176:P176,"#") ->  | U176: =IF(Q176<>0,[1]!SUMSTRING(Q176:R176,"#"),"") ->  | V176: =[1]!SUMSTRING(S176:U176,"|") ->  | Z176: =IF(W176<>0,[1]!SUMSTRING(W176:Y176,"#"),"") -> 
A177: 16 | B177: 6009 | C177: 生命 | D177: 2352 | E177: 魔抗 | F177: 352 | M177: 1 | N177: 2352 | O177: 4 | P177: 352 | S177: =[1]!SUMSTRING(M177:N177,"#") ->  | T177: =[1]!SUMSTRING(O177:P177,"#") ->  | U177: =IF(Q177<>0,[1]!SUMSTRING(Q177:R177,"#"),"") ->  | V177: =[1]!SUMSTRING(S177:U177,"|") ->  | Z177: =IF(W177<>0,[1]!SUMSTRING(W177:Y177,"#"),"") -> 
A178: 17 | B178: 6009 | C178: 生命 | D178: 2500 | E178: 魔抗 | F178: 375 | I178: 秘法 | J178: 生命百分比 | K178: 300 | M178: 1 | N178: 2500 | O178: 4 | P178: 375 | S178: =[1]!SUMSTRING(M178:N178,"#") ->  | T178: =[1]!SUMSTRING(O178:P178,"#") ->  | U178: =IF(Q178<>0,[1]!SUMSTRING(Q178:R178,"#"),"") ->  | V178: =[1]!SUMSTRING(S178:U178,"|") ->  | W178: 3 | X178: 61 | Y178: 300 | Z178: =IF(W178<>0,[1]!SUMSTRING(W178:Y178,"#"),"") -> 
A179: 18 | B179: 6009 | C179: 生命 | D179: 2647 | E179: 魔抗 | F179: 397 | M179: 1 | N179: 2647 | O179: 4 | P179: 397 | S179: =[1]!SUMSTRING(M179:N179,"#") ->  | T179: =[1]!SUMSTRING(O179:P179,"#") ->  | U179: =IF(Q179<>0,[1]!SUMSTRING(Q179:R179,"#"),"") ->  | V179: =[1]!SUMSTRING(S179:U179,"|") ->  | Z179: =IF(W179<>0,[1]!SUMSTRING(W179:Y179,"#"),"") -> 
A180: 19 | B180: 6009 | C180: 生命 | D180: 2794 | E180: 魔抗 | F180: 419 | M180: 1 | N180: 2794 | O180: 4 | P180: 419 | S180: =[1]!SUMSTRING(M180:N180,"#") ->  | T180: =[1]!SUMSTRING(O180:P180,"#") ->  | U180: =IF(Q180<>0,[1]!SUMSTRING(Q180:R180,"#"),"") ->  | V180: =[1]!SUMSTRING(S180:U180,"|") ->  | Z180: =IF(W180<>0,[1]!SUMSTRING(W180:Y180,"#"),"") -> 
A181: 20 | B181: 6009 | C181: 生命 | D181: 2941 | E181: 魔抗 | F181: 441 | I181: 天罚 | J181: 生命百分比 | K181: 300 | M181: 1 | N181: 2941 | O181: 4 | P181: 441 | S181: =[1]!SUMSTRING(M181:N181,"#") ->  | T181: =[1]!SUMSTRING(O181:P181,"#") ->  | U181: =IF(Q181<>0,[1]!SUMSTRING(Q181:R181,"#"),"") ->  | V181: =[1]!SUMSTRING(S181:U181,"|") ->  | W181: 2 | X181: 61 | Y181: 300 | Z181: =IF(W181<>0,[1]!SUMSTRING(W181:Y181,"#"),"") -> 
A182: 1 | B182: 6010 | C182: 生命 | D182: 147 | E182: 护甲 | F182: 22 | M182: 1 | N182: 147 | O182: 3 | P182: 22 | S182: =[1]!SUMSTRING(M182:N182,"#") ->  | T182: =[1]!SUMSTRING(O182:P182,"#") ->  | U182: =IF(Q182<>0,[1]!SUMSTRING(Q182:R182,"#"),"") ->  | V182: =[1]!SUMSTRING(S182:U182,"|") ->  | Z182: =IF(W182<>0,[1]!SUMSTRING(W182:Y182,"#"),"") -> 
A183: 2 | B183: 6010 | C183: 生命 | D183: 294 | E183: 护甲 | F183: 44 | I183: 武卫 | J183: 护甲百分比 | K183: 300 | M183: 1 | N183: 294 | O183: 3 | P183: 44 | S183: =[1]!SUMSTRING(M183:N183,"#") ->  | T183: =[1]!SUMSTRING(O183:P183,"#") ->  | U183: =IF(Q183<>0,[1]!SUMSTRING(Q183:R183,"#"),"") ->  | V183: =[1]!SUMSTRING(S183:U183,"|") ->  | W183: 1 | X183: 63 | Y183: 300 | Z183: =IF(W183<>0,[1]!SUMSTRING(W183:Y183,"#"),"") -> 
A184: 3 | B184: 6010 | C184: 生命 | D184: 441 | E184: 护甲 | F184: 66 | M184: 1 | N184: 441 | O184: 3 | P184: 66 | S184: =[1]!SUMSTRING(M184:N184,"#") ->  | T184: =[1]!SUMSTRING(O184:P184,"#") ->  | U184: =IF(Q184<>0,[1]!SUMSTRING(Q184:R184,"#"),"") ->  | V184: =[1]!SUMSTRING(S184:U184,"|") ->  | Z184: =IF(W184<>0,[1]!SUMSTRING(W184:Y184,"#"),"") -> 
A185: 4 | B185: 6010 | C185: 生命 | D185: 588 | E185: 护甲 | F185: 88 | M185: 1 | N185: 588 | O185: 3 | P185: 88 | S185: =[1]!SUMSTRING(M185:N185,"#") ->  | T185: =[1]!SUMSTRING(O185:P185,"#") ->  | U185: =IF(Q185<>0,[1]!SUMSTRING(Q185:R185,"#"),"") ->  | V185: =[1]!SUMSTRING(S185:U185,"|") ->  | Z185: =IF(W185<>0,[1]!SUMSTRING(W185:Y185,"#"),"") -> 
A186: 5 | B186: 6010 | C186: 生命 | D186: 735 | E186: 护甲 | F186: 110 | I186: 生花 | J186: 护甲百分比 | K186: 300 | M186: 1 | N186: 735 | O186: 3 | P186: 110 | S186: =[1]!SUMSTRING(M186:N186,"#") ->  | T186: =[1]!SUMSTRING(O186:P186,"#") ->  | U186: =IF(Q186<>0,[1]!SUMSTRING(Q186:R186,"#"),"") ->  | V186: =[1]!SUMSTRING(S186:U186,"|") ->  | W186: 5 | X186: 63 | Y186: 300 | Z186: =IF(W186<>0,[1]!SUMSTRING(W186:Y186,"#"),"") -> 
A187: 6 | B187: 6010 | C187: 生命 | D187: 882 | E187: 护甲 | F187: 132 | M187: 1 | N187: 882 | O187: 3 | P187: 132 | S187: =[1]!SUMSTRING(M187:N187,"#") ->  | T187: =[1]!SUMSTRING(O187:P187,"#") ->  | U187: =IF(Q187<>0,[1]!SUMSTRING(Q187:R187,"#"),"") ->  | V187: =[1]!SUMSTRING(S187:U187,"|") ->  | Z187: =IF(W187<>0,[1]!SUMSTRING(W187:Y187,"#"),"") -> 
A188: 7 | B188: 6010 | C188: 生命 | D188: 1029 | E188: 护甲 | F188: 154 | M188: 1 | N188: 1029 | O188: 3 | P188: 154 | S188: =[1]!SUMSTRING(M188:N188,"#") ->  | T188: =[1]!SUMSTRING(O188:P188,"#") ->  | U188: =IF(Q188<>0,[1]!SUMSTRING(Q188:R188,"#"),"") ->  | V188: =[1]!SUMSTRING(S188:U188,"|") ->  | Z188: =IF(W188<>0,[1]!SUMSTRING(W188:Y188,"#"),"") -> 
A189: 8 | B189: 6010 | C189: 生命 | D189: 1176 | E189: 护甲 | F189: 176 | I189: 秘法 | J189: 护甲百分比 | K189: 300 | M189: 1 | N189: 1176 | O189: 3 | P189: 176 | S189: =[1]!SUMSTRING(M189:N189,"#") ->  | T189: =[1]!SUMSTRING(O189:P189,"#") ->  | U189: =IF(Q189<>0,[1]!SUMSTRING(Q189:R189,"#"),"") ->  | V189: =[1]!SUMSTRING(S189:U189,"|") ->  | W189: 3 | X189: 63 | Y189: 300 | Z189: =IF(W189<>0,[1]!SUMSTRING(W189:Y189,"#"),"") -> 
A190: 9 | B190: 6010 | C190: 生命 | D190: 1323 | E190: 护甲 | F190: 198 | M190: 1 | N190: 1323 | O190: 3 | P190: 198 | S190: =[1]!SUMSTRING(M190:N190,"#") ->  | T190: =[1]!SUMSTRING(O190:P190,"#") ->  | U190: =IF(Q190<>0,[1]!SUMSTRING(Q190:R190,"#"),"") ->  | V190: =[1]!SUMSTRING(S190:U190,"|") ->  | Z190: =IF(W190<>0,[1]!SUMSTRING(W190:Y190,"#"),"") -> 
A191: 10 | B191: 6010 | C191: 生命 | D191: 1470 | E191: 护甲 | F191: 220 | M191: 1 | N191: 1470 | O191: 3 | P191: 220 | S191: =[1]!SUMSTRING(M191:N191,"#") ->  | T191: =[1]!SUMSTRING(O191:P191,"#") ->  | U191: =IF(Q191<>0,[1]!SUMSTRING(Q191:R191,"#"),"") ->  | V191: =[1]!SUMSTRING(S191:U191,"|") ->  | Z191: =IF(W191<>0,[1]!SUMSTRING(W191:Y191,"#"),"") -> 
A192: 11 | B192: 6010 | C192: 生命 | D192: 1617 | E192: 护甲 | F192: 242 | I192: 玄策 | J192: 护甲百分比 | K192: 300 | M192: 1 | N192: 1617 | O192: 3 | P192: 242 | S192: =[1]!SUMSTRING(M192:N192,"#") ->  | T192: =[1]!SUMSTRING(O192:P192,"#") ->  | U192: =IF(Q192<>0,[1]!SUMSTRING(Q192:R192,"#"),"") ->  | V192: =[1]!SUMSTRING(S192:U192,"|") ->  | W192: 4 | X192: 63 | Y192: 300 | Z192: =IF(W192<>0,[1]!SUMSTRING(W192:Y192,"#"),"") -> 
A193: 12 | B193: 6010 | C193: 生命 | D193: 1764 | E193: 护甲 | F193: 264 | M193: 1 | N193: 1764 | O193: 3 | P193: 264 | S193: =[1]!SUMSTRING(M193:N193,"#") ->  | T193: =[1]!SUMSTRING(O193:P193,"#") ->  | U193: =IF(Q193<>0,[1]!SUMSTRING(Q193:R193,"#"),"") ->  | V193: =[1]!SUMSTRING(S193:U193,"|") ->  | Z193: =IF(W193<>0,[1]!SUMSTRING(W193:Y193,"#"),"") -> 
A194: 13 | B194: 6010 | C194: 生命 | D194: 1911 | E194: 护甲 | F194: 286 | M194: 1 | N194: 1911 | O194: 3 | P194: 286 | S194: =[1]!SUMSTRING(M194:N194,"#") ->  | T194: =[1]!SUMSTRING(O194:P194,"#") ->  | U194: =IF(Q194<>0,[1]!SUMSTRING(Q194:R194,"#"),"") ->  | V194: =[1]!SUMSTRING(S194:U194,"|") ->  | Z194: =IF(W194<>0,[1]!SUMSTRING(W194:Y194,"#"),"") -> 
A195: 14 | B195: 6010 | C195: 生命 | D195: 2058 | E195: 护甲 | F195: 308 | I195: 天罚 | J195: 护甲百分比 | K195: 300 | M195: =VLOOKUP(C195,$AB:$AC,2,0) -> 1 | N195: =D195 -> 2058 | O195: =VLOOKUP(E195,$AB:$AC,2,0) -> 3 | P195: =F195 -> 308 | Q195: =IF(G195<>0,VLOOKUP(G195,$AB:$AC,2,0),"") ->  | R195: =IF(H195<>0,H195,"") ->  | S195: =[1]!SUMSTRING(M195:N195,"#") ->  | T195: =[1]!SUMSTRING(O195:P195,"#") ->  | U195: =IF(Q195<>0,[1]!SUMSTRING(Q195:R195,"#"),"") ->  | V195: =[1]!SUMSTRING(S195:U195,"|") ->  | W195: 2 | X195: =IF(J195<>0,VLOOKUP(J195,$AB:$AC,2,0),"") -> 63 | Y195: =IF(K195<>0,K195,"") -> 300 | Z195: =IF(W195<>0,[1]!SUMSTRING(W195:Y195,"#"),"") -> 
A196: 15 | B196: 6010 | C196: 生命 | D196: 2205 | E196: 护甲 | F196: 330 | M196: 1 | N196: 2205 | O196: 3 | P196: 330 | S196: =[1]!SUMSTRING(M196:N196,"#") ->  | T196: =[1]!SUMSTRING(O196:P196,"#") ->  | U196: =IF(Q196<>0,[1]!SUMSTRING(Q196:R196,"#"),"") ->  | V196: =[1]!SUMSTRING(S196:U196,"|") ->  | W196: =IF(I196<>0,VLOOKUP(I196,$AG$3:$AH$7,2,0),"") ->  | Z196: =IF(W196<>0,[1]!SUMSTRING(W196:Y196,"#"),"") -> 
A197: 16 | B197: 6010 | C197: 生命 | D197: 2352 | E197: 护甲 | F197: 352 | M197: 1 | N197: 2352 | O197: 3 | P197: 352 | S197: =[1]!SUMSTRING(M197:N197,"#") ->  | T197: =[1]!SUMSTRING(O197:P197,"#") ->  | U197: =IF(Q197<>0,[1]!SUMSTRING(Q197:R197,"#"),"") ->  | V197: =[1]!SUMSTRING(S197:U197,"|") ->  | Z197: =IF(W197<>0,[1]!SUMSTRING(W197:Y197,"#"),"") -> 
A198: 17 | B198: 6010 | C198: 生命 | D198: 2500 | E198: 护甲 | F198: 375 | I198: 秘法 | J198: 护甲百分比 | K198: 300 | M198: 1 | N198: 2500 | O198: 3 | P198: 375 | S198: =[1]!SUMSTRING(M198:N198,"#") ->  | T198: =[1]!SUMSTRING(O198:P198,"#") ->  | U198: =IF(Q198<>0,[1]!SUMSTRING(Q198:R198,"#"),"") ->  | V198: =[1]!SUMSTRING(S198:U198,"|") ->  | W198: 3 | X198: 63 | Y198: 300 | Z198: =IF(W198<>0,[1]!SUMSTRING(W198:Y198,"#"),"") -> 
A199: 18 | B199: 6010 | C199: 生命 | D199: 2647 | E199: 护甲 | F199: 397 | M199: 1 | N199: 2647 | O199: 3 | P199: 397 | S199: =[1]!SUMSTRING(M199:N199,"#") ->  | T199: =[1]!SUMSTRING(O199:P199,"#") ->  | U199: =IF(Q199<>0,[1]!SUMSTRING(Q199:R199,"#"),"") ->  | V199: =[1]!SUMSTRING(S199:U199,"|") ->  | Z199: =IF(W199<>0,[1]!SUMSTRING(W199:Y199,"#"),"") -> 
A200: 19 | B200: 6010 | C200: 生命 | D200: 2794 | E200: 护甲 | F200: 419 | M200: 1 | N200: 2794 | O200: 3 | P200: 419 | S200: =[1]!SUMSTRING(M200:N200,"#") ->  | T200: =[1]!SUMSTRING(O200:P200,"#") ->  | U200: =IF(Q200<>0,[1]!SUMSTRING(Q200:R200,"#"),"") ->  | V200: =[1]!SUMSTRING(S200:U200,"|") ->  | Z200: =IF(W200<>0,[1]!SUMSTRING(W200:Y200,"#"),"") -> 
... 521 more rows

Sheet 消耗
A1: 阶级 | B1: 配件id | D1: 消耗1 | E1: 数量 | F1: 消耗2 | G1: 数量 | I1: 辅助1 | J1: 辅助2 | L1: 输出列
A2: 1 | B2: 6001 | D2: =B2 -> 6001 | E2: 1 | F2: 5 | G2: 0 | I2: =[1]!SUMSTRING(D2:E2,"#") ->  | J2: =[1]!SUMSTRING(F2:G2,"#") ->  | L2: =[1]!SUMSTRING(I2:J2,"|") -> 
A3: 2 | B3: 6001 | D3: =B3 -> 6001 | E3: 1 | F3: 5 | G3: 20 | I3: =[1]!SUMSTRING(D3:E3,"#") ->  | J3: =[1]!SUMSTRING(F3:G3,"#") ->  | L3: =[1]!SUMSTRING(I3:J3,"|") -> 
A4: 3 | B4: 6001 | D4: 6001 | E4: 1 | F4: 5 | G4: 35 | I4: =[1]!SUMSTRING(D4:E4,"#") ->  | J4: =[1]!SUMSTRING(F4:G4,"#") ->  | L4: =[1]!SUMSTRING(I4:J4,"|") -> 
A5: 4 | B5: 6001 | D5: 6001 | E5: 1 | F5: 5 | G5: 50 | I5: =[1]!SUMSTRING(D5:E5,"#") ->  | J5: =[1]!SUMSTRING(F5:G5,"#") ->  | L5: =[1]!SUMSTRING(I5:J5,"|") -> 
A6: 5 | B6: 6001 | D6: 6001 | E6: 2 | F6: 5 | G6: 75 | I6: =[1]!SUMSTRING(D6:E6,"#") ->  | J6: =[1]!SUMSTRING(F6:G6,"#") ->  | L6: =[1]!SUMSTRING(I6:J6,"|") -> 
A7: 6 | B7: 6001 | D7: 6001 | E7: 2 | F7: 5 | G7: 100 | I7: =[1]!SUMSTRING(D7:E7,"#") ->  | J7: =[1]!SUMSTRING(F7:G7,"#") ->  | L7: =[1]!SUMSTRING(I7:J7,"|") -> 
A8: 7 | B8: 6001 | D8: 6001 | E8: 2 | F8: 5 | G8: 130 | I8: =[1]!SUMSTRING(D8:E8,"#") ->  | J8: =[1]!SUMSTRING(F8:G8,"#") ->  | L8: =[1]!SUMSTRING(I8:J8,"|") -> 
A9: 8 | B9: 6001 | D9: 6001 | E9: 3 | F9: 5 | G9: 160 | I9: =[1]!SUMSTRING(D9:E9,"#") ->  | J9: =[1]!SUMSTRING(F9:G9,"#") ->  | L9: =[1]!SUMSTRING(I9:J9,"|") -> 
A10: 9 | B10: 6001 | D10: 6001 | E10: 3 | F10: 5 | G10: 195 | I10: =[1]!SUMSTRING(D10:E10,"#") ->  | J10: =[1]!SUMSTRING(F10:G10,"#") ->  | L10: =[1]!SUMSTRING(I10:J10,"|") -> 
A11: 10 | B11: 6001 | D11: 6001 | E11: 3 | F11: 5 | G11: 235 | I11: =[1]!SUMSTRING(D11:E11,"#") ->  | J11: =[1]!SUMSTRING(F11:G11,"#") ->  | L11: =[1]!SUMSTRING(I11:J11,"|") -> 
A12: 11 | B12: 6001 | D12: 6001 | E12: 3 | F12: 5 | G12: 280 | I12: =[1]!SUMSTRING(D12:E12,"#") ->  | J12: =[1]!SUMSTRING(F12:G12,"#") ->  | L12: =[1]!SUMSTRING(I12:J12,"|") -> 
A13: 12 | B13: 6001 | D13: 6001 | E13: 3 | F13: 5 | G13: 330 | I13: =[1]!SUMSTRING(D13:E13,"#") ->  | J13: =[1]!SUMSTRING(F13:G13,"#") ->  | L13: =[1]!SUMSTRING(I13:J13,"|") -> 
A14: 13 | B14: 6001 | D14: 6001 | E14: 3 | F14: 5 | G14: 380 | I14: =[1]!SUMSTRING(D14:E14,"#") ->  | J14: =[1]!SUMSTRING(F14:G14,"#") ->  | L14: =[1]!SUMSTRING(I14:J14,"|") -> 
A15: 14 | B15: 6001 | D15: 6001 | E15: 4 | F15: 5 | G15: 435 | I15: =[1]!SUMSTRING(D15:E15,"#") ->  | J15: =[1]!SUMSTRING(F15:G15,"#") ->  | L15: =[1]!SUMSTRING(I15:J15,"|") -> 
A16: 15 | B16: 6001 | D16: 6001 | E16: 5 | F16: 5 | G16: 495 | I16: =[1]!SUMSTRING(D16:E16,"#") ->  | J16: =[1]!SUMSTRING(F16:G16,"#") ->  | L16: =[1]!SUMSTRING(I16:J16,"|") -> 
A17: 16 | B17: 6001 | D17: 6001 | E17: 6 | F17: 5 | G17: 555 | I17: =[1]!SUMSTRING(D17:E17,"#") ->  | J17: =[1]!SUMSTRING(F17:G17,"#") ->  | L17: =[1]!SUMSTRING(I17:J17,"|") -> 
A18: 17 | B18: 6001 | D18: 6001 | E18: 8 | F18: 5 | G18: 620 | I18: =[1]!SUMSTRING(D18:E18,"#") ->  | J18: =[1]!SUMSTRING(F18:G18,"#") ->  | L18: =[1]!SUMSTRING(I18:J18,"|") -> 
A19: 18 | B19: 6001 | D19: 6001 | E19: 10 | F19: 5 | G19: 690 | I19: =[1]!SUMSTRING(D19:E19,"#") ->  | J19: =[1]!SUMSTRING(F19:G19,"#") ->  | L19: =[1]!SUMSTRING(I19:J19,"|") -> 
A20: 19 | B20: 6001 | D20: 6001 | E20: 21 | F20: 5 | G20: 765 | I20: =[1]!SUMSTRING(D20:E20,"#") ->  | J20: =[1]!SUMSTRING(F20:G20,"#") ->  | L20: =[1]!SUMSTRING(I20:J20,"|") -> 
A21: 20 | B21: 6001 | D21: 6001 | E21: 30 | F21: 5 | G21: 840 | I21: =[1]!SUMSTRING(D21:E21,"#") ->  | J21: =[1]!SUMSTRING(F21:G21,"#") ->  | L21: =[1]!SUMSTRING(I21:J21,"|") -> 
A22: =A2 -> 1 | B22: =B2+1 -> 6002 | D22: 6002 | E22: =E2 -> 1 | F22: 5 | G22: 0 | I22: =[1]!SUMSTRING(D22:E22,"#") ->  | J22: =[1]!SUMSTRING(F22:G22,"#") ->  | L22: =[1]!SUMSTRING(I22:J22,"|") -> 
A23: =A3 -> 2 | B23: =B3+1 -> 6002 | D23: 6002 | E23: =E3 -> 1 | F23: 5 | G23: 20 | I23: =[1]!SUMSTRING(D23:E23,"#") ->  | J23: =[1]!SUMSTRING(F23:G23,"#") ->  | L23: =[1]!SUMSTRING(I23:J23,"|") -> 
A24: 3 | B24: 6002 | D24: 6002 | E24: 1 | F24: 5 | G24: 35 | I24: =[1]!SUMSTRING(D24:E24,"#") ->  | J24: =[1]!SUMSTRING(F24:G24,"#") ->  | L24: =[1]!SUMSTRING(I24:J24,"|") -> 
A25: 4 | B25: 6002 | D25: 6002 | E25: 1 | F25: 5 | G25: 50 | I25: =[1]!SUMSTRING(D25:E25,"#") ->  | J25: =[1]!SUMSTRING(F25:G25,"#") ->  | L25: =[1]!SUMSTRING(I25:J25,"|") -> 
A26: 5 | B26: 6002 | D26: 6002 | E26: 2 | F26: 5 | G26: 75 | I26: =[1]!SUMSTRING(D26:E26,"#") ->  | J26: =[1]!SUMSTRING(F26:G26,"#") ->  | L26: =[1]!SUMSTRING(I26:J26,"|") -> 
A27: 6 | B27: 6002 | D27: 6002 | E27: 2 | F27: 5 | G27: 100 | I27: =[1]!SUMSTRING(D27:E27,"#") ->  | J27: =[1]!SUMSTRING(F27:G27,"#") ->  | L27: =[1]!SUMSTRING(I27:J27,"|") -> 
A28: 7 | B28: 6002 | D28: 6002 | E28: 2 | F28: 5 | G28: 130 | I28: =[1]!SUMSTRING(D28:E28,"#") ->  | J28: =[1]!SUMSTRING(F28:G28,"#") ->  | L28: =[1]!SUMSTRING(I28:J28,"|") -> 
A29: 8 | B29: 6002 | D29: 6002 | E29: 3 | F29: 5 | G29: 160 | I29: =[1]!SUMSTRING(D29:E29,"#") ->  | J29: =[1]!SUMSTRING(F29:G29,"#") ->  | L29: =[1]!SUMSTRING(I29:J29,"|") -> 
A30: 9 | B30: 6002 | D30: 6002 | E30: 3 | F30: 5 | G30: 195 | I30: =[1]!SUMSTRING(D30:E30,"#") ->  | J30: =[1]!SUMSTRING(F30:G30,"#") ->  | L30: =[1]!SUMSTRING(I30:J30,"|") -> 
A31: 10 | B31: 6002 | D31: 6002 | E31: 3 | F31: 5 | G31: 235 | I31: =[1]!SUMSTRING(D31:E31,"#") ->  | J31: =[1]!SUMSTRING(F31:G31,"#") ->  | L31: =[1]!SUMSTRING(I31:J31,"|") -> 
A32: 11 | B32: 6002 | D32: 6002 | E32: 3 | F32: 5 | G32: 280 | I32: =[1]!SUMSTRING(D32:E32,"#") ->  | J32: =[1]!SUMSTRING(F32:G32,"#") ->  | L32: =[1]!SUMSTRING(I32:J32,"|") -> 
A33: 12 | B33: 6002 | D33: 6002 | E33: 3 | F33: 5 | G33: 330 | I33: =[1]!SUMSTRING(D33:E33,"#") ->  | J33: =[1]!SUMSTRING(F33:G33,"#") ->  | L33: =[1]!SUMSTRING(I33:J33,"|") -> 
A34: 13 | B34: 6002 | D34: 6002 | E34: 3 | F34: 5 | G34: 380 | I34: =[1]!SUMSTRING(D34:E34,"#") ->  | J34: =[1]!SUMSTRING(F34:G34,"#") ->  | L34: =[1]!SUMSTRING(I34:J34,"|") -> 
A35: 14 | B35: 6002 | D35: 6002 | E35: 4 | F35: 5 | G35: 435 | I35: =[1]!SUMSTRING(D35:E35,"#") ->  | J35: =[1]!SUMSTRING(F35:G35,"#") ->  | L35: =[1]!SUMSTRING(I35:J35,"|") -> 
A36: 15 | B36: 6002 | D36: 6002 | E36: 5 | F36: 5 | G36: 495 | I36: =[1]!SUMSTRING(D36:E36,"#") ->  | J36: =[1]!SUMSTRING(F36:G36,"#") ->  | L36: =[1]!SUMSTRING(I36:J36,"|") -> 
A37: 16 | B37: 6002 | D37: 6002 | E37: 6 | F37: 5 | G37: 555 | I37: =[1]!SUMSTRING(D37:E37,"#") ->  | J37: =[1]!SUMSTRING(F37:G37,"#") ->  | L37: =[1]!SUMSTRING(I37:J37,"|") -> 
A38: 17 | B38: 6002 | D38: 6002 | E38: 8 | F38: 5 | G38: 620 | I38: =[1]!SUMSTRING(D38:E38,"#") ->  | J38: =[1]!SUMSTRING(F38:G38,"#") ->  | L38: =[1]!SUMSTRING(I38:J38,"|") -> 
A39: 18 | B39: 6002 | D39: 6002 | E39: 10 | F39: 5 | G39: 690 | I39: =[1]!SUMSTRING(D39:E39,"#") ->  | J39: =[1]!SUMSTRING(F39:G39,"#") ->  | L39: =[1]!SUMSTRING(I39:J39,"|") -> 
A40: 19 | B40: 6002 | D40: 6002 | E40: 21 | F40: 5 | G40: 765 | I40: =[1]!SUMSTRING(D40:E40,"#") ->  | J40: =[1]!SUMSTRING(F40:G40,"#") ->  | L40: =[1]!SUMSTRING(I40:J40,"|") -> 
A41: 20 | B41: 6002 | D41: 6002 | E41: 30 | F41: 5 | G41: 840 | I41: =[1]!SUMSTRING(D41:E41,"#") ->  | J41: =[1]!SUMSTRING(F41:G41,"#") ->  | L41: =[1]!SUMSTRING(I41:J41,"|") -> 
A42: 1 | B42: 6003 | D42: 6003 | E42: 1 | F42: 5 | G42: 0 | I42: =[1]!SUMSTRING(D42:E42,"#") ->  | J42: =[1]!SUMSTRING(F42:G42,"#") ->  | L42: =[1]!SUMSTRING(I42:J42,"|") -> 
A43: 2 | B43: 6003 | D43: 6003 | E43: 1 | F43: 5 | G43: 20 | I43: =[1]!SUMSTRING(D43:E43,"#") ->  | J43: =[1]!SUMSTRING(F43:G43,"#") ->  | L43: =[1]!SUMSTRING(I43:J43,"|") -> 
A44: 3 | B44: 6003 | D44: 6003 | E44: 1 | F44: 5 | G44: 35 | I44: =[1]!SUMSTRING(D44:E44,"#") ->  | J44: =[1]!SUMSTRING(F44:G44,"#") ->  | L44: =[1]!SUMSTRING(I44:J44,"|") -> 
A45: 4 | B45: 6003 | D45: 6003 | E45: 1 | F45: 5 | G45: 50 | I45: =[1]!SUMSTRING(D45:E45,"#") ->  | J45: =[1]!SUMSTRING(F45:G45,"#") ->  | L45: =[1]!SUMSTRING(I45:J45,"|") -> 
A46: 5 | B46: 6003 | D46: 6003 | E46: 2 | F46: 5 | G46: 75 | I46: =[1]!SUMSTRING(D46:E46,"#") ->  | J46: =[1]!SUMSTRING(F46:G46,"#") ->  | L46: =[1]!SUMSTRING(I46:J46,"|") -> 
A47: 6 | B47: 6003 | D47: 6003 | E47: 2 | F47: 5 | G47: 100 | I47: =[1]!SUMSTRING(D47:E47,"#") ->  | J47: =[1]!SUMSTRING(F47:G47,"#") ->  | L47: =[1]!SUMSTRING(I47:J47,"|") -> 
A48: 7 | B48: 6003 | D48: 6003 | E48: 2 | F48: 5 | G48: 130 | I48: =[1]!SUMSTRING(D48:E48,"#") ->  | J48: =[1]!SUMSTRING(F48:G48,"#") ->  | L48: =[1]!SUMSTRING(I48:J48,"|") -> 
A49: 8 | B49: 6003 | D49: 6003 | E49: 3 | F49: 5 | G49: 160 | I49: =[1]!SUMSTRING(D49:E49,"#") ->  | J49: =[1]!SUMSTRING(F49:G49,"#") ->  | L49: =[1]!SUMSTRING(I49:J49,"|") -> 
A50: 9 | B50: 6003 | D50: 6003 | E50: 3 | F50: 5 | G50: 195 | I50: =[1]!SUMSTRING(D50:E50,"#") ->  | J50: =[1]!SUMSTRING(F50:G50,"#") ->  | L50: =[1]!SUMSTRING(I50:J50,"|") -> 
A51: 10 | B51: 6003 | D51: 6003 | E51: 3 | F51: 5 | G51: 235 | I51: =[1]!SUMSTRING(D51:E51,"#") ->  | J51: =[1]!SUMSTRING(F51:G51,"#") ->  | L51: =[1]!SUMSTRING(I51:J51,"|") -> 
A52: 11 | B52: 6003 | D52: 6003 | E52: 3 | F52: 5 | G52: 280 | I52: =[1]!SUMSTRING(D52:E52,"#") ->  | J52: =[1]!SUMSTRING(F52:G52,"#") ->  | L52: =[1]!SUMSTRING(I52:J52,"|") -> 
A53: 12 | B53: 6003 | D53: 6003 | E53: 3 | F53: 5 | G53: 330 | I53: =[1]!SUMSTRING(D53:E53,"#") ->  | J53: =[1]!SUMSTRING(F53:G53,"#") ->  | L53: =[1]!SUMSTRING(I53:J53,"|") -> 
A54: 13 | B54: 6003 | D54: 6003 | E54: 3 | F54: 5 | G54: 380 | I54: =[1]!SUMSTRING(D54:E54,"#") ->  | J54: =[1]!SUMSTRING(F54:G54,"#") ->  | L54: =[1]!SUMSTRING(I54:J54,"|") -> 
A55: 14 | B55: 6003 | D55: 6003 | E55: 4 | F55: 5 | G55: 435 | I55: =[1]!SUMSTRING(D55:E55,"#") ->  | J55: =[1]!SUMSTRING(F55:G55,"#") ->  | L55: =[1]!SUMSTRING(I55:J55,"|") -> 
A56: 15 | B56: 6003 | D56: 6003 | E56: 5 | F56: 5 | G56: 495 | I56: =[1]!SUMSTRING(D56:E56,"#") ->  | J56: =[1]!SUMSTRING(F56:G56,"#") ->  | L56: =[1]!SUMSTRING(I56:J56,"|") -> 
A57: 16 | B57: 6003 | D57: 6003 | E57: 6 | F57: 5 | G57: 555 | I57: =[1]!SUMSTRING(D57:E57,"#") ->  | J57: =[1]!SUMSTRING(F57:G57,"#") ->  | L57: =[1]!SUMSTRING(I57:J57,"|") -> 
A58: 17 | B58: 6003 | D58: 6003 | E58: 8 | F58: 5 | G58: 620 | I58: =[1]!SUMSTRING(D58:E58,"#") ->  | J58: =[1]!SUMSTRING(F58:G58,"#") ->  | L58: =[1]!SUMSTRING(I58:J58,"|") -> 
A59: 18 | B59: 6003 | D59: 6003 | E59: 10 | F59: 5 | G59: 690 | I59: =[1]!SUMSTRING(D59:E59,"#") ->  | J59: =[1]!SUMSTRING(F59:G59,"#") ->  | L59: =[1]!SUMSTRING(I59:J59,"|") -> 
A60: 19 | B60: 6003 | D60: 6003 | E60: 21 | F60: 5 | G60: 765 | I60: =[1]!SUMSTRING(D60:E60,"#") ->  | J60: =[1]!SUMSTRING(F60:G60,"#") ->  | L60: =[1]!SUMSTRING(I60:J60,"|") -> 
A61: 20 | B61: 6003 | D61: 6003 | E61: 30 | F61: 5 | G61: 840 | I61: =[1]!SUMSTRING(D61:E61,"#") ->  | J61: =[1]!SUMSTRING(F61:G61,"#") ->  | L61: =[1]!SUMSTRING(I61:J61,"|") -> 
A62: 1 | B62: 6004 | D62: 6004 | E62: 1 | F62: 5 | G62: 0 | I62: =[1]!SUMSTRING(D62:E62,"#") ->  | J62: =[1]!SUMSTRING(F62:G62,"#") ->  | L62: =[1]!SUMSTRING(I62:J62,"|") -> 
A63: 2 | B63: 6004 | D63: 6004 | E63: 1 | F63: 5 | G63: 20 | I63: =[1]!SUMSTRING(D63:E63,"#") ->  | J63: =[1]!SUMSTRING(F63:G63,"#") ->  | L63: =[1]!SUMSTRING(I63:J63,"|") -> 
A64: 3 | B64: 6004 | D64: 6004 | E64: 1 | F64: 5 | G64: 35 | I64: =[1]!SUMSTRING(D64:E64,"#") ->  | J64: =[1]!SUMSTRING(F64:G64,"#") ->  | L64: =[1]!SUMSTRING(I64:J64,"|") -> 
A65: 4 | B65: 6004 | D65: 6004 | E65: 1 | F65: 5 | G65: 50 | I65: =[1]!SUMSTRING(D65:E65,"#") ->  | J65: =[1]!SUMSTRING(F65:G65,"#") ->  | L65: =[1]!SUMSTRING(I65:J65,"|") -> 
A66: 5 | B66: 6004 | D66: 6004 | E66: 2 | F66: 5 | G66: 75 | I66: =[1]!SUMSTRING(D66:E66,"#") ->  | J66: =[1]!SUMSTRING(F66:G66,"#") ->  | L66: =[1]!SUMSTRING(I66:J66,"|") -> 
A67: 6 | B67: 6004 | D67: =B67 -> 6004 | E67: 2 | F67: 5 | G67: 100 | I67: =[1]!SUMSTRING(D67:E67,"#") ->  | J67: =[1]!SUMSTRING(F67:G67,"#") ->  | L67: =[1]!SUMSTRING(I67:J67,"|") -> 
A68: 7 | B68: 6004 | D68: 6004 | E68: 2 | F68: 5 | G68: 130 | I68: =[1]!SUMSTRING(D68:E68,"#") ->  | J68: =[1]!SUMSTRING(F68:G68,"#") ->  | L68: =[1]!SUMSTRING(I68:J68,"|") -> 
A69: 8 | B69: 6004 | D69: 6004 | E69: 3 | F69: 5 | G69: 160 | I69: =[1]!SUMSTRING(D69:E69,"#") ->  | J69: =[1]!SUMSTRING(F69:G69,"#") ->  | L69: =[1]!SUMSTRING(I69:J69,"|") -> 
A70: 9 | B70: 6004 | D70: 6004 | E70: 3 | F70: 5 | G70: 195 | I70: =[1]!SUMSTRING(D70:E70,"#") ->  | J70: =[1]!SUMSTRING(F70:G70,"#") ->  | L70: =[1]!SUMSTRING(I70:J70,"|") -> 
A71: 10 | B71: 6004 | D71: 6004 | E71: 3 | F71: 5 | G71: 235 | I71: =[1]!SUMSTRING(D71:E71,"#") ->  | J71: =[1]!SUMSTRING(F71:G71,"#") ->  | L71: =[1]!SUMSTRING(I71:J71,"|") -> 
A72: 11 | B72: 6004 | D72: 6004 | E72: 3 | F72: 5 | G72: 280 | I72: =[1]!SUMSTRING(D72:E72,"#") ->  | J72: =[1]!SUMSTRING(F72:G72,"#") ->  | L72: =[1]!SUMSTRING(I72:J72,"|") -> 
A73: 12 | B73: 6004 | D73: 6004 | E73: 3 | F73: 5 | G73: 330 | I73: =[1]!SUMSTRING(D73:E73,"#") ->  | J73: =[1]!SUMSTRING(F73:G73,"#") ->  | L73: =[1]!SUMSTRING(I73:J73,"|") -> 
A74: 13 | B74: 6004 | D74: 6004 | E74: 3 | F74: 5 | G74: 380 | I74: =[1]!SUMSTRING(D74:E74,"#") ->  | J74: =[1]!SUMSTRING(F74:G74,"#") ->  | L74: =[1]!SUMSTRING(I74:J74,"|") -> 
A75: 14 | B75: 6004 | D75: 6004 | E75: 4 | F75: 5 | G75: 435 | I75: =[1]!SUMSTRING(D75:E75,"#") ->  | J75: =[1]!SUMSTRING(F75:G75,"#") ->  | L75: =[1]!SUMSTRING(I75:J75,"|") -> 
A76: 15 | B76: 6004 | D76: 6004 | E76: 5 | F76: 5 | G76: 495 | I76: =[1]!SUMSTRING(D76:E76,"#") ->  | J76: =[1]!SUMSTRING(F76:G76,"#") ->  | L76: =[1]!SUMSTRING(I76:J76,"|") -> 
A77: 16 | B77: 6004 | D77: 6004 | E77: 6 | F77: 5 | G77: 555 | I77: =[1]!SUMSTRING(D77:E77,"#") ->  | J77: =[1]!SUMSTRING(F77:G77,"#") ->  | L77: =[1]!SUMSTRING(I77:J77,"|") -> 
A78: 17 | B78: 6004 | D78: 6004 | E78: 8 | F78: 5 | G78: 620 | I78: =[1]!SUMSTRING(D78:E78,"#") ->  | J78: =[1]!SUMSTRING(F78:G78,"#") ->  | L78: =[1]!SUMSTRING(I78:J78,"|") -> 
A79: 18 | B79: 6004 | D79: 6004 | E79: 10 | F79: 5 | G79: 690 | I79: =[1]!SUMSTRING(D79:E79,"#") ->  | J79: =[1]!SUMSTRING(F79:G79,"#") ->  | L79: =[1]!SUMSTRING(I79:J79,"|") -> 
A80: 19 | B80: 6004 | D80: 6004 | E80: 21 | F80: 5 | G80: 765 | I80: =[1]!SUMSTRING(D80:E80,"#") ->  | J80: =[1]!SUMSTRING(F80:G80,"#") ->  | L80: =[1]!SUMSTRING(I80:J80,"|") -> 
A81: 20 | B81: 6004 | D81: 6004 | E81: 30 | F81: 5 | G81: 840 | I81: =[1]!SUMSTRING(D81:E81,"#") ->  | J81: =[1]!SUMSTRING(F81:G81,"#") ->  | L81: =[1]!SUMSTRING(I81:J81,"|") -> 
A82: 1 | B82: 6005 | D82: 6005 | E82: 1 | F82: 5 | G82: 0 | I82: =[1]!SUMSTRING(D82:E82,"#") ->  | J82: =[1]!SUMSTRING(F82:G82,"#") ->  | L82: =[1]!SUMSTRING(I82:J82,"|") -> 
A83: 2 | B83: 6005 | D83: 6005 | E83: 1 | F83: 5 | G83: 20 | I83: =[1]!SUMSTRING(D83:E83,"#") ->  | J83: =[1]!SUMSTRING(F83:G83,"#") ->  | L83: =[1]!SUMSTRING(I83:J83,"|") -> 
A84: 3 | B84: 6005 | D84: 6005 | E84: 1 | F84: 5 | G84: 35 | I84: =[1]!SUMSTRING(D84:E84,"#") ->  | J84: =[1]!SUMSTRING(F84:G84,"#") ->  | L84: =[1]!SUMSTRING(I84:J84,"|") -> 
A85: 4 | B85: 6005 | D85: 6005 | E85: 1 | F85: 5 | G85: 50 | I85: =[1]!SUMSTRING(D85:E85,"#") ->  | J85: =[1]!SUMSTRING(F85:G85,"#") ->  | L85: =[1]!SUMSTRING(I85:J85,"|") -> 
A86: 5 | B86: 6005 | D86: 6005 | E86: 2 | F86: 5 | G86: 75 | I86: =[1]!SUMSTRING(D86:E86,"#") ->  | J86: =[1]!SUMSTRING(F86:G86,"#") ->  | L86: =[1]!SUMSTRING(I86:J86,"|") -> 
A87: =A67 -> 6 | B87: =B67+1 -> 6005 | D87: 6005 | E87: =E67 -> 2 | F87: 5 | G87: 100 | I87: =[1]!SUMSTRING(D87:E87,"#") ->  | J87: =[1]!SUMSTRING(F87:G87,"#") ->  | L87: =[1]!SUMSTRING(I87:J87,"|") -> 
A88: 7 | B88: 6005 | D88: 6005 | E88: 2 | F88: 5 | G88: 130 | I88: =[1]!SUMSTRING(D88:E88,"#") ->  | J88: =[1]!SUMSTRING(F88:G88,"#") ->  | L88: =[1]!SUMSTRING(I88:J88,"|") -> 
A89: 8 | B89: 6005 | D89: 6005 | E89: 3 | F89: 5 | G89: 160 | I89: =[1]!SUMSTRING(D89:E89,"#") ->  | J89: =[1]!SUMSTRING(F89:G89,"#") ->  | L89: =[1]!SUMSTRING(I89:J89,"|") -> 
A90: 9 | B90: 6005 | D90: 6005 | E90: 3 | F90: 5 | G90: 195 | I90: =[1]!SUMSTRING(D90:E90,"#") ->  | J90: =[1]!SUMSTRING(F90:G90,"#") ->  | L90: =[1]!SUMSTRING(I90:J90,"|") -> 
A91: 10 | B91: 6005 | D91: 6005 | E91: 3 | F91: 5 | G91: 235 | I91: =[1]!SUMSTRING(D91:E91,"#") ->  | J91: =[1]!SUMSTRING(F91:G91,"#") ->  | L91: =[1]!SUMSTRING(I91:J91,"|") -> 
A92: 11 | B92: 6005 | D92: 6005 | E92: 3 | F92: 5 | G92: 280 | I92: =[1]!SUMSTRING(D92:E92,"#") ->  | J92: =[1]!SUMSTRING(F92:G92,"#") ->  | L92: =[1]!SUMSTRING(I92:J92,"|") -> 
A93: 12 | B93: 6005 | D93: 6005 | E93: 3 | F93: 5 | G93: 330 | I93: =[1]!SUMSTRING(D93:E93,"#") ->  | J93: =[1]!SUMSTRING(F93:G93,"#") ->  | L93: =[1]!SUMSTRING(I93:J93,"|") -> 
A94: 13 | B94: 6005 | D94: 6005 | E94: 3 | F94: 5 | G94: 380 | I94: =[1]!SUMSTRING(D94:E94,"#") ->  | J94: =[1]!SUMSTRING(F94:G94,"#") ->  | L94: =[1]!SUMSTRING(I94:J94,"|") -> 
A95: 14 | B95: 6005 | D95: 6005 | E95: 4 | F95: 5 | G95: 435 | I95: =[1]!SUMSTRING(D95:E95,"#") ->  | J95: =[1]!SUMSTRING(F95:G95,"#") ->  | L95: =[1]!SUMSTRING(I95:J95,"|") -> 
A96: 15 | B96: 6005 | D96: 6005 | E96: 5 | F96: 5 | G96: 495 | I96: =[1]!SUMSTRING(D96:E96,"#") ->  | J96: =[1]!SUMSTRING(F96:G96,"#") ->  | L96: =[1]!SUMSTRING(I96:J96,"|") -> 
A97: 16 | B97: 6005 | D97: 6005 | E97: 6 | F97: 5 | G97: 555 | I97: =[1]!SUMSTRING(D97:E97,"#") ->  | J97: =[1]!SUMSTRING(F97:G97,"#") ->  | L97: =[1]!SUMSTRING(I97:J97,"|") -> 
A98: 17 | B98: 6005 | D98: 6005 | E98: 8 | F98: 5 | G98: 620 | I98: =[1]!SUMSTRING(D98:E98,"#") ->  | J98: =[1]!SUMSTRING(F98:G98,"#") ->  | L98: =[1]!SUMSTRING(I98:J98,"|") -> 
A99: 18 | B99: 6005 | D99: 6005 | E99: 10 | F99: 5 | G99: 690 | I99: =[1]!SUMSTRING(D99:E99,"#") ->  | J99: =[1]!SUMSTRING(F99:G99,"#") ->  | L99: =[1]!SUMSTRING(I99:J99,"|") -> 
A100: 19 | B100: 6005 | D100: 6005 | E100: 21 | F100: 5 | G100: 765 | I100: =[1]!SUMSTRING(D100:E100,"#") ->  | J100: =[1]!SUMSTRING(F100:G100,"#") ->  | L100: =[1]!SUMSTRING(I100:J100,"|") -> 
A101: 20 | B101: 6005 | D101: 6005 | E101: 30 | F101: 5 | G101: 840 | I101: =[1]!SUMSTRING(D101:E101,"#") ->  | J101: =[1]!SUMSTRING(F101:G101,"#") ->  | L101: =[1]!SUMSTRING(I101:J101,"|") -> 
A102: 1 | B102: 6006 | D102: 6006 | E102: 1 | F102: 5 | G102: 0 | I102: =[1]!SUMSTRING(D102:E102,"#") ->  | J102: =[1]!SUMSTRING(F102:G102,"#") ->  | L102: =[1]!SUMSTRING(I102:J102,"|") -> 
A103: 2 | B103: 6006 | D103: 6006 | E103: 1 | F103: 5 | G103: 20 | I103: =[1]!SUMSTRING(D103:E103,"#") ->  | J103: =[1]!SUMSTRING(F103:G103,"#") ->  | L103: =[1]!SUMSTRING(I103:J103,"|") -> 
A104: 3 | B104: 6006 | D104: 6006 | E104: 1 | F104: 5 | G104: 35 | I104: =[1]!SUMSTRING(D104:E104,"#") ->  | J104: =[1]!SUMSTRING(F104:G104,"#") ->  | L104: =[1]!SUMSTRING(I104:J104,"|") -> 
A105: 4 | B105: 6006 | D105: 6006 | E105: 1 | F105: 5 | G105: 50 | I105: =[1]!SUMSTRING(D105:E105,"#") ->  | J105: =[1]!SUMSTRING(F105:G105,"#") ->  | L105: =[1]!SUMSTRING(I105:J105,"|") -> 
A106: 5 | B106: 6006 | D106: 6006 | E106: 2 | F106: 5 | G106: 75 | I106: =[1]!SUMSTRING(D106:E106,"#") ->  | J106: =[1]!SUMSTRING(F106:G106,"#") ->  | L106: =[1]!SUMSTRING(I106:J106,"|") -> 
A107: 6 | B107: 6006 | D107: 6006 | E107: 2 | F107: 5 | G107: 100 | I107: =[1]!SUMSTRING(D107:E107,"#") ->  | J107: =[1]!SUMSTRING(F107:G107,"#") ->  | L107: =[1]!SUMSTRING(I107:J107,"|") -> 
A108: 7 | B108: 6006 | D108: 6006 | E108: 2 | F108: 5 | G108: 130 | I108: =[1]!SUMSTRING(D108:E108,"#") ->  | J108: =[1]!SUMSTRING(F108:G108,"#") ->  | L108: =[1]!SUMSTRING(I108:J108,"|") -> 
A109: 8 | B109: 6006 | D109: 6006 | E109: 3 | F109: 5 | G109: 160 | I109: =[1]!SUMSTRING(D109:E109,"#") ->  | J109: =[1]!SUMSTRING(F109:G109,"#") ->  | L109: =[1]!SUMSTRING(I109:J109,"|") -> 
A110: 9 | B110: 6006 | D110: 6006 | E110: 3 | F110: 5 | G110: 195 | I110: =[1]!SUMSTRING(D110:E110,"#") ->  | J110: =[1]!SUMSTRING(F110:G110,"#") ->  | L110: =[1]!SUMSTRING(I110:J110,"|") -> 
A111: 10 | B111: 6006 | D111: 6006 | E111: 3 | F111: 5 | G111: 235 | I111: =[1]!SUMSTRING(D111:E111,"#") ->  | J111: =[1]!SUMSTRING(F111:G111,"#") ->  | L111: =[1]!SUMSTRING(I111:J111,"|") -> 
A112: 11 | B112: 6006 | D112: 6006 | E112: 3 | F112: 5 | G112: 280 | I112: =[1]!SUMSTRING(D112:E112,"#") ->  | J112: =[1]!SUMSTRING(F112:G112,"#") ->  | L112: =[1]!SUMSTRING(I112:J112,"|") -> 
A113: 12 | B113: 6006 | D113: 6006 | E113: 3 | F113: 5 | G113: 330 | I113: =[1]!SUMSTRING(D113:E113,"#") ->  | J113: =[1]!SUMSTRING(F113:G113,"#") ->  | L113: =[1]!SUMSTRING(I113:J113,"|") -> 
A114: 13 | B114: 6006 | D114: 6006 | E114: 3 | F114: 5 | G114: 380 | I114: =[1]!SUMSTRING(D114:E114,"#") ->  | J114: =[1]!SUMSTRING(F114:G114,"#") ->  | L114: =[1]!SUMSTRING(I114:J114,"|") -> 
A115: 14 | B115: 6006 | D115: 6006 | E115: 4 | F115: 5 | G115: 435 | I115: =[1]!SUMSTRING(D115:E115,"#") ->  | J115: =[1]!SUMSTRING(F115:G115,"#") ->  | L115: =[1]!SUMSTRING(I115:J115,"|") -> 
A116: 15 | B116: 6006 | D116: 6006 | E116: 5 | F116: 5 | G116: 495 | I116: =[1]!SUMSTRING(D116:E116,"#") ->  | J116: =[1]!SUMSTRING(F116:G116,"#") ->  | L116: =[1]!SUMSTRING(I116:J116,"|") -> 
A117: 16 | B117: 6006 | D117: 6006 | E117: 6 | F117: 5 | G117: 555 | I117: =[1]!SUMSTRING(D117:E117,"#") ->  | J117: =[1]!SUMSTRING(F117:G117,"#") ->  | L117: =[1]!SUMSTRING(I117:J117,"|") -> 
A118: 17 | B118: 6006 | D118: 6006 | E118: 8 | F118: 5 | G118: 620 | I118: =[1]!SUMSTRING(D118:E118,"#") ->  | J118: =[1]!SUMSTRING(F118:G118,"#") ->  | L118: =[1]!SUMSTRING(I118:J118,"|") -> 
A119: 18 | B119: 6006 | D119: 6006 | E119: 10 | F119: 5 | G119: 690 | I119: =[1]!SUMSTRING(D119:E119,"#") ->  | J119: =[1]!SUMSTRING(F119:G119,"#") ->  | L119: =[1]!SUMSTRING(I119:J119,"|") -> 
A120: 19 | B120: 6006 | D120: 6006 | E120: 21 | F120: 5 | G120: 765 | I120: =[1]!SUMSTRING(D120:E120,"#") ->  | J120: =[1]!SUMSTRING(F120:G120,"#") ->  | L120: =[1]!SUMSTRING(I120:J120,"|") -> 
A121: 20 | B121: 6006 | D121: 6006 | E121: 30 | F121: 5 | G121: 840 | I121: =[1]!SUMSTRING(D121:E121,"#") ->  | J121: =[1]!SUMSTRING(F121:G121,"#") ->  | L121: =[1]!SUMSTRING(I121:J121,"|") -> 
A122: 1 | B122: 6007 | D122: 6007 | E122: 1 | F122: 5 | G122: 0 | I122: =[1]!SUMSTRING(D122:E122,"#") ->  | J122: =[1]!SUMSTRING(F122:G122,"#") ->  | L122: =[1]!SUMSTRING(I122:J122,"|") -> 
A123: 2 | B123: 6007 | D123: 6007 | E123: 1 | F123: 5 | G123: 20 | I123: =[1]!SUMSTRING(D123:E123,"#") ->  | J123: =[1]!SUMSTRING(F123:G123,"#") ->  | L123: =[1]!SUMSTRING(I123:J123,"|") -> 
A124: 3 | B124: 6007 | D124: 6007 | E124: 1 | F124: 5 | G124: 35 | I124: =[1]!SUMSTRING(D124:E124,"#") ->  | J124: =[1]!SUMSTRING(F124:G124,"#") ->  | L124: =[1]!SUMSTRING(I124:J124,"|") -> 
A125: 4 | B125: 6007 | D125: 6007 | E125: 1 | F125: 5 | G125: 50 | I125: =[1]!SUMSTRING(D125:E125,"#") ->  | J125: =[1]!SUMSTRING(F125:G125,"#") ->  | L125: =[1]!SUMSTRING(I125:J125,"|") -> 
A126: 5 | B126: 6007 | D126: 6007 | E126: 2 | F126: 5 | G126: 75 | I126: =[1]!SUMSTRING(D126:E126,"#") ->  | J126: =[1]!SUMSTRING(F126:G126,"#") ->  | L126: =[1]!SUMSTRING(I126:J126,"|") -> 
A127: 6 | B127: 6007 | D127: 6007 | E127: 2 | F127: 5 | G127: 100 | I127: =[1]!SUMSTRING(D127:E127,"#") ->  | J127: =[1]!SUMSTRING(F127:G127,"#") ->  | L127: =[1]!SUMSTRING(I127:J127,"|") -> 
A128: 7 | B128: 6007 | D128: 6007 | E128: 2 | F128: 5 | G128: 130 | I128: =[1]!SUMSTRING(D128:E128,"#") ->  | J128: =[1]!SUMSTRING(F128:G128,"#") ->  | L128: =[1]!SUMSTRING(I128:J128,"|") -> 
A129: 8 | B129: 6007 | D129: 6007 | E129: 3 | F129: 5 | G129: 160 | I129: =[1]!SUMSTRING(D129:E129,"#") ->  | J129: =[1]!SUMSTRING(F129:G129,"#") ->  | L129: =[1]!SUMSTRING(I129:J129,"|") -> 
A130: 9 | B130: 6007 | D130: 6007 | E130: 3 | F130: 5 | G130: 195 | I130: =[1]!SUMSTRING(D130:E130,"#") ->  | J130: =[1]!SUMSTRING(F130:G130,"#") ->  | L130: =[1]!SUMSTRING(I130:J130,"|") -> 
A131: 10 | B131: 6007 | D131: =B131 -> 6007 | E131: 3 | F131: 5 | G131: 235 | I131: =[1]!SUMSTRING(D131:E131,"#") ->  | J131: =[1]!SUMSTRING(F131:G131,"#") ->  | L131: =[1]!SUMSTRING(I131:J131,"|") -> 
A132: 11 | B132: 6007 | D132: 6007 | E132: 3 | F132: 5 | G132: 280 | I132: =[1]!SUMSTRING(D132:E132,"#") ->  | J132: =[1]!SUMSTRING(F132:G132,"#") ->  | L132: =[1]!SUMSTRING(I132:J132,"|") -> 
A133: 12 | B133: 6007 | D133: 6007 | E133: 3 | F133: 5 | G133: 330 | I133: =[1]!SUMSTRING(D133:E133,"#") ->  | J133: =[1]!SUMSTRING(F133:G133,"#") ->  | L133: =[1]!SUMSTRING(I133:J133,"|") -> 
A134: 13 | B134: 6007 | D134: 6007 | E134: 3 | F134: 5 | G134: 380 | I134: =[1]!SUMSTRING(D134:E134,"#") ->  | J134: =[1]!SUMSTRING(F134:G134,"#") ->  | L134: =[1]!SUMSTRING(I134:J134,"|") -> 
A135: 14 | B135: 6007 | D135: 6007 | E135: 4 | F135: 5 | G135: 435 | I135: =[1]!SUMSTRING(D135:E135,"#") ->  | J135: =[1]!SUMSTRING(F135:G135,"#") ->  | L135: =[1]!SUMSTRING(I135:J135,"|") -> 
A136: 15 | B136: 6007 | D136: 6007 | E136: 5 | F136: 5 | G136: 495 | I136: =[1]!SUMSTRING(D136:E136,"#") ->  | J136: =[1]!SUMSTRING(F136:G136,"#") ->  | L136: =[1]!SUMSTRING(I136:J136,"|") -> 
A137: 16 | B137: 6007 | D137: 6007 | E137: 6 | F137: 5 | G137: 555 | I137: =[1]!SUMSTRING(D137:E137,"#") ->  | J137: =[1]!SUMSTRING(F137:G137,"#") ->  | L137: =[1]!SUMSTRING(I137:J137,"|") -> 
A138: 17 | B138: 6007 | D138: 6007 | E138: 8 | F138: 5 | G138: 620 | I138: =[1]!SUMSTRING(D138:E138,"#") ->  | J138: =[1]!SUMSTRING(F138:G138,"#") ->  | L138: =[1]!SUMSTRING(I138:J138,"|") -> 
A139: 18 | B139: 6007 | D139: 6007 | E139: 10 | F139: 5 | G139: 690 | I139: =[1]!SUMSTRING(D139:E139,"#") ->  | J139: =[1]!SUMSTRING(F139:G139,"#") ->  | L139: =[1]!SUMSTRING(I139:J139,"|") -> 
A140: 19 | B140: 6007 | D140: 6007 | E140: 21 | F140: 5 | G140: 765 | I140: =[1]!SUMSTRING(D140:E140,"#") ->  | J140: =[1]!SUMSTRING(F140:G140,"#") ->  | L140: =[1]!SUMSTRING(I140:J140,"|") -> 
A141: 20 | B141: 6007 | D141: 6007 | E141: 30 | F141: 5 | G141: 840 | I141: =[1]!SUMSTRING(D141:E141,"#") ->  | J141: =[1]!SUMSTRING(F141:G141,"#") ->  | L141: =[1]!SUMSTRING(I141:J141,"|") -> 
A142: 1 | B142: 6008 | D142: 6008 | E142: 1 | F142: 5 | G142: 0 | I142: =[1]!SUMSTRING(D142:E142,"#") ->  | J142: =[1]!SUMSTRING(F142:G142,"#") ->  | L142: =[1]!SUMSTRING(I142:J142,"|") -> 
A143: 2 | B143: 6008 | D143: 6008 | E143: 1 | F143: 5 | G143: 20 | I143: =[1]!SUMSTRING(D143:E143,"#") ->  | J143: =[1]!SUMSTRING(F143:G143,"#") ->  | L143: =[1]!SUMSTRING(I143:J143,"|") -> 
A144: 3 | B144: 6008 | D144: 6008 | E144: 1 | F144: 5 | G144: 35 | I144: =[1]!SUMSTRING(D144:E144,"#") ->  | J144: =[1]!SUMSTRING(F144:G144,"#") ->  | L144: =[1]!SUMSTRING(I144:J144,"|") -> 
A145: 4 | B145: 6008 | D145: 6008 | E145: 1 | F145: 5 | G145: 50 | I145: =[1]!SUMSTRING(D145:E145,"#") ->  | J145: =[1]!SUMSTRING(F145:G145,"#") ->  | L145: =[1]!SUMSTRING(I145:J145,"|") -> 
A146: 5 | B146: 6008 | D146: 6008 | E146: 2 | F146: 5 | G146: 75 | I146: =[1]!SUMSTRING(D146:E146,"#") ->  | J146: =[1]!SUMSTRING(F146:G146,"#") ->  | L146: =[1]!SUMSTRING(I146:J146,"|") -> 
A147: 6 | B147: 6008 | D147: 6008 | E147: 2 | F147: 5 | G147: 100 | I147: =[1]!SUMSTRING(D147:E147,"#") ->  | J147: =[1]!SUMSTRING(F147:G147,"#") ->  | L147: =[1]!SUMSTRING(I147:J147,"|") -> 
A148: 7 | B148: 6008 | D148: 6008 | E148: 2 | F148: 5 | G148: 130 | I148: =[1]!SUMSTRING(D148:E148,"#") ->  | J148: =[1]!SUMSTRING(F148:G148,"#") ->  | L148: =[1]!SUMSTRING(I148:J148,"|") -> 
A149: 8 | B149: 6008 | D149: 6008 | E149: 3 | F149: 5 | G149: 160 | I149: =[1]!SUMSTRING(D149:E149,"#") ->  | J149: =[1]!SUMSTRING(F149:G149,"#") ->  | L149: =[1]!SUMSTRING(I149:J149,"|") -> 
A150: 9 | B150: 6008 | D150: 6008 | E150: 3 | F150: 5 | G150: 195 | I150: =[1]!SUMSTRING(D150:E150,"#") ->  | J150: =[1]!SUMSTRING(F150:G150,"#") ->  | L150: =[1]!SUMSTRING(I150:J150,"|") -> 
A151: =A131 -> 10 | B151: =B131+1 -> 6008 | D151: 6008 | E151: =E131 -> 3 | F151: 5 | G151: 235 | I151: =[1]!SUMSTRING(D151:E151,"#") ->  | J151: =[1]!SUMSTRING(F151:G151,"#") ->  | L151: =[1]!SUMSTRING(I151:J151,"|") -> 
A152: 11 | B152: 6008 | D152: 6008 | E152: 3 | F152: 5 | G152: 280 | I152: =[1]!SUMSTRING(D152:E152,"#") ->  | J152: =[1]!SUMSTRING(F152:G152,"#") ->  | L152: =[1]!SUMSTRING(I152:J152,"|") -> 
A153: 12 | B153: 6008 | D153: 6008 | E153: 3 | F153: 5 | G153: 330 | I153: =[1]!SUMSTRING(D153:E153,"#") ->  | J153: =[1]!SUMSTRING(F153:G153,"#") ->  | L153: =[1]!SUMSTRING(I153:J153,"|") -> 
A154: 13 | B154: 6008 | D154: 6008 | E154: 3 | F154: 5 | G154: 380 | I154: =[1]!SUMSTRING(D154:E154,"#") ->  | J154: =[1]!SUMSTRING(F154:G154,"#") ->  | L154: =[1]!SUMSTRING(I154:J154,"|") -> 
A155: 14 | B155: 6008 | D155: 6008 | E155: 4 | F155: 5 | G155: 435 | I155: =[1]!SUMSTRING(D155:E155,"#") ->  | J155: =[1]!SUMSTRING(F155:G155,"#") ->  | L155: =[1]!SUMSTRING(I155:J155,"|") -> 
A156: 15 | B156: 6008 | D156: 6008 | E156: 5 | F156: 5 | G156: 495 | I156: =[1]!SUMSTRING(D156:E156,"#") ->  | J156: =[1]!SUMSTRING(F156:G156,"#") ->  | L156: =[1]!SUMSTRING(I156:J156,"|") -> 
A157: 16 | B157: 6008 | D157: 6008 | E157: 6 | F157: 5 | G157: 555 | I157: =[1]!SUMSTRING(D157:E157,"#") ->  | J157: =[1]!SUMSTRING(F157:G157,"#") ->  | L157: =[1]!SUMSTRING(I157:J157,"|") -> 
A158: 17 | B158: 6008 | D158: 6008 | E158: 8 | F158: 5 | G158: 620 | I158: =[1]!SUMSTRING(D158:E158,"#") ->  | J158: =[1]!SUMSTRING(F158:G158,"#") ->  | L158: =[1]!SUMSTRING(I158:J158,"|") -> 
A159: 18 | B159: 6008 | D159: 6008 | E159: 10 | F159: 5 | G159: 690 | I159: =[1]!SUMSTRING(D159:E159,"#") ->  | J159: =[1]!SUMSTRING(F159:G159,"#") ->  | L159: =[1]!SUMSTRING(I159:J159,"|") -> 
A160: 19 | B160: 6008 | D160: 6008 | E160: 21 | F160: 5 | G160: 765 | I160: =[1]!SUMSTRING(D160:E160,"#") ->  | J160: =[1]!SUMSTRING(F160:G160,"#") ->  | L160: =[1]!SUMSTRING(I160:J160,"|") -> 
A161: 20 | B161: 6008 | D161: 6008 | E161: 30 | F161: 5 | G161: 840 | I161: =[1]!SUMSTRING(D161:E161,"#") ->  | J161: =[1]!SUMSTRING(F161:G161,"#") ->  | L161: =[1]!SUMSTRING(I161:J161,"|") -> 
A162: 1 | B162: 6009 | D162: 6009 | E162: 1 | F162: 5 | G162: 0 | I162: =[1]!SUMSTRING(D162:E162,"#") ->  | J162: =[1]!SUMSTRING(F162:G162,"#") ->  | L162: =[1]!SUMSTRING(I162:J162,"|") -> 
A163: 2 | B163: 6009 | D163: 6009 | E163: 1 | F163: 5 | G163: 20 | I163: =[1]!SUMSTRING(D163:E163,"#") ->  | J163: =[1]!SUMSTRING(F163:G163,"#") ->  | L163: =[1]!SUMSTRING(I163:J163,"|") -> 
A164: 3 | B164: 6009 | D164: 6009 | E164: 1 | F164: 5 | G164: 35 | I164: =[1]!SUMSTRING(D164:E164,"#") ->  | J164: =[1]!SUMSTRING(F164:G164,"#") ->  | L164: =[1]!SUMSTRING(I164:J164,"|") -> 
A165: 4 | B165: 6009 | D165: 6009 | E165: 1 | F165: 5 | G165: 50 | I165: =[1]!SUMSTRING(D165:E165,"#") ->  | J165: =[1]!SUMSTRING(F165:G165,"#") ->  | L165: =[1]!SUMSTRING(I165:J165,"|") -> 
A166: 5 | B166: 6009 | D166: 6009 | E166: 2 | F166: 5 | G166: 75 | I166: =[1]!SUMSTRING(D166:E166,"#") ->  | J166: =[1]!SUMSTRING(F166:G166,"#") ->  | L166: =[1]!SUMSTRING(I166:J166,"|") -> 
A167: 6 | B167: 6009 | D167: 6009 | E167: 2 | F167: 5 | G167: 100 | I167: =[1]!SUMSTRING(D167:E167,"#") ->  | J167: =[1]!SUMSTRING(F167:G167,"#") ->  | L167: =[1]!SUMSTRING(I167:J167,"|") -> 
A168: 7 | B168: 6009 | D168: 6009 | E168: 2 | F168: 5 | G168: 130 | I168: =[1]!SUMSTRING(D168:E168,"#") ->  | J168: =[1]!SUMSTRING(F168:G168,"#") ->  | L168: =[1]!SUMSTRING(I168:J168,"|") -> 
A169: 8 | B169: 6009 | D169: 6009 | E169: 3 | F169: 5 | G169: 160 | I169: =[1]!SUMSTRING(D169:E169,"#") ->  | J169: =[1]!SUMSTRING(F169:G169,"#") ->  | L169: =[1]!SUMSTRING(I169:J169,"|") -> 
A170: 9 | B170: 6009 | D170: 6009 | E170: 3 | F170: 5 | G170: 195 | I170: =[1]!SUMSTRING(D170:E170,"#") ->  | J170: =[1]!SUMSTRING(F170:G170,"#") ->  | L170: =[1]!SUMSTRING(I170:J170,"|") -> 
A171: 10 | B171: 6009 | D171: 6009 | E171: 3 | F171: 5 | G171: 235 | I171: =[1]!SUMSTRING(D171:E171,"#") ->  | J171: =[1]!SUMSTRING(F171:G171,"#") ->  | L171: =[1]!SUMSTRING(I171:J171,"|") -> 
A172: 11 | B172: 6009 | D172: 6009 | E172: 3 | F172: 5 | G172: 280 | I172: =[1]!SUMSTRING(D172:E172,"#") ->  | J172: =[1]!SUMSTRING(F172:G172,"#") ->  | L172: =[1]!SUMSTRING(I172:J172,"|") -> 
A173: 12 | B173: 6009 | D173: 6009 | E173: 3 | F173: 5 | G173: 330 | I173: =[1]!SUMSTRING(D173:E173,"#") ->  | J173: =[1]!SUMSTRING(F173:G173,"#") ->  | L173: =[1]!SUMSTRING(I173:J173,"|") -> 
A174: 13 | B174: 6009 | D174: 6009 | E174: 3 | F174: 5 | G174: 380 | I174: =[1]!SUMSTRING(D174:E174,"#") ->  | J174: =[1]!SUMSTRING(F174:G174,"#") ->  | L174: =[1]!SUMSTRING(I174:J174,"|") -> 
A175: 14 | B175: 6009 | D175: 6009 | E175: 4 | F175: 5 | G175: 435 | I175: =[1]!SUMSTRING(D175:E175,"#") ->  | J175: =[1]!SUMSTRING(F175:G175,"#") ->  | L175: =[1]!SUMSTRING(I175:J175,"|") -> 
A176: 15 | B176: 6009 | D176: 6009 | E176: 5 | F176: 5 | G176: 495 | I176: =[1]!SUMSTRING(D176:E176,"#") ->  | J176: =[1]!SUMSTRING(F176:G176,"#") ->  | L176: =[1]!SUMSTRING(I176:J176,"|") -> 
A177: 16 | B177: 6009 | D177: 6009 | E177: 6 | F177: 5 | G177: 555 | I177: =[1]!SUMSTRING(D177:E177,"#") ->  | J177: =[1]!SUMSTRING(F177:G177,"#") ->  | L177: =[1]!SUMSTRING(I177:J177,"|") -> 
A178: 17 | B178: 6009 | D178: 6009 | E178: 8 | F178: 5 | G178: 620 | I178: =[1]!SUMSTRING(D178:E178,"#") ->  | J178: =[1]!SUMSTRING(F178:G178,"#") ->  | L178: =[1]!SUMSTRING(I178:J178,"|") -> 
A179: 18 | B179: 6009 | D179: 6009 | E179: 10 | F179: 5 | G179: 690 | I179: =[1]!SUMSTRING(D179:E179,"#") ->  | J179: =[1]!SUMSTRING(F179:G179,"#") ->  | L179: =[1]!SUMSTRING(I179:J179,"|") -> 
A180: 19 | B180: 6009 | D180: 6009 | E180: 21 | F180: 5 | G180: 765 | I180: =[1]!SUMSTRING(D180:E180,"#") ->  | J180: =[1]!SUMSTRING(F180:G180,"#") ->  | L180: =[1]!SUMSTRING(I180:J180,"|") -> 
A181: 20 | B181: 6009 | D181: 6009 | E181: 30 | F181: 5 | G181: 840 | I181: =[1]!SUMSTRING(D181:E181,"#") ->  | J181: =[1]!SUMSTRING(F181:G181,"#") ->  | L181: =[1]!SUMSTRING(I181:J181,"|") -> 
A182: 1 | B182: 6010 | D182: 6010 | E182: 1 | F182: 5 | G182: 0 | I182: =[1]!SUMSTRING(D182:E182,"#") ->  | J182: =[1]!SUMSTRING(F182:G182,"#") ->  | L182: =[1]!SUMSTRING(I182:J182,"|") -> 
A183: 2 | B183: 6010 | D183: 6010 | E183: 1 | F183: 5 | G183: 20 | I183: =[1]!SUMSTRING(D183:E183,"#") ->  | J183: =[1]!SUMSTRING(F183:G183,"#") ->  | L183: =[1]!SUMSTRING(I183:J183,"|") -> 
A184: 3 | B184: 6010 | D184: 6010 | E184: 1 | F184: 5 | G184: 35 | I184: =[1]!SUMSTRING(D184:E184,"#") ->  | J184: =[1]!SUMSTRING(F184:G184,"#") ->  | L184: =[1]!SUMSTRING(I184:J184,"|") -> 
A185: 4 | B185: 6010 | D185: 6010 | E185: 1 | F185: 5 | G185: 50 | I185: =[1]!SUMSTRING(D185:E185,"#") ->  | J185: =[1]!SUMSTRING(F185:G185,"#") ->  | L185: =[1]!SUMSTRING(I185:J185,"|") -> 
A186: 5 | B186: 6010 | D186: 6010 | E186: 2 | F186: 5 | G186: 75 | I186: =[1]!SUMSTRING(D186:E186,"#") ->  | J186: =[1]!SUMSTRING(F186:G186,"#") ->  | L186: =[1]!SUMSTRING(I186:J186,"|") -> 
A187: 6 | B187: 6010 | D187: 6010 | E187: 2 | F187: 5 | G187: 100 | I187: =[1]!SUMSTRING(D187:E187,"#") ->  | J187: =[1]!SUMSTRING(F187:G187,"#") ->  | L187: =[1]!SUMSTRING(I187:J187,"|") -> 
A188: 7 | B188: 6010 | D188: 6010 | E188: 2 | F188: 5 | G188: 130 | I188: =[1]!SUMSTRING(D188:E188,"#") ->  | J188: =[1]!SUMSTRING(F188:G188,"#") ->  | L188: =[1]!SUMSTRING(I188:J188,"|") -> 
A189: 8 | B189: 6010 | D189: 6010 | E189: 3 | F189: 5 | G189: 160 | I189: =[1]!SUMSTRING(D189:E189,"#") ->  | J189: =[1]!SUMSTRING(F189:G189,"#") ->  | L189: =[1]!SUMSTRING(I189:J189,"|") -> 
A190: 9 | B190: 6010 | D190: 6010 | E190: 3 | F190: 5 | G190: 195 | I190: =[1]!SUMSTRING(D190:E190,"#") ->  | J190: =[1]!SUMSTRING(F190:G190,"#") ->  | L190: =[1]!SUMSTRING(I190:J190,"|") -> 
A191: 10 | B191: 6010 | D191: 6010 | E191: 3 | F191: 5 | G191: 235 | I191: =[1]!SUMSTRING(D191:E191,"#") ->  | J191: =[1]!SUMSTRING(F191:G191,"#") ->  | L191: =[1]!SUMSTRING(I191:J191,"|") -> 
A192: 11 | B192: 6010 | D192: 6010 | E192: 3 | F192: 5 | G192: 280 | I192: =[1]!SUMSTRING(D192:E192,"#") ->  | J192: =[1]!SUMSTRING(F192:G192,"#") ->  | L192: =[1]!SUMSTRING(I192:J192,"|") -> 
A193: 12 | B193: 6010 | D193: 6010 | E193: 3 | F193: 5 | G193: 330 | I193: =[1]!SUMSTRING(D193:E193,"#") ->  | J193: =[1]!SUMSTRING(F193:G193,"#") ->  | L193: =[1]!SUMSTRING(I193:J193,"|") -> 
A194: 13 | B194: 6010 | D194: 6010 | E194: 3 | F194: 5 | G194: 380 | I194: =[1]!SUMSTRING(D194:E194,"#") ->  | J194: =[1]!SUMSTRING(F194:G194,"#") ->  | L194: =[1]!SUMSTRING(I194:J194,"|") -> 
A195: 14 | B195: 6010 | D195: =B195 -> 6010 | E195: 4 | F195: 5 | G195: 435 | I195: =[1]!SUMSTRING(D195:E195,"#") ->  | J195: =[1]!SUMSTRING(F195:G195,"#") ->  | L195: =[1]!SUMSTRING(I195:J195,"|") -> 
A196: 15 | B196: 6010 | D196: 6010 | E196: 5 | F196: 5 | G196: 495 | I196: =[1]!SUMSTRING(D196:E196,"#") ->  | J196: =[1]!SUMSTRING(F196:G196,"#") ->  | L196: =[1]!SUMSTRING(I196:J196,"|") -> 
A197: 16 | B197: 6010 | D197: 6010 | E197: 6 | F197: 5 | G197: 555 | I197: =[1]!SUMSTRING(D197:E197,"#") ->  | J197: =[1]!SUMSTRING(F197:G197,"#") ->  | L197: =[1]!SUMSTRING(I197:J197,"|") -> 
A198: 17 | B198: 6010 | D198: 6010 | E198: 8 | F198: 5 | G198: 620 | I198: =[1]!SUMSTRING(D198:E198,"#") ->  | J198: =[1]!SUMSTRING(F198:G198,"#") ->  | L198: =[1]!SUMSTRING(I198:J198,"|") -> 
A199: 18 | B199: 6010 | D199: 6010 | E199: 10 | F199: 5 | G199: 690 | I199: =[1]!SUMSTRING(D199:E199,"#") ->  | J199: =[1]!SUMSTRING(F199:G199,"#") ->  | L199: =[1]!SUMSTRING(I199:J199,"|") -> 
A200: 19 | B200: 6010 | D200: 6010 | E200: 21 | F200: 5 | G200: 765 | I200: =[1]!SUMSTRING(D200:E200,"#") ->  | J200: =[1]!SUMSTRING(F200:G200,"#") ->  | L200: =[1]!SUMSTRING(I200:J200,"|") -> 
... 521 more rows
